Workbook

Sheet How to use this Spreadsheet
B2: In general, anything with a light blue background (matching this cell) is for user input.
B4: The first sheet "Cougar SV Rear Geometry" allows the user to input a car setup, then set the ride height and roll angle to see the shape of the rear suspension.
B5: Camber angles for each wheel are plotted, as well as left & right instant centres, and the roll centre.
B6: The diagram updates automatically each time any blue cell is changed.
B9: The second sheet "Roll Centre Comparisons" alows the user to input two different setups and compare the camber and roll centre for a complete range of ride heights and roll angles.
B10: Up to six setups can be stored in positions 1-6 for easy retrieval. Use the load and store functions to move the setup between the stored positions and the main sheet
B11: The names of the stored setups can be customised as required.
B13: "Adjust upper wishbone to set camber" can be used to set both setups to have the same static camber.
B15: The calculation is run only when the large blue button is pressed to "Calculate Geometries"
B16: Note that this calculation may take 1 minute or more when a new setup is calculated for the first time.
B17: Once a setup is calculated for the first time the results are stored in an internal memory in the program so subsequent calculations of the same setup will be much faster.
B19: The tables contain exact data for all positions, and the four graphs show what happens as either roll or ride height is varied independantly.
B20: The specific rows and columns shown in the graphs can be set using the blue cells between the graphs.
B22: I don't want to get too far into what the roll centres and camber gains mean as there are a lot of resources available to describe those in much more detail than I can here.

Sheet Cougar SV Rear Geometry
B2: Instant Position
B3: Body Roll Angle (Deg) | G3: 0 | I3: Body Ride Height (mm) | N3: 15
B5: Car Specification
B6: ='Lookup Tables'!B3 -> Lower Gearbox Housings | G6: Std | I6: ='Lookup Tables'!B9 -> Upper Link | N6: 34
B7: ='Lookup Tables'!B4 -> Antisquat Spacers | G7: 0 | I7: ='Lookup Tables'!B10 -> Upper Link Spacers | N7: 6
B8: ='Lookup Tables'!B5 -> Rear Toe Block | G8: 3 | I8: ='Lookup Tables'!B11 -> Upper Ball Stud Spacers | N8: 0
B9: ='Lookup Tables'!B6 -> Rear Hubs | G9: Std | I9: ='Lookup Tables'!B12 -> Lower Wishbones | N9: Std
B10: ='Lookup Tables'!B7 -> Rear Hub Hole Pos. | G10: Centre | I10: ='Lookup Tables'!B13 -> Upper Wishbones | N10: 69.5
B11: ='Lookup Tables'!B8 -> Rear Track | G11: Wide | I11: ='Lookup Tables'!B14 -> Tyres | N11: Minispike
B13: Geometry
B14: LH | C14: X | D14: Y | F14: Lengths | I14: RH | J14: X | K14: Y | M14: Lengths
B15: A | C15: =(0-(SQRT((0-(-((VLOOKUP(G6,'Lookup Tables'!B17:D17,3)/2)+(VLOOKUP(G8,'Lookup Tables'!Rear_toe_block,2)/2))/2))^2 + (((((9+(5+G7))/2)+(30.5 + (N7-N8)*COS(RADIANS(20))))/2)-((9+(5+G7))/2))^2))*SIN((ATAN((0-(-((VLOOKUP(G6,'Lookup Tables'!B17:D17,3)/2)+(VLOOKUP(G8,'Lookup Tables'!Rear_toe_block,2)/2))/2))/((((((9+(5+G7))/2)+(30.5 + (N7-N8)*COS(RADIANS(20))))/2)+Ride_Height)-(((9+(5+G7))/2)+Ride_Height))))-RADIANS(Roll_Angle))) -> -17 | D15: =((((((9+(5+G7))/2)+(30.5 + (N7-N8)*COS(RADIANS(20))))/2)+Ride_Height)-(SQRT((0-(-((VLOOKUP(G6,'Lookup Tables'!B17:D17,3)/2)+(VLOOKUP(G8,'Lookup Tables'!Rear_toe_block,2)/2))/2))^2 + (((((9+(5+G7))/2)+(30.5 + (N7-N8)*COS(RADIANS(20))))/2)-((9+(5+G7))/2))^2))*COS((ATAN((0-(-((VLOOKUP(G6,'Lookup Tables'!B17:D17,3)/2)+(VLOOKUP(G8,'Lookup Tables'!Rear_toe_block,2)/2))/2))/((((((9+(5+G7))/2)+(30.5 + (N7-N8)*COS(RADIANS(20))))/2)+Ride_Height)-(((9+(5+G7))/2)+Ride_Height))))-RADIANS(Roll_Angle))) -> 22 | F15: AC | G15: =VLOOKUP(N9,'Lookup Tables'!Rear_Lower_Wishbone,2,FALSE) -> 74 | I15: Z | J15: =(0+(SQRT((0-(-((VLOOKUP(G6,'Lookup Tables'!B17:D17,3)/2)+(VLOOKUP(G8,'Lookup Tables'!Rear_toe_block,2)/2))/2))^2 + (((((9+(5+G7))/2)+(30.5 + (N7-N8)*COS(RADIANS(20))))/2)-((9+(5+G7))/2))^2))*SIN((ATAN((0-(-((VLOOKUP(G6,'Lookup Tables'!B17:D17,3)/2)+(VLOOKUP(G8,'Lookup Tables'!Rear_toe_block,2)/2))/2))/((((((9+(5+G7))/2)+(30.5 + (N7-N8)*COS(RADIANS(20))))/2)+Ride_Height)-(((9+(5+G7))/2)+Ride_Height))))+RADIANS(Roll_Angle))) -> 17 | K15: =((((((9+(5+G7))/2)+(30.5 + (N7-N8)*COS(RADIANS(20))))/2)+Ride_Height)-(SQRT((0-(-((VLOOKUP(G6,'Lookup Tables'!B17:D17,3)/2)+(VLOOKUP(G8,'Lookup Tables'!Rear_toe_block,2)/2))/2))^2 + (((((9+(5+G7))/2)+(30.5 + (N7-N8)*COS(RADIANS(20))))/2)-((9+(5+G7))/2))^2))*COS((ATAN((0-(-((VLOOKUP(G6,'Lookup Tables'!B17:D17,3)/2)+(VLOOKUP(G8,'Lookup Tables'!Rear_toe_block,2)/2))/2))/((((((9+(5+G7))/2)+(30.5 + (N7-N8)*COS(RADIANS(20))))/2)+Ride_Height)-(((9+(5+G7))/2)+Ride_Height))))+RADIANS(Roll_Angle))) -> 22 | M15: XZ | N15: =VLOOKUP(N9,'Lookup Tables'!Rear_Lower_Wishbone,2,FALSE) -> 74
B16: B | C16: =(0-(SQRT((0-(-N6/2))^2 + (((((9+(5+G7))/2)+(30.5 + (N7-N8)*COS(RADIANS(20))))/2)-(30.5 + (N7-N8)*COS(RADIANS(20))))^2))*SIN((ATAN((0-(-N6/2))/(((30.5 + (N7-N8)*COS(RADIANS(20)))+Ride_Height)-(((((9+(5+G7))/2)+(30.5 + (N7-N8)*COS(RADIANS(20))))/2)+Ride_Height))))+RADIANS(Roll_Angle))) -> -17 | D16: =((((((9+(5+G7))/2)+(30.5 + (N7-N8)*COS(RADIANS(20))))/2)+Ride_Height)+(SQRT((0-(-N6/2))^2 + (((((9+(5+G7))/2)+(30.5 + (N7-N8)*COS(RADIANS(20))))/2)-(30.5 + (N7-N8)*COS(RADIANS(20))))^2))*COS((ATAN((0-(-N6/2))/(((30.5 + (N7-N8)*COS(RADIANS(20)))+Ride_Height)-(((((9+(5+G7))/2)+(30.5 + (N7-N8)*COS(RADIANS(20))))/2)+Ride_Height))))+RADIANS(Roll_Angle))) -> 51.13815572 | F16: BD | G16: =N10 -> 69.5 | I16: Y | J16: =(0+(SQRT((0-(-N6/2))^2 + (((((9+(5+G7))/2)+(30.5 + (N7-N8)*COS(RADIANS(20))))/2)-(30.5 + (N7-N8)*COS(RADIANS(20))))^2))*SIN((ATAN((0-(-N6/2))/(((30.5 + (N7-N8)*COS(RADIANS(20)))+Ride_Height)-(((((9+(5+G7))/2)+(30.5 + (N7-N8)*COS(RADIANS(20))))/2)+Ride_Height))))-RADIANS(Roll_Angle))) -> 17 | K16: =((((((9+(5+G7))/2)+(30.5 + (N7-N8)*COS(RADIANS(20))))/2)+Ride_Height)+(SQRT((0-(-N6/2))^2 + (((((9+(5+G7))/2)+(30.5 + (N7-N8)*COS(RADIANS(20))))/2)-(30.5 + (N7-N8)*COS(RADIANS(20))))^2))*COS((ATAN((0-(-N6/2))/(((30.5 + (N7-N8)*COS(RADIANS(20)))+Ride_Height)-(((((9+(5+G7))/2)+(30.5 + (N7-N8)*COS(RADIANS(20))))/2)+Ride_Height))))-RADIANS(Roll_Angle))) -> 51.13815572 | M16: WY | N16: =N10 -> 69.5
F17: CF | G17: =VLOOKUP(G9,'Lookup Tables'!Rear_Hub,4,FALSE) -> 6 | M17: UX | N17: =VLOOKUP(G9,'Lookup Tables'!Rear_Hub,4,FALSE) -> 6
F18: DG | G18: =VLOOKUP(G10,'Lookup Tables'!Rear_Hub_Hole,2,FALSE) -> 4 | M18: TW | N18: =VLOOKUP(G10,'Lookup Tables'!Rear_Hub_Hole,2,FALSE) -> 4
F19: EF | G19: =VLOOKUP(G9,'Lookup Tables'!Rear_Hub,3,FALSE)-VLOOKUP(G11,'Lookup Tables'!Rear_Track,2,FALSE) -> 11.5 | M19: UV | N19: =VLOOKUP(G9,'Lookup Tables'!Rear_Hub,3,FALSE)-VLOOKUP(G11,'Lookup Tables'!Rear_Track,2,FALSE) -> 11.5
F20: FG | G20: =VLOOKUP(G9,'Lookup Tables'!Rear_Hub,2,FALSE)-VLOOKUP(G9,'Lookup Tables'!Rear_Hub,4,FALSE) -> 22 | M20: TU | N20: =VLOOKUP(G9,'Lookup Tables'!Rear_Hub,2,FALSE)-VLOOKUP(G9,'Lookup Tables'!Rear_Hub,4,FALSE) -> 22
B22: Outputs
B23: LH | C23: X | D23: Y | F23: Lengths | I23: RH | J23: X | K23: Y | M23: Lengths
B24: A | C24: -17 | D24: 22 | F24: AB | G24: 29.13815572 | I24: Z | J24: 17 | K24: 22 | M24: YZ | N24: 29.13815572
B25: B | C25: -17 | D25: 51.13815572 | F25: AC | G25: 74 | I25: Y | J25: 17 | K25: 51.13815572 | M25: XZ | N25: 74
B26: C | C26: -89.69111499 | D26: 35.85647144 | F26: AD | G26: 80.10848979 | I26: X | J26: 89.69111499 | K26: 35.85647144 | M26: WZ | N26: 80.10848979
B27: D | C27: -85.33622553 | D27: 63.80347375 | F27: BC | G27: 74.28006512 | I27: W | J27: 85.33622553 | K27: 63.80347375 | M27: XY | N27: 74.28006512
B28: E | C28: -101.1149983 | D28: 42 | F28: BD | G28: 69.5 | I28: V | J28: 101.1149983 | K28: 42 | M28: WY | N28: 69.5
B29: F | C29: -89.61499828 | D29: 41.85598861 | F29: CD | G29: 28.28427125 | I29: U | J29: 89.61499828 | K29: 41.85598861 | M29: WX | N29: 28.28427125
B30: G | C30: -89.33590364 | D30: 63.85421823 | F30: CE | G30: 12.97112177 | I30: T | J30: 89.33590364 | K30: 63.85421823 | M30: VX | N30: 12.97112177
F31: CF | G31: 6 | M31: UX | N31: 6
B32: IC | C32: -5532.476882 | D32: 1073.367116 | F32: DE | G32: 26.91189328 | I32: IC | J32: 5532.476882 | K32: 1073.367116 | M32: VW | N32: 26.91189328
B33: RC | C33: 0 | D33: -19.982744 | F33: DG | G33: 4 | M33: TW | N33: 4
F34: EF | G34: 11.5 | M34: UV | N34: 11.5
B35: LH - Tyre Camber | F35: FG | G35: 22 | I35: RH - Tyre Camber | M35: TU | N35: 22
C36: Rad | D36: Deg | J36: Rad | K36: Deg
B37: LH | C37: -0.01268646012 | D37: =DEGREES(gCy) -> -0.7268806216 | I37: RH | J37: -0.01268646012 | K37: =DEGREES(J37) -> -0.7268806216
B41: Additional Graph Objects
B42: LH - Tyre | F42: Gearbox | I42: RH - Tyre
B43: W | C43: =39 -> 39 | D43: mm | F43: X | G43: Y | I43: W | J43: =Wid_L -> 39 | K43: mm
B44: D | C44: =VLOOKUP('Cougar SV Rear Geometry'!N11,'Lookup Tables'!B41:D41,2) -> 84 | D44: mm | F44: =(0-(SQRT((0-(MIN((-((VLOOKUP(G6,'Lookup Tables'!B17:D17,3)/2)+(VLOOKUP(G8,'Lookup Tables'!Rear_toe_block,2)/2))/2),(-N6/2))-4))^2+(((((9+(5+G7))/2)+(30.5 + (N7-N8)*COS(RADIANS(20))))/2)-(MAX((30.5 + (N7-N8)*COS(RADIANS(20))),(30.5 + (N7-N8)*COS(RADIANS(20))))+4))^2))*SIN((ATAN((0-(MIN((-((VLOOKUP(G6,'Lookup Tables'!B17:D17,3)/2)+(VLOOKUP(G8,'Lookup Tables'!Rear_toe_block,2)/2))/2),(-N6/2))-4))/(((MAX((30.5 + (N7-N8)*COS(RADIANS(20))),(30.5 + (N7-N8)*COS(RADIANS(20))))+4)+Ride_Height)-(((((9+(5+G7))/2)+(30.5 + (N7-N8)*COS(RADIANS(20))))/2)+Ride_Height))))+RADIANS(Roll_Angle))) -> -21 | G44: =((((((9+(5+G7))/2)+(30.5 + (N7-N8)*COS(RADIANS(20))))/2)+Ride_Height)+(SQRT((0-(MIN((-((VLOOKUP(G6,'Lookup Tables'!B17:D17,3)/2)+(VLOOKUP(G8,'Lookup Tables'!Rear_toe_block,2)/2))/2),(-N6/2))-4))^2+(((((9+(5+G7))/2)+(30.5 + (N7-N8)*COS(RADIANS(20))))/2)-(MAX((30.5 + (N7-N8)*COS(RADIANS(20))),(30.5 + (N7-N8)*COS(RADIANS(20))))+4))^2))*COS((ATAN((0-(MIN((-((VLOOKUP(G6,'Lookup Tables'!B17:D17,3)/2)+(VLOOKUP(G8,'Lookup Tables'!Rear_toe_block,2)/2))/2),(-N6/2))-4))/(((MAX((30.5 + (N7-N8)*COS(RADIANS(20))),(30.5 + (N7-N8)*COS(RADIANS(20))))+4)+Ride_Height)-(((((9+(5+G7))/2)+(30.5 + (N7-N8)*COS(RADIANS(20))))/2)+Ride_Height))))+RADIANS(Roll_Angle))) -> 55.13815572 | I44: D | J44: =Dia_L -> 84 | K44: mm
F45: =(0+(SQRT((0-(MAX((-(-((VLOOKUP(G6,'Lookup Tables'!B17:D17,3)/2)+(VLOOKUP(G8,'Lookup Tables'!Rear_toe_block,2)/2))/2)),(-(-N6/2)))+4))^2+(((((9+(5+G7))/2)+(30.5 + (N7-N8)*COS(RADIANS(20))))/2)-(MAX((30.5 + (N7-N8)*COS(RADIANS(20))),(30.5 + (N7-N8)*COS(RADIANS(20))))+4))^2))*SIN((ATAN(((MAX((-(-((VLOOKUP(G6,'Lookup Tables'!B17:D17,3)/2)+(VLOOKUP(G8,'Lookup Tables'!Rear_toe_block,2)/2))/2)),(-(-N6/2)))+4)-0)/(((MAX((30.5 + (N7-N8)*COS(RADIANS(20))),(30.5 + (N7-N8)*COS(RADIANS(20))))+4)+Ride_Height)-(((((9+(5+G7))/2)+(30.5 + (N7-N8)*COS(RADIANS(20))))/2)+Ride_Height))))-RADIANS(Roll_Angle))) -> 21 | G45: =((((((9+(5+G7))/2)+(30.5 + (N7-N8)*COS(RADIANS(20))))/2)+Ride_Height)+(SQRT((0-(MAX((-(-((VLOOKUP(G6,'Lookup Tables'!B17:D17,3)/2)+(VLOOKUP(G8,'Lookup Tables'!Rear_toe_block,2)/2))/2)),(-(-N6/2)))+4))^2+(((((9+(5+G7))/2)+(30.5 + (N7-N8)*COS(RADIANS(20))))/2)-(MAX((30.5 + (N7-N8)*COS(RADIANS(20))),(30.5 + (N7-N8)*COS(RADIANS(20))))+4))^2))*COS((ATAN(((MAX((-(-((VLOOKUP(G6,'Lookup Tables'!B17:D17,3)/2)+(VLOOKUP(G8,'Lookup Tables'!Rear_toe_block,2)/2))/2)),(-(-N6/2)))+4)-0)/(((MAX((30.5 + (N7-N8)*COS(RADIANS(20))),(30.5 + (N7-N8)*COS(RADIANS(20))))+4)+Ride_Height)-(((((9+(5+G7))/2)+(30.5 + (N7-N8)*COS(RADIANS(20))))/2)+Ride_Height))))-RADIANS(Roll_Angle))) -> 55.13815572
C46: X | D46: Y | F46: =(0-(SQRT((0-(MIN((-((VLOOKUP(G6,'Lookup Tables'!B17:D17,3)/2)+(VLOOKUP(G8,'Lookup Tables'!Rear_toe_block,2)/2))/2),(-N6/2))-4))^2+(((((9+(5+G7))/2)+(30.5 + (N7-N8)*COS(RADIANS(20))))/2)-(MIN(((9+(5+G7))/2),((9+(5+G7))/2))-4))^2))*SIN((ATAN(((MAX((-(-((VLOOKUP(G6,'Lookup Tables'!B17:D17,3)/2)+(VLOOKUP(G8,'Lookup Tables'!Rear_toe_block,2)/2))/2)),(-(-N6/2)))+4)-0)/(((MAX((30.5 + (N7-N8)*COS(RADIANS(20))),(30.5 + (N7-N8)*COS(RADIANS(20))))+4)+Ride_Height)-(((((9+(5+G7))/2)+(30.5 + (N7-N8)*COS(RADIANS(20))))/2)+Ride_Height))))-RADIANS(Roll_Angle))) -> -21 | G46: =((((((9+(5+G7))/2)+(30.5 + (N7-N8)*COS(RADIANS(20))))/2)+Ride_Height)-(SQRT((0-(MIN((-((VLOOKUP(G6,'Lookup Tables'!B17:D17,3)/2)+(VLOOKUP(G8,'Lookup Tables'!Rear_toe_block,2)/2))/2),(-N6/2))-4))^2+(((((9+(5+G7))/2)+(30.5 + (N7-N8)*COS(RADIANS(20))))/2)-(MIN(((9+(5+G7))/2),((9+(5+G7))/2))-4))^2))*COS((ATAN(((MAX((-(-((VLOOKUP(G6,'Lookup Tables'!B17:D17,3)/2)+(VLOOKUP(G8,'Lookup Tables'!Rear_toe_block,2)/2))/2)),(-(-N6/2)))+4)-0)/(((MAX((30.5 + (N7-N8)*COS(RADIANS(20))),(30.5 + (N7-N8)*COS(RADIANS(20))))+4)+Ride_Height)-(((((9+(5+G7))/2)+(30.5 + (N7-N8)*COS(RADIANS(20))))/2)+Ride_Height))))-RADIANS(Roll_Angle))) -> 18 | J46: X | K46: Y
B47: LC | C47: =XE -> -101.1149983 | D47: =YE -> 42 | F47: =(0+(SQRT((0-(MAX((-(-((VLOOKUP(G6,'Lookup Tables'!B17:D17,3)/2)+(VLOOKUP(G8,'Lookup Tables'!Rear_toe_block,2)/2))/2)),(-(-N6/2)))+4))^2+(((((9+(5+G7))/2)+(30.5 + (N7-N8)*COS(RADIANS(20))))/2)-(MIN(((9+(5+G7))/2),((9+(5+G7))/2))-4))^2))*SIN((ATAN((0-(MIN((-((VLOOKUP(G6,'Lookup Tables'!B17:D17,3)/2)+(VLOOKUP(G8,'Lookup Tables'!Rear_toe_block,2)/2))/2),(-N6/2))-4))/(((MAX((30.5 + (N7-N8)*COS(RADIANS(20))),(30.5 + (N7-N8)*COS(RADIANS(20))))+4)+Ride_Height)-(((((9+(5+G7))/2)+(30.5 + (N7-N8)*COS(RADIANS(20))))/2)+Ride_Height))))+RADIANS(Roll_Angle))) -> 21 | G47: =((((((9+(5+G7))/2)+(30.5 + (N7-N8)*COS(RADIANS(20))))/2)+Ride_Height)-(SQRT((0-(MAX((-(-((VLOOKUP(G6,'Lookup Tables'!B17:D17,3)/2)+(VLOOKUP(G8,'Lookup Tables'!Rear_toe_block,2)/2))/2)),(-(-N6/2)))+4))^2+(((((9+(5+G7))/2)+(30.5 + (N7-N8)*COS(RADIANS(20))))/2)-(MIN(((9+(5+G7))/2),((9+(5+G7))/2))-4))^2))*COS((ATAN((0-(MIN((-((VLOOKUP(G6,'Lookup Tables'!B17:D17,3)/2)+(VLOOKUP(G8,'Lookup Tables'!Rear_toe_block,2)/2))/2),(-N6/2))-4))/(((MAX((30.5 + (N7-N8)*COS(RADIANS(20))),(30.5 + (N7-N8)*COS(RADIANS(20))))+4)+Ride_Height)-(((((9+(5+G7))/2)+(30.5 + (N7-N8)*COS(RADIANS(20))))/2)+Ride_Height))))+RADIANS(Roll_Angle))) -> 18 | I47: RC | J47: =J28 -> 101.1149983 | K47: =K28 -> 42
B48: L1 | C48: -120.1415208 | D48: =D$47+SQRT((Dia_L/2)^2-(C48-C$47)^2) -> 79.44317618 | I48: R1 | J48: 81.14465917 | K48: =K$47+SQRT(42^2-(J48-J$47)^2) -> 78.9484175
C49: =AVERAGE(C48,C50) -> -115.2669131 | D49: 81.54394148 | J49: =AVERAGE(J48,J50) -> 86.01926687 | K49: =K$47+SQRT(42^2-(J49-J$47)^2) -> 81.19335267
C50: =AVERAGE(C48,C52) -> -110.3923054 | D50: 82.96256307 | J50: =AVERAGE(J48,J52) -> 90.89387457 | K50: 82.73731251
C51: =AVERAGE(C50,C52) -> -105.5176977 | D51: 83.7686035 | J51: =AVERAGE(J50,J52) -> 95.76848227 | K51: 83.65830969
C52: =AVERAGE(C48,C56) -> -100.64309 | D52: 83.99734876 | J52: =AVERAGE(J48,J56) -> 100.64309 | K52: 83.99734876
C53: =AVERAGE(C52,C54) -> -95.76848227 | D53: 83.65830969 | J53: =AVERAGE(J52,J54) -> 105.5176977 | K53: 83.7686035
C54: =AVERAGE(C52,C56) -> -90.89387457 | D54: 82.73731251 | J54: =AVERAGE(J52,J56) -> 110.3923054 | K54: 82.96256307
C55: =AVERAGE(C54,C56) -> -86.01926687 | D55: 81.19335267 | J55: =AVERAGE(J54,J56) -> 115.2669131 | K55: 81.54394148
B56: L2 | C56: -81.14465917 | D56: 78.9484175 | I56: R2 | J56: 120.1415208 | K56: 79.44317618
B57: L3 | C57: -121.0853374 | D57: =D$47-SQRT((Dia_L/2)^2-(C57-C$47)^2) -> 5.051582497 | I57: R3 | J57: 82.08847579 | K57: =K$47-SQRT(42^2-(J57-J$47)^2) -> 4.556823824
C58: =AVERAGE(C57,C59) -> -116.2107297 | D58: 2.806647333 | J58: =AVERAGE(J57,J59) -> 86.96308349 | K58: =K$47-SQRT(42^2-(J58-J$47)^2) -> 2.456058518
C59: =AVERAGE(C57,C61) -> -111.336122 | D59: 1.262687495 | J59: =AVERAGE(J57,J61) -> 91.83769119 | K59: 1.037436931
C60: =AVERAGE(C59,C61) -> -106.4615143 | D60: 0.341690306 | J60: =AVERAGE(J59,J61) -> 96.71229889 | K60: 0.2313965029
C61: =AVERAGE(C57,C65) -> -101.5869066 | D61: 0.002651243842 | J61: =AVERAGE(J57,J65) -> 101.5869066 | K61: 0.002651243842
C62: =AVERAGE(C61,C63) -> -96.71229889 | D62: 0.2313965029 | J62: =AVERAGE(J61,J63) -> 106.4615143 | K62: 0.341690306
C63: =AVERAGE(C61,C65) -> -91.83769119 | D63: 1.037436931 | J63: =AVERAGE(J61,J65) -> 111.336122 | K63: 1.262687495
C64: =AVERAGE(C63,C65) -> -86.96308349 | D64: 2.456058518 | J64: =AVERAGE(J63,J65) -> 116.2107297 | K64: 2.806647333
B65: L4 | C65: -82.08847579 | D65: 4.556823824 | I65: R4 | J65: 121.0853374 | K65: 5.051582497

Sheet Roll Centre Positions (hidden)
B5: Y Roll Centre | D5: Ride Height (mm)
D6: 0 | E6: 2 | F6: 4 | G6: 6 | H6: 8 | I6: 10 | J6: 12 | K6: 14 | L6: 16 | M6: 18 | N6: 20 | O6: 22 | P6: 24
B7: Roll Angle (Deg) | C7: 0 | D7: 41.55715611 | E7: 38.04573217 | F7: 34.7034779 | G7: 31.50985033 | H7: 28.44811615 | I7: 25.50447109 | J7: 22.66838923 | K7: 19.9309983 | L7: 17.2851515 | M7: 14.72535656 | N7: 12.24728174 | O7: 9.847924958 | P7: 7.524919796
C8: 0.5 | D8: 41.55613852 | E8: 38.04428967 | F8: 34.70179022 | G8: 31.50796067 | H8: 28.44596648 | I8: 25.50224492 | J8: 22.66604889 | K8: 19.92838917 | L8: 17.28231684 | M8: 14.72234567 | N8: 12.24400361 | O8: 9.84433431 | P8: 7.520770515
C9: 1 | D9: 41.55313826 | E9: 38.04028364 | F9: 34.6970317 | G9: 31.50239133 | H9: 28.43976876 | I9: 25.49558356 | J9: 22.65869569 | K9: 19.92049887 | L9: 17.27395975 | M9: 14.71331466 | N9: 12.23425759 | O9: 9.833434156 | P9: 7.508408882
C10: 1.5 | D10: 41.5479288 | E10: 38.03348688 | F10: 34.68892519 | G10: 31.49321963 | H10: 28.42947964 | I10: 25.4842591 | J10: 22.64647832 | K10: 19.90741041 | L10: 17.25992869 | M10: 14.6981608 | N10: 12.21787369 | O10: 9.815320003 | P10: 7.487680412
C11: 2 | D11: 41.54072118 | E11: 38.02408288 | F11: 34.67762822 | G11: 31.48015133 | H11: 28.41502483 | I11: 25.46846571 | J11: 22.62948509 | K11: 19.88923975 | L11: 17.24028902 | M11: 14.6770686 | N11: 12.19489213 | O11: 9.7899472 | P11: 7.458687084
C12: 2.5 | D12: 41.53151947 | E12: 38.01194941 | F12: 34.66299515 | G12: 31.46350238 | H12: 28.39644152 | I12: 25.44829657 | J12: 22.60755648 | K12: 19.86558034 | L12: 17.21505193 | M12: 14.64990759 | N12: 12.16549748 | O12: 9.757429811 | P12: 7.421440945
C13: 3 | D13: 41.52020253 | E13: 37.99710046 | F13: 34.64523288 | G13: 31.4431253 | H13: 28.37374054 | I13: 25.42344393 | J13: 22.58079752 | K13: 19.83689625 | L13: 17.18419436 | M13: 14.61681852 | N13: 12.12953252 | O13: 9.717696157 | P13: 7.376060655
C14: 3.5 | D14: 41.50687066 | E14: 37.97973837 | F14: 34.62415352 | G14: 31.41905888 | H14: 28.34692308 | I14: 25.39417989 | J14: 22.54909224 | K14: 19.80290812 | L14: 17.14781889 | M14: 14.57773742 | N14: 12.08710436 | O14: 9.670914119 | P14: 7.32249434
C15: 4 | D15: 41.49174027 | E15: 37.95951435 | F15: 34.59997614 | G15: 31.3912236 | H15: 28.31605634 | I15: 25.36034875 | J15: 22.51265193 | K15: 19.76379746 | L15: 17.10589051 | M15: 14.53261458 | N15: 12.03823928 | O15: 9.616864572 | P15: 7.260771098
C16: 4.5 | D16: 41.47453882 | E16: 37.93682381 | F16: 34.57255201 | G16: 31.35984491 | H16: 28.28104317 | I16: 25.32211604 | J16: 22.47141967 | K16: 19.7194666 | L16: 17.05843058 | M16: 14.48158978 | N16: 11.98288249 | O16: 9.555794075 | P16: 7.191122056
C17: 5 | D17: 41.45525473 | E17: 37.91144664 | F17: 34.541979 | G17: 31.32470601 | H17: 28.24198654 | I17: 25.27937423 | J17: 22.42528073 | K17: 19.66991348 | L17: 17.0053527 | M17: 14.42461098 | N17: 11.92110477 | O17: 9.487715095 | P17: 7.11345367
C18: 5.5 | D18: 41.43419079 | E18: 37.88346272 | F18: 34.50822538 | G18: 31.28570988 | H18: 28.19859601 | I18: 25.23197454 | J18: 22.3740483 | K18: 19.61503089 | L18: 16.9465966 | M18: 14.36155384 | N18: 11.85284452 | O18: 9.412434506 | P18: 7.027694302
C19: 6 | D19: 41.41080342 | E19: 37.85259367 | F19: 34.47096678 | G19: 31.24336587 | H19: 28.15134041 | I19: 25.18039524 | J19: 22.31838173 | K19: 19.55524293 | L19: 16.88257938 | M19: 14.29278836 | N19: 11.77839771 | O19: 9.330377828 | P19: 6.934282077
C20: 6.5 | D20: 41.38585932 | E20: 37.81947469 | F20: 34.43093976 | G20: 31.19726203 | H20: 28.1001491 | I20: 25.12441094 | J20: 22.25784814 | K20: 19.49033983 | L20: 16.81316217 | M20: 14.21833328 | N20: 11.69770446 | O20: 9.241489946 | P20: 6.833165226
C21: 7 | D21: 41.35915276 | E21: 37.78384588 | F21: 34.38783879 | G21: 31.14767203 | H21: 28.04479637 | I21: 25.06384632 | J21: 22.19259761 | K21: 19.42038626 | L21: 16.73813695 | M21: 14.13788216 | N21: 11.61071854 | O21: 9.145810781 | P21: 6.724455602
C22: 7.5 | D22: 41.33078019 | E22: 37.7456925 | F22: 34.34160108 | G22: 31.09455026 | H22: 27.98547406 | I22: 24.99916248 | J22: 22.12255425 | K22: 19.34527165 | L22: 16.65783701 | M22: 14.05168853 | N22: 11.51757904 | O22: 9.043418174 | P22: 6.608156095
C23: 8 | D23: 41.3003911 | E23: 37.70507047 | F23: 34.29217954 | G23: 31.03770766 | H23: 27.92215838 | I23: 24.9298798 | J23: 22.04789001 | K23: 19.26517509 | L23: 16.57205953 | M23: 13.95976016 | N23: 11.41833304 | O23: 8.934317914 | P23: 6.48451741
C24: 8.5 | D24: 41.26840353 | E24: 37.66201087 | F24: 34.23980744 | G24: 30.97730701 | H24: 27.85486522 | I24: 24.85628002 | J24: 21.9683349 | K24: 19.17994773 | L24: 16.48104996 | M24: 13.86221339 | N24: 11.31287434 | O24: 8.818663514 | P24: 6.353563337
C25: 9 | D25: 41.23474771 | E25: 37.6164665 | F25: 34.18445405 | G25: 30.91350628 | H25: 27.7835347 | I25: 24.77827237 | J25: 21.88429559 | K25: 19.08976539 | L25: 16.38465823 | M25: 13.75898549 | N25: 11.20148051 | O25: 8.696479025 | P25: 6.215406478
C26: 9.5 | D26: 41.19957361 | E26: 37.5687657 | F26: 34.12590429 | G26: 30.84601351 | H26: 27.70829504 | I26: 24.69601572 | J26: 21.79535356 | K26: 18.99454787 | L26: 16.28297474 | M26: 13.65012601 | N26: 11.08417425 | O26: 8.567953983 | P26: 6.070322542
C27: 10 | D27: 41.1628072 | E27: 37.5184063 | F27: 34.06460498 | G27: 30.77510098 | H27: 27.62907391 | I27: 24.60943992 | J27: 21.70183873 | K27: 18.89445618 | L27: 16.17604486 | M27: 13.53572939 | N27: 10.96089982 | O27: 8.432997396 | P27: 5.918194817
B29: X Roll Centre | D29: Ride Height (mm)
D30: =D6 -> 0 | E30: =E6 -> 2 | F30: 4 | G30: 6 | H30: 8 | I30: 10 | J30: 12 | K30: 14 | L30: 16 | M30: 18 | N30: 20 | O30: 22 | P30: 24
B31: Roll Angle (Deg) | C31: =C7 -> 0 | D31: -8.249763324e-15 | E31: 1.817149233e-13 | F31: -3.211438098e-13 | G31: 5.619730203e-13 | H31: -3.342170878e-12 | I31: -5.00702071e-13 | J31: -3.931051996e-14 | K31: 5.387816616e-14 | L31: 1.039179789e-14 | M31: -4.282401082e-14 | N31: 0 | O31: 9.187866188e-14 | P31: -3.600129115e-12
C32: 0.5 | D32: 1.245842631 | E32: 1.245378579 | F32: 1.254073405 | G32: 1.272124408 | H32: 1.300858718 | I32: 1.341684635 | J32: 1.396678127 | K32: 1.470275347 | L32: 1.569125754 | M32: 1.701348425 | N32: 1.886422875 | O32: 2.155980336 | P32: 2.579517073
C33: 1 | D33: 2.491141659 | E33: 2.491044728 | F33: 2.50811117 | G33: 2.544615071 | H33: 2.601694359 | I33: 2.683060224 | J33: 2.793587836 | K33: 2.941209116 | L33: 3.137435176 | M33: 3.402984604 | N33: 3.77208125 | O33: 4.309872208 | P33: 5.157536515
C34: 1.5 | D34: 3.737814301 | E34: 3.736713697 | F34: 3.762730323 | G34: 3.816862232 | H34: 3.90234001 | I34: 4.024220171 | J34: 4.189904219 | K34: 4.410951196 | L34: 4.706024238 | M34: 5.103712295 | N34: 5.657002447 | O34: 6.46332573 | P34: 7.733778005
C35: 2 | D35: 4.984439926 | E35: 4.982845 | F35: 5.016885622 | G35: 5.089020015 | H35: 5.203365351 | I35: 5.365329161 | J35: 5.586294289 | K35: 5.880349601 | L35: 6.272918868 | M35: 6.803481782 | N35: 7.540423474 | O35: 8.614921769 | P35: 10.3075524
C36: 2.5 | D36: 6.232300389 | E36: 6.2296807 | F36: 6.272249763 | G36: 6.361409159 | H36: 6.503705937 | I36: 6.706317329 | J36: 6.981811227 | K36: 7.349221058 | L36: 7.839157812 | M36: 8.501378218 | N36: 9.421751551 | O36: 10.76301651 | P36: 12.87489697
C37: 3 | D37: 7.481181822 | E37: 7.477348937 | F37: 7.527222454 | G37: 7.634814027 | H37: 7.804490629 | I37: 8.046522946 | J37: 8.376516388 | K37: 8.816530583 | L37: 9.404198952 | M37: 10.19759412 | N37: 11.30104198 | O37: 12.90780896 | P37: 15.43861795
C38: 3.5 | D38: 8.731123068 | E38: 8.725675699 | F38: 8.783482729 | G38: 8.907256155 | H38: 9.104854474 | I38: 9.38703085 | J38: 9.770554873 | K38: 10.28339719 | L38: 10.96725802 | M38: 11.89203919 | N38: 13.17653257 | O38: 15.04875177 | P38: 17.99416028
C39: 4 | D39: 9.983002198 | E39: 9.975362033 | F39: 10.03999732 | G39: 10.18049616 | H39: 10.40508083 | I39: 10.72589159 | J39: 11.16366942 | K39: 11.74845333 | L39: 12.52887403 | M39: 13.58334385 | N39: 15.04862471 | O39: 17.18373963 | P39: 20.54329218
C40: 4.5 | D40: 11.23628887 | E40: 11.22614472 | F40: 11.29727254 | G40: 11.4539143 | H40: 11.70518133 | I40: 12.06489136 | J40: 12.55626083 | K40: 13.21258783 | L40: 14.08844836 | M40: 15.27159073 | N40: 16.91680524 | O40: 19.31371787 | P40: 23.08354191
C41: 5 | D41: 12.49141137 | E41: 12.47827725 | F41: 12.5552418 | G41: 12.72784702 | H41: 13.00501125 | I41: 13.40334015 | J41: 13.94723407 | K41: 14.67423698 | L41: 15.64497335 | M41: 16.95685164 | N41: 18.78083945 | O41: 21.43760363 | P41: 25.61427014
C42: 5.5 | D42: 13.74890966 | E42: 13.73193594 | F42: 13.81437077 | G42: 14.00075689 | H42: 14.30381129 | I42: 14.73943382 | J42: 15.33533369 | K42: 16.13249357 | L42: 17.19756689 | M42: 18.63691042 | N42: 20.63670562 | O42: 23.55143232 | P42: 28.13053914
C43: 6 | D43: 15.00812356 | E43: 14.98602887 | F43: 15.07319616 | G43: 15.27519107 | H43: 15.60354942 | I43: 16.07634784 | J43: 16.72371639 | K43: 17.59077671 | L43: 18.74847067 | M43: 20.31432125 | N43: 22.49113705 | O43: 25.65940636 | P43: 30.63777386
C44: 6.5 | D44: 16.27074383 | E44: 16.24331667 | F44: 16.33455352 | G44: 16.55020865 | H44: 16.902774 | I44: 17.41217721 | J44: 18.11066726 | K44: 19.04613149 | L44: 20.29654113 | M44: 21.9872835 | N44: 24.33752049 | O44: 27.7593473 | P44: 33.132391
C45: 7 | D45: 17.53658232 | E45: 17.50277061 | F45: 17.59706538 | G45: 17.82562184 | H45: 18.20215705 | I45: 18.74697966 | J45: 19.4956833 | K45: 20.49923569 | L45: 21.84084077 | M45: 23.65609559 | N45: 26.17869424 | O45: 29.85023493 | P45: 35.61254131
C46: 7.5 | D46: 18.80553295 | E46: 18.76443423 | F46: 18.86072971 | G46: 19.1017927 | H46: 19.50124083 | I46: 20.08112559 | J46: 20.87892812 | K46: 21.9495559 | L46: 23.3815148 | M46: 25.3197053 | N46: 28.01200006 | O46: 31.93074741 | P46: 38.07850781
C47: 8 | D47: 20.07809777 | E47: 20.02860462 | F47: 20.12624033 | G47: 20.37878753 | H47: 20.79991325 | I47: 21.41439331 | J47: 22.26012389 | K47: 23.39698579 | L47: 24.91829843 | M47: 26.97727742 | N47: 29.83800617 | O47: 34.00074308 | P47: 40.5277539
C48: 8.5 | D48: 21.35473534 | E48: 21.29527815 | F48: 21.39341707 | G48: 21.65607002 | H48: 22.09836789 | I48: 22.74596779 | J48: 23.63950506 | K48: 24.84124941 | L48: 26.45096818 | M48: 28.62928998 | N48: 31.65615272 | O48: 36.05883412 | P48: 42.96049709
C49: 9 | D49: 22.6350955 | E49: 22.56481059 | F49: 22.66226239 | G49: 22.93441164 | H49: 23.39706213 | I49: 24.07651258 | J49: 25.01650361 | K49: 26.28263289 | L49: 27.97900661 | M49: 30.27527129 | N49: 33.46604063 | O49: 38.10642326 | P49: 45.37429709
C50: 9.5 | D50: 23.92046219 | E50: 23.83763098 | F50: 23.93285032 | G50: 24.2134672 | H50: 24.6954179 | I50: 25.40665704 | J50: 26.39184252 | K50: 27.72020246 | L50: 29.50172005 | M50: 31.91386261 | N50: 35.26691524 | O50: 40.13924028 | P50: 47.76836891
C51: 10 | D51: 25.21027995 | E51: 25.11370262 | F51: 25.20614817 | G51: 25.49318418 | H51: 25.9933671 | I51: 26.73481926 | J51: 27.76423101 | K51: 29.15473438 | L51: 31.01991969 | M51: 33.54684893 | N51: 37.05817423 | O51: 42.16124329 | P51: 50.14407179
B53: LH Camber | D53: Ride Height (mm)
D54: =D30 -> 0 | E54: 2 | F54: 4 | G54: 6 | H54: 8 | I54: 10 | J54: 12 | K54: 14 | L54: 16 | M54: 18 | N54: 20 | O54: 22 | P54: 24
B55: Roll Angle (Deg) | C55: =C31 -> 0 | D55: -3.178652853 | E55: -3.144561739 | F55: -3.121751812 | G55: -3.109689868 | H55: -3.107948631 | I55: -3.116199732 | J55: -3.134202299 | K55: -3.161797736 | L55: -3.198906807 | M55: -3.245523673 | N55: -3.301718296 | O55: -3.367630235 | P55: -3.443485412
C56: 0.5 | D56: -2.893448299 | E56: -2.855588421 | F56: -2.829140811 | G56: -2.813544597 | H56: -2.808349736 | I56: -2.813205877 | J56: -2.827853047 | K56: -2.852114719 | L56: -2.885890037 | M56: -2.929158108 | N56: -2.981966437 | O56: -3.044436561 | P56: -3.116778962
C57: 1 | D57: -2.610097425 | E57: -2.5683787 | F57: -2.538205449 | G57: -2.518994061 | H57: -2.510270672 | I57: -2.511663341 | J57: -2.52289218 | K57: -2.543760178 | L57: -2.57414981 | M57: -2.614018733 | N57: -2.663398286 | O57: -2.722394861 | P57: -2.791184322
C58: 1.5 | D58: -2.328651012 | E58: -2.282972323 | F58: -2.248986779 | G58: -2.226077845 | H58: -2.213749583 | I58: -2.211608891 | J58: -2.219354522 | K58: -2.236770132 | L58: -2.263717533 | M58: -2.300140693 | N58: -2.346046207 | O58: -2.401525013 | P58: -2.46673235
C59: 2 | D59: -2.049149907 | E59: -1.999416511 | F59: -1.961524982 | G59: -1.934834503 | H59: -1.918825341 | I59: -1.91307894 | J59: -1.917274454 | K59: -1.931176006 | L59: -1.954628741 | M59: -1.987551629 | N59: -2.029940217 | O59: -2.081859449 | P59: -2.143447173
C60: 2.5 | D60: -1.771647181 | E60: -1.717755093 | F60: -1.675866211 | G60: -1.645307246 | H60: -1.625536134 | I60: -1.616111408 | J60: -1.616689368 | K60: -1.627015382 | L60: -1.646913759 | M60: -1.676286864 | N60: -1.715107723 | O60: -1.763427503 | P60: -1.821364285
C61: 3 | D61: -1.496185971 | E61: -1.43803357 | F61: -1.392050143 | G61: -1.357538857 | H61: -1.333922972 | I61: -1.320743648 | J61: -1.31763502 | K61: -1.324321094 | L61: -1.34060707 | M61: -1.366375509 | N61: -1.401581768 | O61: -1.446258849 | P61: -1.500500335
C62: 3.5 | D62: -1.222814744 | E62: -1.160299385 | F62: -1.110124682 | G62: -1.071566018 | H62: -1.04402486 | I62: -1.027015389 | J62: -1.020148249 | K62: -1.023128899 | L62: -1.035742644 | M62: -1.057850966 | N62: -1.089394913 | O62: -1.130380186 | P62: -1.180895108
C63: 4 | D63: -0.9515918942 | E63: -0.8845967208 | F63: -0.8301326168 | G63: -0.7874353423 | H63: -0.7558835262 | I63: -0.7349631626 | J63: -0.7242665531 | K63: -0.7234750066 | L63: -0.732354336 | M63: -0.7507487611 | N63: -0.7785768318 | O63: -0.8158304644 | P63: -0.862571486
C64: 4.5 | D64: -0.6825557714 | E64: -0.6109772378 | F64: -0.5521188575 | G64: -0.5051906712 | H64: -0.4695395656 | I64: -0.444629495 | J64: -0.4300285427 | K64: -0.4253956985 | L64: -0.4304776564 | M64: -0.4451001203 | N64: -0.4691608958 | O64: -0.5026323769 | P64: -0.5455578389
C65: 5 | D65: -0.4157571494 | E65: -0.3394855045 | F65: -0.2761297658 | G65: -0.2248743543 | H65: -0.1850354341 | I65: -0.1560533302 | J65: -0.1374716282 | K65: -0.1289278656 | L65: -0.1301487752 | M65: -0.1409391155 | N65: -0.1611785824 | O65: -0.1908188884 | P65: -0.2298872333
C66: 5.5 | D66: -0.1512566584 | E66: -0.0701716574 | F66: -0.002213573275 | G66: 0.05347952122 | H66: 0.09759331165 | I66: 0.1307310714 | J66: 0.1533692646 | K66: 0.165892944 | L66: 0.168597235 | M66: 0.1616974019 | N66: 0.1453311224 | O66: 0.1195686524 | P66: 0.08439919049
C67: 6 | D67: 0.1109175251 | E67: 0.1969334092 | F67: 0.2696009978 | G67: 0.3298050503 | H67: 0.3782901166 | I67: 0.4156696276 | J67: 0.442445763 | K67: 0.4590256669 | L67: 0.4657253903 | M67: 0.4627795926 | N67: 0.4503479955 | O67: 0.428513578 | P67: 0.3972923046
C68: 6.5 | D68: 0.3706787175 | E68: 0.4617421941 | F68: 0.5392314692 | G68: 0.6040680138 | H68: 0.6570171825 | I68: 0.6987269105 | J68: 0.7297222342 | K68: 0.7504336486 | L68: 0.7611972825 | M68: 0.7622696923 | N68: 0.7538282576 | O68: 0.7359782133 | P68: 0.7087522002
C69: 7 | D69: 0.6279829856 | E69: 0.7242199694 | F69: 0.8066457703 | G69: 0.8762185114 | H69: 0.9337305068 | I69: 0.9798629217 | J69: 1.01515776 | K69: 1.040076583 | L69: 1.054976304 | M69: 1.060131084 | N69: 1.05574062 | O69: 1.041928463 | P69: 1.018745992
C70: 7.5 | D70: 0.8827782499 | E70: 0.9843174045 | F70: 1.071797766 | G70: 1.146207943 | H70: 1.208384251 | I70: 1.259025884 | J70: 1.29871137 | K70: 1.327916362 | L70: 1.34702331 | M70: 1.356327597 | N70: 1.356048787 | O70: 1.346330105 | P70: 1.327242149
C71: 8 | D71: 1.135018504 | E71: 1.241980109 | F71: 1.334633971 | G71: 1.413992737 | H71: 1.480934148 | I71: 1.536180042 | J71: 1.580339586 | K71: 1.613911264 | L71: 1.637300697 | M71: 1.650822646 | N71: 1.654717923 | O71: 1.649149374 | P71: 1.634207862
C72: 8.5 | D72: 1.384633757 | E72: 1.497157383 | F72: 1.595100674 | G72: 1.679526431 | H72: 1.751332618 | I72: 1.811280935 | J72: 1.860002791 | K72: 1.898022745 | L72: 1.925767445 | M72: 1.943577943 | N72: 1.951711942 | O72: 1.950351952 | P72: 1.939610372
C73: 9 | D73: 1.631580771 | E73: 1.749796295 | F73: 1.853149061 | G73: 1.942749641 | H73: 2.019530666 | I73: 2.084281877 | J73: 2.137653334 | K73: 2.180205903 | L73: 2.212385722 | M73: 2.234555628 | N73: 2.246994093 | O73: 2.249903418 | P73: 2.243414567
C74: 9.5 | D74: 1.875783373 | E74: 1.999829385 | F74: 2.108735634 | G74: 2.20362492 | H74: 2.285482226 | I74: 2.355128672 | J74: 2.41325097 | K74: 2.460422958 | L74: 2.497116213 | M74: 2.523718952 | N74: 2.5405269 | O74: 2.547767533 | P74: 2.545588076
C75: 10 | D75: 2.117202248 | E75: 2.247223549 | F75: 2.361783379 | G75: 2.462096449 | H75: 2.549142338 | I75: 2.623787482 | J75: 2.686751888 | K75: 2.738624662 | L75: 2.77991466 | M75: 2.811024 | N75: 2.832273543 | O75: 2.843907949 | P75: 2.846095911
B77: RH Camber | D77: Ride Height (mm)
D78: =D54 -> 0 | E78: =E54 -> 2 | F78: 4 | G78: 6 | H78: 8 | I78: 10 | J78: 12 | K78: 14 | L78: 16 | M78: 18 | N78: 20 | O78: 22 | P78: 24
B79: Roll Angle (Deg) | C79: =C55 -> 0 | D79: -3.178652853 | E79: -3.144561739 | F79: -3.121751812 | G79: -3.109689868 | H79: -3.107948631 | I79: -3.116199732 | J79: -3.134202299 | K79: -3.161797736 | L79: -3.198906807 | M79: -3.245523673 | N79: -3.301718296 | O79: -3.367630235 | P79: -3.443485412
C80: 0.5 | D80: -3.465668974 | E80: -3.435252424 | F80: -3.415995893 | G80: -3.407390031 | H80: -3.409030091 | I80: -3.420608585 | J80: -3.441903217 | K80: -3.472776902 | L80: -3.513169059 | M80: -3.563086332 | N80: -3.622625518 | O80: -3.691940166 | P80: -3.771278101
C81: 1 | D81: -3.754455068 | E81: -3.727620487 | F81: -3.711834171 | G81: -3.706606646 | H81: -3.711556791 | I81: -3.726396211 | J81: -3.750925189 | K81: -3.785022382 | L81: -3.828641227 | M81: -3.88181759 | N81: -3.944655847 | O81: -4.017338236 | P81: -4.100126226
C82: 1.5 | D82: -4.044959634 | E82: -4.021623477 | F82: -4.009225208 | G82: -4.007301508 | H82: -4.01549194 | I82: -4.033529175 | J82: -4.06123187 | K82: -4.098496591 | L82: -4.145298525 | M82: -4.201687397 | N82: -4.267786402 | O82: -4.343800616 | P82: -4.43001089
C83: 2 | D83: -4.337146592 | E83: -4.317220633 | F83: -4.308130996 | G83: -4.309437075 | H83: -4.320800407 | I83: -4.341972031 | J83: -4.372790617 | K83: -4.413168135 | L83: -4.463104123 | M83: -4.522662972 | N83: -4.591987168 | O83: -4.67129962 | P83: -4.7609038
C84: 2.5 | D84: -4.630970366 | E84: -4.614370716 | F84: -4.608511908 | G84: -4.612975944 | H84: -4.627445173 | I84: -4.651689653 | J84: -4.685568466 | K84: -4.72901195 | L84: -4.782031207 | M84: -4.844716329 | N84: -4.917224703 | O84: -4.999802255 | P84: -5.092772429
C85: 3 | D85: -4.926389468 | E85: -4.913034068 | F85: -4.910330236 | G85: -4.917882574 | H85: -4.935392624 | I85: -4.962649904 | J85: -4.999531988 | K85: -5.045986748 | L85: -5.102049439 | M85: -5.167816875 | N85: -5.243477471 | O85: -5.329287093 | P85: -5.425597031
C86: 3.5 | D86: -5.223363524 | E86: -5.213171918 | F86: -5.21354843 | G86: -5.224118784 | H86: -5.244606745 | I86: -5.27481942 | J86: -5.314651462 | K86: -5.364070282 | L86: -5.423125201 | M86: -5.491938512 | N86: -5.570711182 | O86: -5.659723031 | P86: -5.759347121
C87: 4 | D87: -5.521851686 | E87: -5.514744571 | F87: -5.518128789 | G87: -5.531651119 | H87: -5.555053124 | I87: -5.588162375 | J87: -5.630891675 | K87: -5.683225081 | L87: -5.745232413 | M87: -5.817051121 | N87: -5.898900847 | O87: -5.991088186 | P87: -6.094004732
C88: 4.5 | D88: -5.82181366 | E88: -5.817714362 | F88: -5.82403498 | G88: -5.840442362 | H88: -5.866698793 | I88: -5.902648811 | J88: -5.948223559 | K88: -6.003426219 | L88: -6.068340425 | M88: -6.143124536 | N88: -6.228021573 | O88: -6.323353634 | P88: -6.429534425
C89: 5 | D89: -6.123209792 | E89: -6.122043307 | F89: -6.131230367 | G89: -6.15045952 | H89: -6.179509027 | I89: -6.218246354 | J89: -6.266615048 | K89: -6.324639392 | L89: -6.392420055 | M89: -6.47013408 | N89: -6.558045796 | O89: -6.656493068 | P89: -6.765918153
C90: 5.5 | D90: -6.426001582 | E90: -6.427694176 | F90: -6.439679733 | G90: -6.461666222 | H90: -6.493452067 | I90: -6.534920295 | J90: -6.586035208 | K90: -6.646834838 | L90: -6.717442358 | M90: -6.798049944 | N90: -6.888938549 | O90: -6.990480349 | P90: -7.103128314
C91: 6 | D91: -6.730150387 | E91: -6.734630029 | F91: -6.749347489 | G91: -6.774029208 | H91: -6.808495089 | I91: -6.85264164 | J91: -6.906452392 | K91: -6.969986563 | L91: -7.043377312 | M91: -7.126844323 | N91: -7.220687334 | O91: -7.325289484 | P91: -7.441139861
C92: 6.5 | D92: -7.035618671 | E92: -7.042814879 | F92: -7.060198734 | G92: -7.087516582 | H92: -7.124602618 | I92: -7.171376937 | J92: -7.227839254 | K92: -7.2940604 | L92: -7.370197322 | M92: -7.45648472 | N92: -7.553249267 | O92: -7.66089462 | P92: -7.779927863
C93: 7 | D93: -7.342369023 | E93: -7.352212766 | F93: -7.372198455 | G93: -7.402092124 | H93: -7.441747481 | I93: -7.491098651 | J93: -7.550161774 | K93: -7.619029139 | L93: -7.697878079 | M93: -7.786956472 | N93: -7.88661151 | O93: -7.997270023 | P93: -8.119465143
C94: 7.5 | D94: -7.650364278 | E94: -7.662788306 | F94: -7.685312846 | G94: -7.717724116 | H94: -7.7598943 | I94: -7.811769781 | J94: -7.873392974 | K94: -7.944865765 | L94: -8.026384511 | M94: -8.118223233 | N94: -8.220737601 | O94: -8.334388037 | P94: -8.459733998
C95: 8 | D95: -7.959568967 | E95: -7.974506552 | F95: -7.999510046 | G95: -8.034382447 | H95: -8.079011686 | I95: -8.133367978 | J95: -8.197499356 | K95: -8.271537951 | L95: -8.355695218 | M95: -8.450257161 | N95: -8.555604672 | O95: -8.67222735 | P95: -8.800700717
C96: 8.5 | D96: -8.269946702 | E96: -8.287332616 | F96: -8.314754394 | G96: -8.352031735 | H96: -8.399068992 | I96: -8.455855638 | J96: -8.522459215 | K96: -8.599021199 | L96: -8.685776303 | M96: -8.783031607 | N96: -8.891192275 | O96: -9.010757719 | P96: -9.142347203
C97: 9 | D97: -8.581461682 | E97: -8.601233095 | F97: -8.631012965 | G97: -8.670640186 | H97: -8.720038079 | I97: -8.779207299 | J97: -8.848232994 | K97: -8.927285026 | L97: -9.016604563 | M97: -9.116522791 | N97: -9.227466437 | O97: -9.349961565 | P97: -9.484646717
C98: =C74 -> 9.5 | D98: -8.894079523 | E98: -8.916172559 | F98: -8.948255422 | G98: -8.990179114 | H98: -9.041884627 | I98: -9.103392943 | J98: -9.174805104 | K98: -9.256301207 | L98: -9.348149243 | M98: -9.450700375 | N98: -9.56440161 | O98: -9.689800151 | P98: -9.827568781
C99: 10 | D99: -9.207765124 | E99: -9.232121168 | F99: -9.26644723 | G99: -9.310613462 | H99: -9.364579473 | I99: -9.42837916 | J99: -9.502135107 | K99: -9.586041668 | L99: -9.680386652 | M99: -9.785543454 | N99: -9.901976103 | O99: -10.03026757 | P99: -10.17110454

Sheet Roll Centre Comparisons
B2: Camber target | E2: -1
B3: Ride height | E3: 15
B5: Specification 1 | P5: Y Roll Centre | R5: Ride Height (mm) | AF5: Y Roll Centre | AH5: Ride Height (mm)
B6: ='Lookup Tables'!B3 -> Lower Gearbox Housings | G6: Std | I6: ='Lookup Tables'!B9 -> Upper Link | N6: 34 | R6: 0 | S6: 2 | T6: 4 | U6: 6 | V6: 8 | W6: 10 | X6: 12 | Y6: 14 | Z6: 16 | AA6: 18 | AB6: 20 | AC6: 22 | AD6: 24 | AH6: =R6 -> 0 | AI6: =S6 -> 2 | AJ6: =T6 -> 4 | AK6: =U6 -> 6 | AL6: 8 | AM6: 10 | AN6: 12 | AO6: 14 | AP6: 16 | AQ6: 18 | AR6: 20 | AS6: 22 | AT6: =AD6 -> 24
B7: ='Lookup Tables'!B4 -> Antisquat Spacers | G7: 0 | I7: ='Lookup Tables'!B10 -> Upper Link Spacers | N7: 6 | P7: Roll Angle (Deg) | Q7: 0 | R7: -39.51731281 | S7: -36.88392183 | T7: -34.26077567 | U7: -31.64704951 | V7: -29.04187308 | W7: -26.44494675 | X7: -23.85503012 | Y7: -21.2720701 | Z7: -18.69514637 | AA7: -16.1237645 | AB7: -13.55739119 | AC7: -10.9953753 | AD7: -8.437566806 | AE7: =HLOOKUP($BR$28,R6:AD27,2) -> -26.44494675 | AF7: Roll Angle (Deg) | AG7: =Q7 -> 0 | AH7: -36.99518808 | AI7: -34.61382916 | AJ7: -32.22539042 | AK7: -29.83126627 | AL7: -27.43274816 | AM7: -25.03065756 | AN7: -22.62598816 | AO7: -20.21909782 | AP7: -17.81082791 | AQ7: -15.40191464 | AR7: -12.99255201 | AS7: -10.58323888 | AT7: -8.174782682 | AU7: =HLOOKUP($BR$28,AH6:AT27,2) -> -25.03065756
B8: ='Lookup Tables'!B5 -> Rear Toe Block | G8: 3 | I8: ='Lookup Tables'!B11 -> Upper Ball Stud Spacers | N8: 0 | Q8: 0.5 | R8: -39.13286319 | S8: -36.48672123 | T8: -33.85219619 | U8: -31.22795048 | V8: -28.61401053 | W8: -26.00885094 | X8: -23.41176604 | Y8: -20.82272037 | Z8: -18.24034025 | AA8: -15.6644372 | AB8: -13.09468214 | AC8: -10.53005485 | AD8: -7.971068029 | AE8: =HLOOKUP($BR$28,R6:AD27,3) -> -26.00885094 | AG8: =Q8 -> 0.5 | AH8: -36.82137576 | AI8: -34.41475165 | AJ8: -32.00388846 | AK8: -29.58971231 | AL8: -27.17339805 | AM8: -24.75548524 | AN8: -22.33642346 | AO8: -19.91731302 | AP8: -17.49855205 | AQ8: -15.08040748 | AR8: -12.66355482 | AS8: -10.24856107 | AT8: -7.83623371 | AU8: =HLOOKUP($BR$28,AH6:AT27,3) -> -24.75548524
B9: ='Lookup Tables'!B6 -> Rear Hubs | G9: Std | I9: ='Lookup Tables'!B12 -> Lower Wishbones | N9: Std | Q9: 1 | R9: -38.74867586 | S9: -36.09036445 | T9: -33.44482507 | U9: -30.811278 | V9: -28.18876588 | W9: -25.57615703 | X9: -22.97298897 | Y9: -20.37839822 | Z9: -17.79179664 | AA9: -15.21271428 | AB9: -12.6410021 | AC9: -10.0761413 | AD9: -7.519576996 | AE9: =HLOOKUP($BR$28,R6:AD27,4) -> -25.57615703 | AG9: =Q9 -> 1 | AH9: -36.64321815 | AI9: -34.2124835 | AJ9: -31.77956517 | AK9: -29.34619572 | AL9: -26.91290525 | AM9: -24.47970235 | AN9: -22.04770922 | AO9: -19.61703815 | AP9: -17.18839969 | AQ9: -14.76251735 | AR9: -12.33956949 | AS9: -9.92020777 | AT9: -7.506105551 | AU9: =HLOOKUP($BR$28,AH6:AT27,4) -> -24.47970235
B10: ='Lookup Tables'!B7 -> Rear Hub Hole Pos. | G10: Centre | I10: ='Lookup Tables'!B13 -> Upper Wishbones | N10: 69.5 | Q10: 1.5 | R10: -38.36443096 | S10: -35.69460697 | T10: -33.03884199 | U10: -30.39629348 | V10: -27.76603001 | W10: -25.14681831 | X10: -22.53813213 | Y10: -19.93903817 | Z10: -17.34935256 | AA10: -14.76829059 | AB10: -12.19611203 | AC10: -9.633461557 | AD10: -7.082546281 | AE10: =HLOOKUP($BR$28,R6:AD27,5) -> -25.14681831 | AG10: 1.5 | AH10: -36.461538 | AI10: -34.00686378 | AJ10: -31.55326478 | AK10: -29.10113344 | AL10: -26.6511525 | AM10: -24.20377373 | AN10: -21.75924322 | AO10: -19.31809568 | AP10: -16.88075508 | AQ10: -14.44760766 | AR10: -12.01978976 | AS10: -9.598035523 | AT10: -7.184134617 | AU10: =HLOOKUP($BR$28,AH6:AT27,5) -> -24.20377373
B11: ='Lookup Tables'!B8 -> Rear Track | G11: Wide | I11: ='Lookup Tables'!B14 -> Tyres | N11: Minispike | Q11: 2 | R11: -37.98053854 | S11: -35.29966165 | T11: -32.63434775 | U11: -29.98366798 | V11: -27.346265 | W11: -24.72126672 | X11: -22.10777456 | Y11: -19.50498971 | Z11: -16.91291284 | AA11: -14.33122943 | AB11: -11.76042411 | AC11: -9.201940018 | AD11: -6.660096164 | AE11: =HLOOKUP($BR$28,R6:AD27,6) -> -24.72126672 | AG11: 2 | AH11: -36.27582645 | AI11: -33.79834719 | AJ11: -31.32461591 | AK11: -28.85471772 | AL11: -26.38903893 | AM11: -23.92794638 | AN11: -21.4717242 | AO11: -19.02085751 | AP11: -16.57538487 | AQ11: -14.13637957 | AR11: -11.70473145 | AS11: -9.281985702 | AT11: -6.870953222 | AU11: =HLOOKUP($BR$28,AH6:AT27,6) -> -23.92794638
Q12: 2.5 | R12: -37.59727806 | S12: -34.90607724 | T12: -32.23191019 | U12: -29.57319648 | V12: -26.9293971 | W12: -24.29909672 | X12: -21.68150217 | Y12: -19.07614534 | Z12: -16.48294892 | AA12: -13.90170302 | AB12: -11.33377943 | AC12: -8.782101512 | AD12: -6.252596998 | AE12: =HLOOKUP($BR$28,R6:AD27,7) -> -24.29909672 | AG12: 2.5 | AH12: -36.08733209 | AI12: -33.58793588 | AJ12: -31.094331 | AK12: -28.60727986 | AL12: -26.12658705 | AM12: -23.65252883 | AN12: -21.1854052 | AO12: -18.72545991 | AP12: -16.27303599 | AQ12: -13.82913377 | AR12: -11.39502416 | AS12: -8.972723583 | AT12: -6.566604926 | AU12: =HLOOKUP($BR$28,AH6:AT27,7) -> -23.65252883
B13: Specification 2 | Q13: 3 | R13: -37.21474842 | S13: -34.51368712 | T13: -31.83097007 | U13: -29.16537204 | V13: -26.51560221 | W13: -23.88069754 | X13: -21.25981864 | Y13: -18.65269955 | Z13: -16.059205 | AA13: -13.47974272 | AB13: -10.91662671 | AC13: -8.373409673 | AD13: -5.859790115 | AE13: =HLOOKUP($BR$28,R6:AD27,8) -> -23.88069754 | AG13: 3 | AH13: -35.89603901 | AI13: -33.37503058 | AJ13: -30.86299293 | AK13: -28.35927601 | AL13: -25.86429845 | AM13: -23.37799708 | AN13: -20.90038781 | AO13: -18.43231963 | AP13: -15.97380804 | AQ13: -13.52597174 | AR13: -11.09058591 | AS13: -8.670388932 | AT13: -6.271013532 | AU13: =HLOOKUP($BR$28,AH6:AT27,8) -> -23.37799708
B14: =B6 -> Lower Gearbox Housings | G14: Std | I14: =I6 -> Upper Link | N14: 39 | Q14: 3.5 | R14: -36.83334463 | S14: -34.12306629 | T14: -31.43245799 | U14: -28.76018936 | V14: -26.10502746 | W14: -23.46617477 | X14: -20.84273404 | Y14: -18.23451968 | Z14: -15.64174603 | AA14: -13.06550348 | AB14: -10.50836066 | AC14: -7.976056719 | AD14: -5.481788231 | AE14: =HLOOKUP($BR$28,R6:AD27,9) -> -23.46617477 | AG14: 3.5 | AH14: -35.70276217 | AI14: -33.16100204 | AJ14: -30.63032936 | AK14: -28.11080665 | AL14: -25.60213386 | AM14: -23.10421596 | AN14: -20.61722989 | AO14: -18.14159857 | AP14: -15.67783508 | AQ14: -13.22714404 | AR14: -10.7915408 | AS14: -8.374989992 | AT14: -5.984753583 | AU14: =HLOOKUP($BR$28,AH6:AT27,9) -> -23.10421596
B15: =B7 -> Antisquat Spacers | G15: 0 | I15: =I7 -> Upper Link Spacers | N15: 6 | Q15: 4 | R15: -36.45318667 | S15: -33.73371643 | T15: -31.0357941 | U15: -28.35754206 | V15: -25.69772652 | W15: -23.05555445 | X15: -20.43030458 | Y15: -17.82212113 | Z15: -15.23094236 | AA15: -12.65910964 | AB15: -10.10963327 | AC15: -7.590316156 | AD15: -5.118624309 | AE15: =HLOOKUP($BR$28,R6:AD27,10) -> -23.05555445 | AG15: 4 | AH15: -35.50758357 | AI15: -32.94541191 | AJ15: -30.39733159 | AK15: -27.86238064 | AL15: -25.34067075 | AM15: -22.83190081 | AN15: -20.33606455 | AO15: -17.85351031 | AP15: -15.38536302 | AQ15: -12.93280431 | AR15: -10.49820149 | AS15: -8.086693635 | AT15: -5.707675836 | AU15: =HLOOKUP($BR$28,AH6:AT27,10) -> -22.83190081
B16: Rear Toe Block | G16: 3 | I16: Upper Ball Stud Spacers | N16: 0 | Q16: 4.5 | R16: -36.07447282 | S16: -33.34663975 | T16: -30.64166517 | U16: -27.95783388 | V16: -25.2939346 | W16: -22.64913923 | X16: -20.02265229 | Y16: -17.41500009 | Z16: -14.82662062 | AA16: -12.26023749 | AB16: -9.720007472 | AC16: -7.216178165 | AD16: -4.770140643 | AE16: =HLOOKUP($BR$28,R6:AD27,11) -> -22.64913923 | AG16: 4.5 | AH16: -35.3110931 | AI16: -32.72925075 | AJ16: -30.16393499 | AK16: -27.61425887 | AL16: -25.0801347 | AM16: -22.56085454 | AN16: -20.0569108 | AO16: -17.56854223 | AP16: -15.09660739 | AQ16: -12.64299884 | AR16: -10.2109177 | AS16: -7.805744506 | AT16: -5.439966915 | AU16: =HLOOKUP($BR$28,AH6:AT27,11) -> -22.56085454
B17: Rear Hubs | G17: Std | I17: Lower Wishbones | N17: Std | Q17: 5 | R17: -35.69733753 | S17: -32.96133643 | T17: -30.24992716 | U17: -27.56115769 | V17: -24.89366451 | W17: -22.24678065 | X17: -19.61976865 | Y17: -17.01348404 | Z17: -14.42887428 | AA17: -11.8692676 | AB17: -9.339902737 | AC17: -6.853449054 | AD17: -4.436263066 | AE17: =HLOOKUP($BR$28,R6:AD27,12) -> -22.24678065 | AG17: 5 | AH17: -35.11364865 | AI17: -32.51249476 | AJ17: -29.93050312 | AK17: -27.36702036 | AL17: -24.82058708 | AM17: -22.29173837 | AN17: -19.78040002 | AO17: -17.28654992 | AP17: -14.81181205 | AQ17: -12.35818028 | AR17: -9.929396168 | AS17: -7.532405205 | AT17: -5.181754516 | AU17: =HLOOKUP($BR$28,AH6:AT27,12) -> -22.29173837
B18: Rear Hub Hole Pos. | G18: Centre | I18: Upper Wishbones | N18: 67 | Q18: 5.5 | R18: -35.32172885 | S18: -32.57829352 | T18: -29.86094374 | U18: -27.16743161 | V18: -24.49691038 | W18: -21.84841294 | X18: -19.22185445 | Y18: -16.6176237 | Z18: -14.03798838 | AA18: -11.48609477 | AB18: -8.969310235 | AC18: -6.502103134 | AD18: -4.116876844 | AE18: =HLOOKUP($BR$28,R6:AD27,13) -> -21.84841294 | AG18: 5.5 | AH18: -34.9157234 | AI18: -32.29575594 | AJ18: -29.69765398 | AK18: -27.12011109 | AL18: -24.56254743 | AM18: -22.0245517 | AN18: -19.50627717 | AO18: -17.00806836 | AP18: -14.53140164 | AQ18: -12.07868426 | AR18: -9.654243029 | AS18: -7.266716059 | AT18: -4.933223233 | AU18: =HLOOKUP($BR$28,AH6:AT27,13) -> -22.0245517
B19: Rear Track | G19: Wide | I19: Tyres | N19: Minispike | Q19: 6 | R19: -34.94820115 | S19: -32.19751737 | T19: -29.47441886 | U19: -26.77694518 | V19: -24.10383553 | W19: -21.45436848 | X19: -18.82872485 | Y19: -16.22775864 | Z19: -13.65341545 | AA19: -11.11071355 | AB19: -8.607976138 | AC19: -6.162321928 | AD19: -3.81204559 | AE19: =HLOOKUP($BR$28,R6:AD27,14) -> -21.45436848 | AG19: 6 | AH19: -34.71736839 | AI19: -32.07932239 | AJ19: -29.46542166 | AK19: -26.87475625 | AL19: -24.30622749 | AM19: -21.75966938 | AN19: -19.23500718 | AO19: -16.73293886 | AP19: -14.25500819 | AQ19: -11.80413125 | AR19: -9.385513654 | AS19: -7.0087483 | AT19: -4.69429007 | AU19: =HLOOKUP($BR$28,AH6:AT27,14) -> -21.75966938
Q20: 6.5 | R20: -34.5769422 | S20: -31.81944981 | T20: -29.09092662 | U20: -26.38975234 | V20: -23.71464333 | W20: -21.0648237 | X20: -18.44078186 | Y20: -15.84355791 | Z20: -13.27590739 | AA20: -10.74346381 | AB20: -8.256058868 | AC20: -5.833886684 | AD20: -3.52166099 | AE20: =HLOOKUP($BR$28,R6:AD27,15) -> -21.0648237 | AG20: 6.5 | AH20: -34.51957401 | AI20: -31.86341793 | AJ20: -29.2344041 | AK20: -26.63080358 | AL20: -24.05199494 | AM20: -21.49750016 | AN20: -18.96698832 | AO20: -16.4617871 | AP20: -13.98333704 | AQ20: -11.53525752 | AR20: -9.123334218 | AS20: -6.758744726 | AT20: -4.46515959 | AU20: =HLOOKUP($BR$28,AH6:AT27,15) -> -21.49750016
B21: JW - Silverstone | G21: Store Pos.1 | I21: Position 2 | N21: Store Pos.1 | Q21: 7 | R21: -34.20763039 | S21: -31.44361466 | T21: -28.71038065 | U21: -26.00598152 | V21: -23.32923976 | W21: -20.679684 | X21: -18.05785737 | Y21: -15.46536196 | Z21: -12.90519269 | AA21: -10.38392422 | AB21: -7.913505219 | AC21: -5.517030882 | AD21: -3.245487868 | AE21: =HLOOKUP($BR$28,R6:AD27,16) -> -20.679684 | AG21: 7 | AH21: -34.32215867 | AI21: -31.64852066 | AJ21: -29.00458105 | AK21: -26.3886685 | AL21: -23.80000164 | AM21: -21.237759 | AN21: -18.70236373 | AO21: -16.19450739 | AP21: -13.71645291 | AQ21: -11.27196453 | AR21: -8.867886427 | AS21: -6.516881695 | AT21: -4.245539144 | AU21: =HLOOKUP($BR$28,AH6:AT27,16) -> -21.237759
Q22: 7.5 | R22: -33.84095604 | S22: -31.07070064 | T22: -28.33290606 | U22: -25.62556226 | V22: -22.94777842 | W22: -20.29911288 | X22: -17.68017427 | Y22: -15.09273158 | Z22: -12.54111336 | AA22: -10.03244483 | AB22: -7.580432614 | AC22: -5.211423539 | AD22: -2.983380182 | AE22: =HLOOKUP($BR$28,R6:AD27,17) -> -20.29911288 | AG22: 7.5 | AH22: -34.1259107 | AI22: -31.43493367 | AJ22: -28.77653442 | AK22: -26.14875867 | AL22: -23.55054222 | AM22: -20.98134381 | AN22: -18.44119042 | AO22: -15.93147493 | AP22: -13.45456488 | AQ22: -11.01456748 | AR22: -8.619275217 | AS22: -6.283075006 | AT22: -4.035757171 | AU22: =HLOOKUP($BR$28,AH6:AT27,17) -> -20.98134381
B23: Std | D23: 34 | G23: Store Pos.2 | I23: Std | K23: 34 | N23: Store Pos.2 | Q23: 8 | R23: -33.47697711 | S23: -30.70073517 | T23: -27.95865967 | U23: -25.24882618 | V23: -22.57034594 | W23: -19.92302182 | X23: -17.30752904 | Y23: -14.7261902 | Z23: -12.18399065 | AA23: -9.689201903 | AB23: -7.256842936 | AC23: -4.917092896 | AD23: -2.735124813 | AE23: =HLOOKUP($BR$28,R6:AD27,18) -> -19.92302182 | AG23: 8 | AH23: -33.93087742 | AI23: -31.22298344 | AJ23: -28.55042138 | AK23: -25.91101181 | AL23: -23.30361945 | AM23: -20.72790902 | AN23: -18.18378843 | AO23: -15.67304733 | AP23: -13.19776888 | AQ23: -10.76310605 | AR23: -8.377708185 | AS23: -6.057554006 | AT23: -3.835820138 | AU23: =HLOOKUP($BR$28,AH6:AT27,18) -> -20.72790902
B24: 0 | D24: 2 | I24: 0 | K24: 4 | Q24: 8.5 | R24: -33.11567761 | S24: -30.33369092 | T24: -27.58761738 | U24: -24.87577594 | V24: -22.19704007 | W24: -19.55155708 | X24: -16.94006284 | Y24: -14.3657118 | Z24: -11.83373957 | AA24: -9.353674751 | AB24: -6.942541969 | AC24: -4.634191695 | AD24: -2.500620632 | AE24: =HLOOKUP($BR$28,R6:AD27,19) -> -19.55155708 | AG24: 8.5 | AH24: -33.73781398 | AI24: -31.01324274 | AJ24: -28.32660558 | AK24: -25.67597755 | AL24: -23.060048 | AM24: -20.47795011 | AN24: -17.93052879 | AO24: -15.41905548 | AP24: -12.94625056 | AQ24: -10.5178515 | AR24: -8.143288948 | AS24: -5.840278435 | AT24: -3.645743015 | AU24: =HLOOKUP($BR$28,AH6:AT27,19) -> -20.47795011
B25: 3 | D25: 0 | G25: Load Pos.1 | I25: 3 | K25: 0 | N25: Load Pos.1 | Q25: 9 | R25: -32.75727709 | S25: -29.96983884 | T25: -27.22008146 | U25: -24.50648977 | V25: -21.82794368 | W25: -19.18452859 | X25: -16.57794348 | Y25: -14.01116117 | Z25: -11.4904431 | AA25: -9.026130772 | AB25: -6.637795513 | AC25: -4.362294352 | AD25: -2.27965988 | AE25: =HLOOKUP($BR$28,R6:AD27,20) -> -19.18452859 | AG25: 9 | AH25: -33.54676096 | AI25: -30.80569599 | AJ25: -28.10559837 | AK25: -25.44380894 | AL25: -22.81951222 | AM25: -20.23182731 | AN25: -17.68150341 | AO25: -15.16983101 | AP25: -12.70029539 | AQ25: -10.27900562 | AR25: -7.916268646 | AS25: -5.631626858 | AT25: -3.465315451 | AU25: =HLOOKUP($BR$28,AH6:AT27,20) -> -20.23182731
B26: Std | D26: Std | I26: Std | K26: Std | Q26: 9.5 | R26: -32.40208766 | S26: -29.60905156 | T26: -26.8559305 | U26: -24.14081568 | V26: -21.46288968 | W26: -18.82232359 | X26: -16.22098562 | Y26: -13.66260076 | Z26: -11.15390298 | AA26: -8.706684175 | AB26: -6.342335019 | AC26: -4.101540779 | AD26: -2.072051872 | AE26: =HLOOKUP($BR$28,R6:AD27,21) -> -18.82232359 | AG26: 9.5 | AH26: -33.35842907 | AI26: -30.60101703 | AJ26: -27.88730095 | AK26: -25.2150691 | AL26: -22.58268188 | AM26: -19.98985309 | AN26: -17.43684068 | AO26: -14.92570156 | AP26: -12.46001001 | AQ26: -10.04649535 | AR26: -7.69663498 | AS26: -5.431490392 | AT26: -3.294815952 | AU26: =HLOOKUP($BR$28,AH6:AT27,21) -> -19.98985309
B27: Centre | D27: 69.25 | G27: Load Spec 2 | I27: Inner | K27: 64.75 | N27: Load Pos.2 | Q27: 10 | R27: -32.04982469 | S27: -29.25183038 | T27: -26.49530144 | U27: -23.77914036 | V27: -21.10214861 | W27: -18.46486939 | X27: -15.86935145 | Y27: -13.32005645 | Z27: -10.82428793 | AA27: -8.395143713 | AB27: -6.056172485 | AC27: -3.851744123 | AD27: -1.877344391 | AE27: =HLOOKUP($BR$28,R6:AD27,22) -> -18.46486939 | AG27: =Q27 -> 10 | AH27: -33.17300636 | AI27: -30.39952561 | AJ27: -27.67248791 | AK27: -24.98982251 | AL27: -22.3497686 | AM27: -19.75199609 | AN27: -17.19687552 | AO27: -14.68697798 | AP27: -12.22578066 | AQ27: -9.820905583 | AR27: -7.484617326 | AS27: -5.240059052 | AT27: -3.133899664 | AU27: =HLOOKUP($BR$28,AH6:AT27,22) -> -19.75199609
B28: Wide | D28: Minispike | I28: Wide | K28: Minispike | R28: =VLOOKUP($BD$28,Q7:AD27,2) -> -39.51731281 | S28: =VLOOKUP($BD$28,Q7:AD27,3) -> -36.88392183 | T28: =VLOOKUP($BD$28,Q7:AD27,4) -> -34.26077567 | U28: =VLOOKUP($BD$28,Q7:AD27,5) -> -31.64704951 | V28: =VLOOKUP($BD$28,Q7:AD27,6) -> -29.04187308 | W28: =VLOOKUP($BD$28,Q7:AD27,7) -> -26.44494675 | X28: =VLOOKUP($BD$28,Q7:AD27,8) -> -23.85503012 | Y28: =VLOOKUP($BD$28,Q7:AD27,9) -> -21.2720701 | Z28: =VLOOKUP($BD$28,Q7:AD27,10) -> -18.69514637 | AA28: =VLOOKUP($BD$28,Q7:AD27,11) -> -16.1237645 | AB28: =VLOOKUP($BD$28,Q7:AD27,12) -> -13.55739119 | AC28: =VLOOKUP($BD$28,Q7:AD27,13) -> -10.9953753 | AD28: =VLOOKUP($BD$28,Q7:AD27,14) -> -8.437566806 | AH28: =VLOOKUP($BD$28,AG7:AT27,2) -> -36.99518808 | AI28: =VLOOKUP($BD$28,AG7:AT27,3) -> -34.61382916 | AJ28: =VLOOKUP($BD$28,AG7:AT27,4) -> -32.22539042 | AK28: =VLOOKUP($BD$28,AG7:AT27,5) -> -29.83126627 | AL28: =VLOOKUP($BD$28,AG7:AT27,6) -> -27.43274816 | AM28: =VLOOKUP($BD$28,AG7:AT27,7) -> -25.03065756 | AN28: =VLOOKUP($BD$28,AG7:AT27,8) -> -22.62598816 | AO28: =VLOOKUP($BD$28,AG7:AT27,9) -> -20.21909782 | AP28: =VLOOKUP($BD$28,AG7:AT27,10) -> -17.81082791 | AQ28: =VLOOKUP($BD$28,AG7:AT27,11) -> -15.40191464 | AR28: =VLOOKUP($BD$28,AG7:AT27,12) -> -12.99255201 | AS28: =VLOOKUP($BD$28,AG7:AT27,13) -> -10.58323888 | AT28: =VLOOKUP($BD$28,AG7:AT27,14) -> -8.174782682 | AV28: Roll Angle: | BD28: 0 | BL28: Ride height: | BR28: 10
P29: X Roll Centre | R29: Ride Height (mm) | AF29: X Roll Centre | AH29: Ride Height (mm)
R30: =R6 -> 0 | S30: =S6 -> 2 | T30: 4 | U30: 6 | V30: 8 | W30: 10 | X30: 12 | Y30: 14 | Z30: 16 | AA30: 18 | AB30: 20 | AC30: 22 | AD30: 24 | AH30: =AH6 -> 0 | AI30: =AI6 -> 2 | AJ30: 4 | AK30: 6 | AL30: 8 | AM30: 10 | AN30: 12 | AO30: 14 | AP30: 16 | AQ30: 18 | AR30: 20 | AS30: 22 | AT30: 24
P31: Roll Angle (Deg) | Q31: =Q7 -> 0 | R31: 0 | S31: 0 | T31: 0 | U31: 0 | V31: 0 | W31: 0 | X31: 0 | Y31: 0 | Z31: 0 | AA31: 0 | AB31: 0 | AC31: 0 | AD31: 0 | AF31: Roll Angle (Deg) | AG31: =AG7 -> 0 | AH31: 0 | AI31: 0 | AJ31: 0 | AK31: 0 | AL31: 0 | AM31: 0 | AN31: 0 | AO31: 0 | AP31: 0 | AQ31: 0 | AR31: 0 | AS31: 0 | AT31: 0 | AU31: -1.8089661e-14
Q32: 0.5 | R32: 0.469483203 | S32: 0.524717752 | T32: 0.5859655105 | U32: 0.6555474348 | V32: 0.7346034253 | W32: 0.8272128654 | X32: 0.9377283372 | Y32: 1.071676529 | Z32: 1.240006618 | AA32: 1.458701347 | AB32: 1.755069987 | AC32: 2.186168124 | AD32: 2.870566893 | AG32: 0.5 | AH32: 0.2237547766 | AI32: 0.2772803049 | AJ32: 0.3347795559 | AK32: 0.3981467739 | AL32: 0.4687830238 | AM32: 0.5489160435 | AN32: 0.6427529529 | AO32: 0.7541561159 | AP32: 0.8907590869 | AQ32: 1.065325208 | AR32: 1.297732247 | AS32: 1.628062605 | AT32: 2.141978966 | AU32: 1.355496364
Q33: 1 | R33: 0.9381441128 | S33: 1.048307635 | T33: 1.171282864 | U33: 1.30977755 | V33: 1.468497219 | W33: 1.653802272 | X33: 1.874021009 | Y33: 2.142395012 | Z33: 2.478449979 | AA33: 2.915101612 | AB33: 3.508604829 | AC33: 4.369378673 | AD33: 5.735550892 | AG33: 1 | AH33: 0.44685749 | AI33: 0.5535242864 | AJ33: 0.6692086126 | AK33: 0.7956824982 | AL33: 0.9361789816 | AM33: 1.097058379 | AN33: 1.283804613 | AO33: 1.506648022 | AP33: 1.780076591 | AQ33: 2.127645334 | AR33: 2.591599311 | AS33: 3.25218522 | AT33: 4.278663102 | AU33: 2.71039436
Q34: 1.5 | R34: 1.406825393 | S34: 1.572281721 | T34: 1.756633308 | U34: 1.964545447 | V34: 2.202479176 | W34: 2.480541491 | X34: 2.811038082 | Y34: 3.213574833 | Z34: 3.717689544 | AA34: 4.372262136 | AB34: 5.262603698 | AC34: 6.551909487 | AD34: 8.60087882 | AG34: 1.5 | AH34: 0.6679646579 | AI34: 0.828494382 | AJ34: 1.001646981 | AK34: 1.191722567 | AL34: 1.403719141 | AM34: 1.644698885 | AN34: 1.924905029 | AO34: 2.258606203 | AP34: 2.668592823 | AQ34: 3.190692519 | AR34: 3.886313673 | AS34: 4.874951064 | AT34: 6.414832207 | AU34: 4.065640664
Q35: 2 | R35: 1.874813671 | S35: 2.095600281 | T35: 2.34141667 | U35: 2.618493999 | V35: 2.935995187 | W35: 3.306344281 | X35: 3.746770372 | Y35: 4.283771502 | Z35: 4.955803306 | AA35: 5.828267004 | AB35: 7.014207482 | AC35: 8.731828945 | AD35: 11.46084147 | AG35: 2 | AH35: 0.8884561565 | AI35: 1.102628152 | AJ35: 1.333443833 | AK35: 1.586762289 | AL35: 1.86934819 | AM35: 2.190773839 | AN35: 2.564498964 | AO35: 3.009225289 | AP35: 3.55568891 | AQ35: 4.251166407 | AR35: 5.178101193 | AS35: 6.493961437 | AT35: 8.542604313 | AU35: 5.41965332
Q36: 2.5 | R36: 2.341693456 | S36: 2.617825066 | T36: 2.924892839 | U36: 3.27180696 | V36: 3.668674617 | W36: 4.13145943 | X36: 4.682224834 | Y36: 5.352796717 | Z36: 6.192161033 | AA36: 7.282312161 | AB36: 8.763475696 | AC36: 10.9060461 | AD36: 14.31171729 | AG36: 2.5 | AH36: 1.106624531 | AI36: 1.374044806 | AJ36: 1.663158547 | AK36: 1.979816117 | AL36: 2.333198324 | AM36: 2.735093148 | AN36: 3.201810023 | AO36: 3.757804429 | AP36: 4.440143977 | AQ36: 5.308008636 | AR36: 6.464973063 | AS36: 8.10738647 | AT36: 10.66092416 | AU36: 6.772405644
Q37: 3 | R37: 2.807365786 | S37: 3.138892626 | T37: 3.507851648 | U37: 3.923791642 | V37: 4.400293378 | W37: 4.955633132 | X37: 5.616318739 | Y37: 6.420400832 | Z37: 7.427029352 | AA37: 8.733823628 | AB37: 10.50819683 | AC37: 13.07630349 | AD37: 17.15417507 | AG37: 3 | AH37: 1.322128313 | AI37: 1.643475561 | AJ37: 1.989973153 | AK37: 2.370292734 | AL37: 2.79438526 | AM37: 3.276534812 | AN37: 3.8368297 | AO37: 4.503223677 | AP37: 5.321101624 | AQ37: 6.361167534 | AR37: 7.746917681 | AS37: 9.712561232 | AT37: 12.76898735 | AU37: 8.124372969
Q38: 3.5 | R38: 3.271445052 | S38: 3.658423227 | T38: 4.088949734 | U38: 4.574357656 | V38: 5.13051771 | W38: 5.778328615 | X38: 6.54882634 | Y38: 7.48639729 | Z38: 8.660199655 | AA38: 10.18262561 | AB38: 12.25036254 | AC38: 15.24063589 | AD38: 19.98449071 | AG38: 3.5 | AH38: 1.534047039 | AI38: 1.909188245 | AJ38: 2.314229693 | AK38: 2.757843311 | AL38: 3.252661964 | AM38: 3.815163953 | AN38: 4.468208797 | AO38: 5.245296959 | AP38: 6.197988066 | AQ38: 7.409299493 | AR38: 9.022467218 | AS38: 11.3098557 | AT38: 14.861772 | AU38: 9.474955375
Q39: 4 | R39: 3.733639594 | S39: 4.176669928 | T39: 4.668827152 | U39: 5.22382476 | V39: 5.859344295 | W39: 6.599615422 | X39: 7.479642181 | Y39: 8.549863062 | Z39: 9.890545935 | AA39: 11.62762887 | AB39: 13.98652078 | AC39: 17.39641082 | AD39: 22.80031818 | AG39: 4 | AH39: 1.742270274 | AI39: 2.171692228 | AJ39: 2.634462834 | AK39: 3.141862291 | AL39: 3.707428998 | AM39: 4.349709324 | AN39: 5.095547928 | AO39: 5.983283571 | AP39: 7.070368281 | AQ39: 8.451976124 | AR39: 10.29148326 | AS39: 12.89691635 | AT39: 16.93846355 | AU39: 10.82352097
Q40: 4.5 | R40: 4.193672235 | S40: 4.692548369 | T40: 5.246549272 | U40: 5.871268579 | V40: 6.586266929 | W40: 7.418881077 | X40: 8.408565306 | Y40: 9.611847324 | Z40: 11.11812089 | AA40: 13.06960545 | AB40: 15.71834348 | AC40: 19.54246259 | AD40: 25.59990189 | AG40: 4.5 | AH40: 1.945860204 | AI40: 2.429540848 | AJ40: 2.950732413 | AK40: 3.521932357 | AL40: 4.158003179 | AM40: 4.880722552 | AN40: 5.719081034 | AO40: 6.715970163 | AP40: 7.937565552 | AQ40: 9.488504538 | AR40: 11.55056279 | AS40: 14.47158273 | AT40: 18.99641289 | AU40: 12.16912011
Q41: 5 | R41: 4.651420743 | S41: 5.206439617 | T41: 5.822689595 | U41: 6.516761263 | V41: 7.311263184 | W41: 8.236262977 | X41: 9.335332518 | Y41: 10.67147883 | Z41: 12.34274786 | AA41: 14.50721852 | AB41: 17.44331523 | AC41: 21.67949503 | AD41: 28.38286986 | AG41: 5 | AH41: 2.14433419 | AI41: 2.682598102 | AJ41: 3.262449736 | AK41: 3.896678342 | AL41: 4.604208217 | AM41: 5.406724258 | AN41: 6.337250243 | AO41: 7.443960145 | AP41: 8.798689275 | AQ41: 10.51764359 | AR41: 12.80177003 | AS41: 16.03292578 | AT41: 21.0326829 | AU41: 13.51374775
Q42: 5.5 | R42: 5.10678118 | S42: 5.71802486 | T42: 6.396163278 | U42: 7.160183057 | V42: 8.034277765 | W42: 9.051729227 | X42: 10.25961613 | Y42: 11.72834634 | Z42: 13.56337842 | AA42: 15.93997118 | AB42: 19.16086458 | AC42: 23.80603155 | AD42: 31.14567953 | AG42: 5.5 | AH42: 2.337158729 | AI42: 2.930164982 | AJ42: 3.56861114 | AK42: 4.267390555 | AL42: 5.045246828 | AM42: 5.92771157 | AN42: 6.950549077 | AO42: 8.165803268 | AP42: 9.652349871 | AQ42: 11.53777326 | AR42: 14.04207171 | AS42: 17.57933656 | AT42: 23.04366347 | AU42: 14.85583638
Q43: 6 | R43: 5.559147275 | S43: 6.226855843 | T43: 6.967610905 | U43: 7.801471867 | V43: 8.755120631 | W43: 9.864885319 | X43: 11.18175519 | Y43: 12.78178957 | Z43: 14.78139426 | AA43: 17.36800744 | AB43: 20.87119938 | AC43: 25.91979707 | AD43: 33.88553134 | AG43: 6 | AH43: 2.523771582 | AI43: 3.171391594 | AJ43: 3.868949091 | AK43: 4.631561824 | AL43: 5.480568897 | AM43: 6.442778404 | AN43: 7.557706727 | AO43: 8.881117057 | AP43: 10.49964061 | AQ43: 12.55018446 | AR43: 15.2704944 | AS43: 19.10856112 | AT43: 25.02856589 | AU43: 16.19590711
Q44: 6.5 | R44: 6.008353312 | S44: 6.73255062 | T44: 7.536270406 | U44: 8.440291223 | V44: 9.4733939 | W44: 10.67533949 | X44: 12.10107861 | Y44: 13.8322624 | Z44: 15.99436637 | AA44: 18.79034774 | AB44: 22.57344877 | AC44: 28.02026037 | AD44: 36.59963909 | AG44: 6.5 | AH44: 2.702967499 | AI44: 3.406345639 | AJ44: 4.162683514 | AK44: 4.989873099 | AL44: 5.909355598 | AM44: 6.951342347 | AN44: 8.157912715 | AO44: 9.589296337 | AP44: 11.33818609 | AQ44: 13.55200615 | AR44: 16.48565255 | AS44: 20.62015318 | AT44: 26.98220817 | AU44: 17.53313398
Q45: 7 | R45: 6.454348618 | S45: 7.235809902 | T45: 8.101990091 | U45: 9.076138622 | V45: 10.18901278 | W45: 11.48311372 | X45: 13.01740724 | Y45: 14.8789558 | Z45: 17.20352797 | AA45: 20.20697568 | AB45: 24.26758158 | AC45: 30.10567646 | AD45: 39.28710522 | AG45: 7 | AH45: 2.874880839 | AI45: 3.633696004 | AJ45: 4.449581402 | AK45: 5.341029018 | AL45: 6.331361239 | AM45: 7.453404277 | AN45: 8.750872886 | AO45: 10.28987659 | AP45: 12.16796527 | AQ45: 14.54325075 | AR45: 17.68727115 | AS45: 22.1105733 | AT45: 28.90634071 | AU45: 18.86694241
Q46: 7.5 | R46: 6.896549617 | S46: 7.735529935 | T46: 8.664744677 | U46: 9.709515273 | V46: 10.90217545 | W46: 12.28825518 | X46: 13.93055043 | Y46: 15.92340791 | Z46: 18.4082141 | AA46: 21.61763799 | AB46: 25.95182616 | AC46: 32.17566536 | AD46: 41.9454895 | AG46: 7.5 | AH46: 3.038115373 | AI46: 3.853096194 | AJ46: 4.728647496 | AK46: 5.684473364 | AL46: 6.74588808 | AM46: 7.947125632 | AN46: 9.336190637 | AO46: 10.98182205 | AP46: 12.98791495 | AQ46: 15.52237877 | AR46: 18.87351299 | AS46: 23.57974558 | AT46: 30.79339432 | AU46: 20.19747106
Q47: 8 | R47: 7.334829378 | S47: 8.23152324 | T47: 9.224364099 | U47: 10.33984147 | V47: 11.61263732 | W47: 13.09042514 | X47: 14.84108289 | Y47: 16.96382153 | Z47: 19.60850148 | AA47: 23.02082695 | AB47: 27.62584073 | AC47: 34.22879229 | AD47: 44.57238575 | AG47: 8 | AH47: 3.192447045 | AI47: 4.063939554 | AJ47: 4.999209711 | AK47: 6.020136694 | AL47: 7.152918004 | AM47: 8.433466944 | AN47: 9.91357894 | AO47: 11.66426487 | AP47: 13.79751904 | AQ47: 16.48990137 | AR47: 20.04325403 | AS47: 25.02514542 | AT47: 32.64197568 | AU47: 21.52456493
Q48: 8.5 | R48: 7.768873 | S48: 8.72383927 | T48: 9.780592361 | U48: 10.96684721 | V48: 12.31989817 | W48: 13.88990662 | X48: 15.74878082 | Y48: 18.00029809 | Z48: 20.80412708 | AA48: 24.41789172 | AB48: 29.28974369 | AC48: 36.26214372 | AD48: 47.1641867 | AG48: 8.5 | AH48: 3.33667585 | AI48: 4.264966675 | AJ48: 5.261140283 | AK48: 6.346666525 | AL48: 7.550692624 | AM48: 8.911430045 | AN48: 10.48131472 | AO48: 12.33731065 | AP48: 14.59647977 | AQ48: 17.44340903 | AR48: 21.1957147 | AS48: 26.44642098 | AT48: 34.44918576 | AU48: 22.84774179
Q49: 9 | R49: 8.198505152 | S49: 9.212175289 | T49: 10.33322422 | U49: 11.59089156 | V49: 13.02408912 | W49: 14.68690063 | X49: 16.6532057 | Y49: 19.03326016 | Z49: 21.9945389 | AA49: 25.80837239 | AB49: 30.94137188 | AC49: 38.27805654 | AD49: 49.71803485 | AG49: 9 | AH49: 3.470616133 | AI49: 4.456194453 | AJ49: 5.512796199 | AK49: 6.664228106 | AL49: 7.93958755 | AM49: 9.379602108 | AN49: 11.03943886 | AO49: 13.00004426 | AP49: 15.38318504 | AQ49: 18.38249271 | AR49: 22.32901952 | AS49: 27.83922312 | AT49: 36.2123773 | AU49: 24.166934
Q50: 9.5 | R50: 8.623137189 | S50: 9.696543756 | T50: 10.88238761 | U50: 12.21180913 | V50: 13.72594545 | W50: 15.48066877 | X50: 17.55468849 | Y50: 20.0629769 | Z50: 23.18074469 | AA50: 27.19156966 | AB50: 32.58210234 | AC50: 40.27248847 | AD50: 52.23141679 | AG50: 9.5 | AH50: 3.592827725 | AI50: 4.636501236 | AJ50: 5.754483878 | AK50: 6.971233073 | AL50: 8.31824561 | AM50: 9.837346191 | AN50: 11.58724098 | AO50: 13.65195279 | AP50: 16.15808668 | AQ50: 19.30711873 | AR50: 23.4425591 | AS50: 29.20310434 | AT50: 37.92694021 | AU50: 25.48269112
Q51: 10 | R51: 9.04327957 | S51: 10.17641876 | T51: 11.42793319 | U51: 12.82949767 | V51: 14.42430971 | W51: 16.27188304 | X51: 18.45354428 | Y51: 21.08922123 | Z51: 24.36233177 | AA51: 28.56748231 | AB51: 34.2104625 | AC51: 42.24587357 | AD51: 54.70323546 | AG51: 10 | AH51: 3.702663179 | AI51: 4.804761928 | AJ51: 5.984613784 | AK51: 7.267205842 | AL51: 8.686114063 | AM51: 10.2848113 | AN51: 12.1244808 | AO51: 14.2911618 | AP51: 16.91901152 | AQ51: 20.21471536 | AR51: 24.53468258 | AS51: 30.53553252 | AT51: 39.5921165 | AU51: 26.79363146
AH52: -5.414892787e-14 | AI52: -5.908407909e-14 | AJ52: 5.386712645e-14 | AK52: -3.547856954e-14 | AL52: -7.169741077e-14 | AM52: 7.221409351e-15 | AN52: 1.610195686e-14 | AO52: -1.8089661e-14 | AP52: -1.025814156e-14 | AQ52: -1.766013606e-14 | AR52: -7.54577548e-14 | AS52: -8.155087962e-15 | AT52: 3.985106546e-14 | AU52: -1.8089661e-14
P53: LH Camber | R53: Ride Height (mm) | AF53: LH Camber | AH53: Ride Height (mm)
B54: Nigel | G54: Store Pos.1 | I54: Position 4 | N54: Store Pos.1 | R54: =R30 -> 0 | S54: =S30 -> 2 | T54: 4 | U54: 6 | V54: 8 | W54: 10 | X54: 12 | Y54: 14 | Z54: 16 | AA54: 18 | AB54: 20 | AC54: 22 | AD54: 24 | AH54: =AH30 -> 0 | AI54: =AI30 -> 2 | AJ54: 4 | AK54: 6 | AL54: 8 | AM54: 10 | AN54: 12 | AO54: 14 | AP54: 16 | AQ54: 18 | AR54: 20 | AS54: 22 | AT54: 24
P55: Roll Angle (Deg) | Q55: =Q31 -> 0 | R55: -0.7852018013 | S55: -0.7503426062 | T55: -0.7245466527 | U55: -0.7073198649 | V55: -0.6982606846 | W55: -0.6970492643 | X55: -0.7034367894 | Y55: -0.7172386057 | Z55: -0.7383324988 | AA55: -0.7666520556 | AB55: -0.8021860837 | AC55: -0.8449801252 | AD55: -0.8951262884 | AE55: =HLOOKUP($BR$28,R54:AD75,2) -> -0.6970492643 | AF55: Roll Angle (Deg) | AG55: =AG31 -> 0 | AH55: -1.229041064 | AI55: -1.127903092 | AJ55: -1.042277017 | AK55: -0.9712469408 | AL55: -0.9140533489 | AM55: -0.8700643575 | AN55: -0.8387758926 | AO55: -0.8197872425 | AP55: -0.8128065198 | AQ55: -0.8176329747 | AR55: -0.8341586983 | AS55: -0.8623672206 | AT55: -0.9023262813 | AU55: =HLOOKUP($BR$28,AH54:AT75,2) -> -0.8700643575
B56: Std | D56: 39 | G56: Store Pos.2 | I56: Std | K56: 39 | N56: Store Pos.2 | Q56: 0.5 | R56: -0.3026511819 | S56: -0.2639493933 | T56: -0.2344703088 | U56: -0.2136952763 | V56: -0.2011959055 | W56: -0.1966292811 | X56: -0.1997243812 | Y56: -0.2102773474 | Z56: -0.2281462619 | AA56: -0.2532448835 | AB56: -0.2855469628 | AC56: -0.3250733505 | AD56: -0.3719046364 | AE56: =HLOOKUP($BR$28,R54:AD75,3) -> -0.1966292811 | AG56: 0.5 | AH56: -0.7762337949 | AI56: -0.6686663849 | AJ56: -0.5768970163 | AK56: -0.4999781061 | AL56: -0.4370983117 | AM56: -0.3875842606 | AN56: -0.3509040125 | AO56: -0.3266232533 | AP56: -0.3144163759 | AQ56: -0.3140530167 | AR56: -0.3253955755 | AS56: -0.3483958198 | AT56: -0.3830939243 | AU56: =HLOOKUP($BR$28,AH54:AT75,3) -> -0.3875842606
B57: 0 | D57: 2 | I57: 0 | K57: 5 | Q57: 1 | R57: 0.1782397655 | S57: 0.2208497467 | T57: 0.2540579777 | U57: 0.2784225979 | V57: 0.2943940246 | W57: 0.3023411724 | X57: 0.302556076 | Y57: 0.2952630311 | Z57: 0.2806228188 | AA57: 0.2587407026 | AB57: 0.2296647547 | AC57: 0.1933871788 | AD57: 0.1498444055 | AE57: =HLOOKUP($BR$28,R54:AD75,4) -> 0.3023411724 | AG57: 1 | AH57: -0.3261980429 | AI57: -0.2120918711 | AJ57: -0.1141002256 | AK57: -0.0312097249 | AL57: 0.03743528432 | AM57: 0.09251685958 | AN57: 0.1346264217 | AO57: 0.1642272099 | AP57: 0.1816770567 | AQ57: 0.187235857 | AR57: 0.1810712897 | AS57: 0.1632627778 | AT57: 0.133796875 | AU57: =HLOOKUP($BR$28,AH54:AT75,4) -> 0.09251685958
B58: 3 | D58: 0 | G58: Load Pos.1 | I58: 3 | K58: 0 | N58: Load Pos.1 | Q58: 1.5 | R58: 0.6574260588 | S58: 0.7040065345 | T58: 0.7410056102 | U58: 0.7690069944 | V58: 0.7884915202 | W58: 0.7998491327 | X58: 0.8033976318 | Y58: 0.7993811335 | Z58: 0.7879813323 | AA58: 0.7693187688 | AB58: 0.7434623869 | AC58: 0.710422109 | AD58: 0.6701563194 | AE58: =HLOOKUP($BR$28,R54:AD75,5) -> 0.7998491327 | AG58: 1.5 | AH58: 0.1210505273 | AI58: 0.2417923363 | AJ58: 0.3461019028 | AK58: 0.4350352952 | AL58: 0.509486701 | AM58: 0.5701996523 | AN58: 0.6177863586 | AO58: 0.6527444766 | AP58: 0.6754605145 | AQ58: 0.6862294857 | AR58: 0.6852477367 | AS58: 0.6726227486 | AT58: 0.6483743586 | AU58: =HLOOKUP($BR$28,AH54:AT75,5) -> 0.5701996523
B59: Std | D59: Std | I59: Std | K59: Std | Q59: 2 | R59: 1.134880772 | S59: 1.185504834 | T59: 1.226352423 | U59: 1.258040612 | V59: 1.281077828 | W59: 1.295880522 | X59: 1.302788278 | Y59: 1.302066668 | Z59: 1.293916845 | AA59: 1.278480108 | AB59: 1.255840839 | AC59: 1.226029219 | AD59: 1.189022243 | AE59: =HLOOKUP($BR$28,R54:AD75,6) -> 1.295880522 | AG59: 2 | AH59: 0.5653842702 | AI59: 0.6928831523 | AJ59: 0.8036211456 | AK59: 0.8986930716 | AL59: 0.9790420592 | AM59: 1.045446341 | AN59: 1.098556055 | AO59: 1.138909448 | AP59: 1.166922834 | AQ59: 1.182918513 | AR59: 1.187125629 | AS59: 1.179679461 | AT59: 1.160631624 | AU59: =HLOOKUP($BR$28,AH54:AT75,6) -> 1.045446341
B60: Centre | D60: 66.75 | G60: Load Pos.2 | I60: Inner | K60: 62.25 | N60: Load Pos.2 | Q60: 2.5 | R60: 1.61057116 | S60: 1.665311086 | T60: 1.710073273 | U60: 1.745500047 | V60: 1.772135348 | W60: 1.790420147 | X60: 1.800715248 | Y60: 1.803309949 | Z60: 1.798425052 | AA60: 1.786221269 | AB60: 1.766800827 | AC60: 1.740210497 | AD60: 1.706448488 | AE60: =HLOOKUP($BR$28,R54:AD75,7) -> 1.790420147 | AG60: 2.5 | AH60: 1.006773796 | AI60: 1.141172081 | AJ60: 1.258435453 | AK60: 1.359738961 | AL60: 1.446058924 | AM60: 1.518219626 | AN60: 1.576913622 | AO60: 1.622703374 | AP60: 1.656045822 | AQ60: 1.677292552 | AR60: 1.686699391 | AS60: 1.684434188 | AT60: 1.670575144 | AU60: =HLOOKUP($BR$28,AH54:AT75,7) -> 1.518219626
B61: Wide | D61: Minispike | I61: Wide | K61: Minispike | Q61: 3 | R61: 2.084457148 | S61: 2.143395048 | T61: 2.192133625 | U61: 2.231360939 | V61: 2.261642132 | W61: 2.283448445 | X61: 2.297163884 | Y61: 2.303099869 | Z61: 2.301497744 | AA61: 2.292536986 | AB61: 2.276339194 | AC61: 2.252970763 | AD61: 2.222445734 | AE61: =HLOOKUP($BR$28,R54:AD75,8) -> 2.283448445 | AG61: 3 | AH61: 1.445172448 | AI61: 1.586585503 | AJ61: 1.710499722 | AK61: 1.818127315 | AL61: 1.910502169 | AM61: 1.988492875 | AN61: 2.052826347 | AO61: 2.104105451 | AP61: 2.142812973 | AQ61: 2.169336261 | AR61: 2.18395975 | AS61: 2.186880618 | AT61: 2.178206562 | AU61: =HLOOKUP($BR$28,AH54:AT75,8) -> 1.988492875
Q62: 3.5 | R62: 2.556495925 | S62: 2.619714454 | T62: 2.672507272 | U62: 2.715596072 | V62: 2.749575105 | W62: 2.774946616 | X62: 2.792117834 | Y62: 2.801423235 | Z62: 2.803124896 | AA62: 2.797421954 | AB62: 2.78445504 | AC62: 2.764308019 | AD62: 2.737012167 | AE62: =HLOOKUP($BR$28,R54:AD75,9) -> 2.774946616 | AG62: 3.5 | AH62: 1.880517477 | AI62: 2.029080941 | AJ62: 2.159750353 | AK62: 2.27381541 | AL62: 2.372335999 | AM62: 2.456230011 | AN62: 2.526268328 | AO62: 2.583086211 | AP62: 2.62720386 | AQ62: 2.659034061 | AR62: 2.678895766 | AS62: 2.687012497 | AT62: 2.683522809 | AU62: =HLOOKUP($BR$28,AH54:AT75,9) -> 2.456230011
B63: Position 5 | G63: Store Pos.1 | I63: Position 6 | N63: Store Pos.1 | Q63: 4 | R63: 3.026646239 | S63: 3.094233108 | T63: 3.151157371 | U63: 3.198170651 | V63: 3.235906439 | W63: 3.264890816 | X63: 3.285557965 | Y63: 3.298264701 | Z63: 3.303294101 | AA63: 3.300866221 | AB63: 3.291139743 | AC63: 3.274218105 | AD63: 3.250149291 | AE63: =HLOOKUP($BR$28,R54:AD75,10) -> 3.264890816 | AG63: 4 | AH63: 2.312725758 | AI63: 2.468576939 | AJ63: 2.606145538 | AK63: 2.726746649 | AL63: 2.831505507 | AM63: 2.921395052 | AN63: 2.997206393 | AO63: 3.059618281 | AP63: 3.10919117 | AQ63: 3.146364518 | AR63: 3.171489 | AS63: 3.184818989 | AT63: 3.186519083 | AU63: =HLOOKUP($BR$28,AH54:AT75,10) -> 2.921395052
Q64: 4.5 | R64: 3.494860791 | S64: 3.566909969 | T64: 3.628049928 | U64: 3.679057931 | V64: 3.720608623 | W64: 3.753256509 | X64: 3.777462267 | Y64: 3.793605605 | Z64: 3.801991146 | AA64: 3.8028593 | AB64: 3.796388178 | AC64: 3.782696977 | AD64: 3.761855325 | AE64: =HLOOKUP($BR$28,R54:AD75,11) -> 3.753256509 | AG64: 4.5 | AH64: 2.74174305 | AI64: 2.905028664 | AJ64: 3.049615251 | AK64: 3.176863062 | AL64: 3.287970482 | AM64: 3.38393207 | AN64: 3.465592921 | AO64: 3.533671196 | AP64: 3.588745929 | AQ64: 3.631305772 | AR64: 3.6617267 | AS64: 3.680287646 | AT64: 3.6871868 | AU64: =HLOOKUP($BR$28,AH54:AT75,11) -> 3.38393207
G65: Store Pos.2 | N65: Store Pos.2 | Q65: 5 | R65: 3.961083898 | S65: 4.037699456 | T65: 4.103130724 | U65: 4.158217122 | V65: 4.203648834 | W65: 4.240015682 | X65: 4.267807722 | Y65: 4.287425532 | Z65: 4.299199106 | AA65: 4.303387643 | AB65: 4.300188958 | AC65: 4.289741312 | AD65: 4.272132884 | AE65: =HLOOKUP($BR$28,R54:AD75,12) -> 4.240015682 | AG65: 5 | AH65: 3.167486133 | AI65: 3.338362977 | AJ65: 3.49009518 | AK65: 3.624134462 | AL65: 3.741675816 | AM65: 3.843804397 | AN65: 3.931393672 | AO65: 4.005198541 | AP65: 4.065837296 | AQ65: 4.113828824 | AR65: 4.149580207 | AS65: 4.173399477 | AT65: 4.185513654 | AU65: =HLOOKUP($BR$28,AH54:AT75,12) -> 3.843804397
Q66: 5.5 | R66: 4.425261525 | S66: 4.506542709 | T66: 4.576371345 | U66: 4.635611434 | V66: 4.684991702 | W66: 4.725138127 | X66: 4.756566867 | Y66: 4.779702157 | Z66: 4.794898932 | AA66: 4.80243563 | AB66: 4.802530177 | AC66: 4.79534071 | AD66: 4.78097109 | AE66: =HLOOKUP($BR$28,R54:AD75,13) -> 4.725138127 | AG66: 5.5 | AH66: 3.589856351 | AI66: 3.768493069 | AJ66: 3.927525809 | AK66: 4.068451747 | AL66: 4.192561466 | AM66: 4.300954661 | AN66: 4.39455562 | AO66: 4.474162627 | AP66: 4.540432475 | AQ66: 4.593906276 | AR66: 4.635024954 | AS66: 4.664133558 | AT66: 4.681484483 | AU66: =HLOOKUP($BR$28,AH54:AT75,13) -> 4.300954661
G67: Load Pos.1 | N67: Load Pos.1 | Q67: 6 | R67: 4.887333164 | S67: 4.973398288 | T67: 5.047711676 | U67: 5.111188755 | V67: 5.164596618 | W67: 5.208587447 | X67: 5.24370836 | Y67: 5.270408842 | Z67: 5.28906732 | AA67: 5.299984798 | AB67: 5.303397233 | AC67: 5.299483395 | AD67: 5.288364054 | AE67: =HLOOKUP($BR$28,R54:AD75,14) -> 5.208587447 | AG67: 6 | AH67: 4.008796099 | AI67: 4.195370511 | AJ67: 4.361835472 | AK67: 4.509797727 | AL67: 4.640569209 | AM67: 4.755333065 | AN67: 4.855036982 | AO67: 4.940529174 | AP67: 5.012482692 | AQ67: 5.071495839 | AR67: 5.118031779 | AS67: 5.15246888 | AT67: 5.175077918 | AU67: =HLOOKUP($BR$28,AH54:AT75,14) -> 4.755333065
Q68: 6.5 | R68: 5.347226419 | S68: 5.438201739 | T68: 5.517099603 | U68: 5.584905165 | V68: 5.64242163 | W68: 5.690326036 | X68: 5.729196972 | Y68: 5.759516613 | Z68: 5.781680766 | AA68: 5.796012523 | AB68: 5.802772563 | AC68: 5.802155257 | AD68: 5.794300857 | AE68: =HLOOKUP($BR$28,R54:AD75,15) -> 5.690326036 | AG68: 6.5 | AH68: 4.424216967 | AI68: 4.618854349 | AJ68: 4.792936611 | AK68: 4.948053655 | AL68: 5.085639413 | AM68: 5.206868977 | AN68: 5.312781142 | AO68: 5.404228453 | AP68: 5.481951489 | AQ68: 5.546563108 | AR68: 5.598569549 | AS68: 5.638367639 | AT68: 5.666273162 | AU68: =HLOOKUP($BR$28,AH54:AT75,15) -> 5.206868977
G69: Load Pos.2 | N69: Load Pos.2 | Q69: 7 | R69: 5.804882373 | S69: 5.900873292 | T69: 5.984482636 | U69: 6.056716322 | V69: 6.118423032 | W69: 6.170312528 | X69: 6.212999435 | Y69: 6.246992712 | Z69: 6.272706228 | AA69: 6.290495866 | AB69: 6.30063433 | AC69: 6.30333998 | AD69: 6.298770063 | AE69: =HLOOKUP($BR$28,R54:AD75,16) -> 6.170312528 | AG69: 7 | AH69: 4.835985259 | AI69: 5.038913858 | AJ69: 5.220744369 | AK69: 5.383179193 | AL69: 5.52769055 | AM69: 5.655505353 | AN69: 5.767721626 | AO69: 5.865214785 | AP69: 5.948780536 | AQ69: 6.01906129 | AR69: 6.076589077 | AS69: 6.121803376 | AT69: 6.155032995 | AU69: =HLOOKUP($BR$28,AH54:AT75,16) -> 5.655505353
Q70: 7.5 | R70: 6.260213569 | S70: 6.361355701 | T70: 6.449789773 | U70: 6.52655027 | V70: 6.59253753 | W70: 6.648493075 | X70: 6.69507064 | Y70: 6.732792004 | Z70: 6.762115506 | AA70: 6.783402469 | AB70: 6.796958132 | AC70: 6.803016411 | AD70: 6.801754779 | AE70: =HLOOKUP($BR$28,R54:AD75,17) -> 6.648493075 | AG70: 7.5 | AH70: 5.244044261 | AI70: 5.455425063 | AJ70: 5.645175155 | AK70: 5.815077352 | AL70: 5.966648069 | AM70: 6.10118365 | AN70: 6.219794218 | AO70: 6.32342863 | AP70: 6.412919293 | AQ70: 6.488944091 | AR70: 6.552052802 | AS70: 6.602731384 | AT70: 6.641333031 | AU70: =HLOOKUP($BR$28,AH54:AT75,17) -> 6.10118365
Q71: 8 | R71: 6.713130527 | S71: 6.819575063 | T71: 6.912946292 | U71: 6.994345344 | V71: 7.064707405 | W71: 7.124823228 | X71: 7.175358748 | Y71: 7.216877473 | Z71: 7.249863571 | AA71: 7.27470083 | AB71: 7.291714323 | AC71: 7.301160078 | AD71: 7.303234069 | AE71: =HLOOKUP($BR$28,R54:AD75,18) -> 7.124823228 | AG71: 8 | AH71: 5.648260533 | AI71: 5.868277705 | AJ71: 6.066154377 | AK71: 6.243647075 | AL71: 6.402411185 | AM71: 6.543791196 | AN71: 6.668903246 | AO71: 6.778798876 | AP71: 6.874305455 | AQ71: 6.956134781 | AR71: 7.02490577 | AS71: 7.081106245 | AT71: 7.125125912 | AU71: =HLOOKUP($BR$28,AH54:AT75,18) -> 6.543791196
Q72: 8.5 | R72: 7.163553397 | S72: 7.275440147 | T72: 7.373883234 | U72: 7.460038164 | V72: 7.534876837 | W72: 7.599232224 | X72: 7.653808074 | Y72: 7.69919956 | Z72: 7.735908362 | AA72: 7.76435233 | AB72: 7.784868453 | AC72: 7.797742684 | AD72: 7.803183238 | AE72: =HLOOKUP($BR$28,R54:AD75,19) -> 7.599232224 | AG72: 8.5 | AH72: 6.04853591 | AI72: 6.27740524 | AJ72: 6.483513805 | AK72: 6.668824181 | AL72: 6.83491208 | AM72: 6.983236804 | AN72: 7.115002492 | AO72: 7.231249302 | AP72: 7.33285655 | AQ72: 7.42059059 | AR72: 7.495083804 | AS72: 7.556865195 | AT72: 7.606360045 | AU72: =HLOOKUP($BR$28,AH54:AT75,19) -> 6.983236804
Q73: 9 | R73: 7.611368193 | S73: 7.728851819 | T73: 7.832504488 | U73: 7.923529864 | V73: 8.002965617 | W73: 8.071654531 | X73: 8.130359236 | Y73: 8.179700682 | Z73: 8.220202079 | AA73: 8.252307525 | AB73: 8.276382446 | AC73: 8.292725824 | AD73: 8.301573016 | AE73: =HLOOKUP($BR$28,R54:AD75,20) -> 8.071654531 | AG73: 9 | AH73: 6.444700379 | AI73: 6.682639687 | AJ73: 6.89722169 | AK73: 7.090441182 | AL73: 7.264035063 | AM73: 7.419459175 | AN73: 7.557982383 | AO73: 7.680694975 | AP73: 7.788510907 | AQ73: 7.882225948 | AR73: 7.962521661 | AS73: 8.029956929 | AT73: 8.084986066 | AU73: =HLOOKUP($BR$28,AH54:AT75,20) -> 7.419459175
Q74: 9.5 | R74: 8.056473557 | S74: 8.179706473 | T74: 8.288710039 | U74: 8.384744098 | V74: 8.468873646 | W74: 8.54201788 | X74: 8.604943764 | Y74: 8.658310326 | Z74: 8.702680487 | AA74: 8.738513155 | AB74: 8.766204352 | AC74: 8.786070964 | AD74: 8.798366568 | AE74: =HLOOKUP($BR$28,R54:AD75,21) -> 8.54201788 | AG74: 9.5 | AH74: 6.836679716 | AI74: 7.083853616 | AJ74: 7.307092083 | AK74: 7.50843318 | AL74: 7.689679407 | AM74: 7.852347589 | AN74: 7.99775514 | AO74: 8.127022606 | AP74: 8.241146829 | AQ74: 8.34095208 | AR74: 8.427139978 | AS74: 8.500304283 | AT74: 8.560930291 | AU74: =HLOOKUP($BR$28,AH54:AT75,21) -> 7.852347589
Q75: 10 | R75: 8.498711736 | S75: 8.627879816 | T75: 8.742387035 | U75: 8.843561413 | V75: 8.932535553 | W75: 9.010220869 | X75: 9.077468966 | Y75: 9.134957651 | Z75: 9.183274383 | AA75: 9.222911291 | AB75: 9.254282737 | AC75: 9.277723895 | AD75: 9.293519658 | AE75: =HLOOKUP($BR$28,R54:AD75,22) -> 9.010220869 | AG75: 10 | AH75: 7.224336832 | AI75: 7.480968678 | AJ75: 7.713031582 | AK75: 7.922682076 | AL75: 8.111719315 | AM75: 8.281759588 | AN75: 8.434174071 | AO75: 8.570167666 | AP75: 8.690692015 | AQ75: 8.796682775 | AR75: 8.888849976 | AS75: 8.967824555 | AT75: 9.034112441 | AU75: =HLOOKUP($BR$28,AH54:AT75,22) -> 8.281759588
R76: =VLOOKUP($BD$28,Q55:AD75,2) -> -0.7852018013 | S76: =VLOOKUP($BD$28,Q55:AD75,3) -> -0.7503426062 | T76: =VLOOKUP($BD$28,Q55:AD75,4) -> -0.7245466527 | U76: =VLOOKUP($BD$28,Q55:AD75,5) -> -0.7073198649 | V76: =VLOOKUP($BD$28,Q55:AD75,6) -> -0.6982606846 | W76: =VLOOKUP($BD$28,Q55:AD75,7) -> -0.6970492643 | X76: =VLOOKUP($BD$28,Q55:AD75,8) -> -0.7034367894 | Y76: =VLOOKUP($BD$28,Q55:AD75,9) -> -0.7172386057 | Z76: =VLOOKUP($BD$28,Q55:AD75,10) -> -0.7383324988 | AA76: =VLOOKUP($BD$28,Q55:AD75,11) -> -0.7666520556 | AB76: =VLOOKUP($BD$28,Q55:AD75,12) -> -0.8021860837 | AC76: =VLOOKUP($BD$28,Q55:AD75,13) -> -0.8449801252 | AD76: =VLOOKUP($BD$28,Q55:AD75,14) -> -0.8951262884 | AH76: =VLOOKUP($BD$28,AG55:AT75,2) -> -1.229041064 | AI76: =VLOOKUP($BD$28,AG55:AT75,3) -> -1.127903092 | AJ76: =VLOOKUP($BD$28,AG55:AT75,4) -> -1.042277017 | AK76: =VLOOKUP($BD$28,AG55:AT75,5) -> -0.9712469408 | AL76: =VLOOKUP($BD$28,AG55:AT75,6) -> -0.9140533489 | AM76: =VLOOKUP($BD$28,AG55:AT75,7) -> -0.8700643575 | AN76: =VLOOKUP($BD$28,AG55:AT75,8) -> -0.8387758926 | AO76: =VLOOKUP($BD$28,AG55:AT75,9) -> -0.8197872425 | AP76: =VLOOKUP($BD$28,AG55:AT75,10) -> -0.8128065198 | AQ76: =VLOOKUP($BD$28,AG55:AT75,11) -> -0.8176329747 | AR76: =VLOOKUP($BD$28,AG55:AT75,12) -> -0.8341586983 | AS76: =VLOOKUP($BD$28,AG55:AT75,13) -> -0.8623672206 | AT76: =VLOOKUP($BD$28,AG55:AT75,14) -> -0.9023262813
P77: RH Camber | R77: Ride Height (mm) | AF77: RH Camber | AH77: Ride Height (mm)
R78: =R54 -> 0 | S78: =S54 -> 2 | T78: 4 | U78: 6 | V78: 8 | W78: 10 | X78: 12 | Y78: 14 | Z78: 16 | AA78: 18 | AB78: 20 | AC78: 22 | AD78: 24 | AH78: =AH54 -> 0 | AI78: =AI54 -> 2 | AJ78: 4 | AK78: 6 | AL78: 8 | AM78: 10 | AN78: 12 | AO78: 14 | AP78: 16 | AQ78: 18 | AR78: 20 | AS78: 22 | AT78: 24
P79: Roll Angle (Deg) | Q79: =Q55 -> 0 | R79: -0.7852018013 | S79: -0.7503426062 | T79: -0.7245466527 | U79: -0.7073198649 | V79: -0.6982606846 | W79: -0.6970492643 | X79: -0.7034367894 | Y79: -0.7172386057 | Z79: -0.7383324988 | AA79: -0.7666520556 | AB79: -0.8021860837 | AC79: -0.8449801252 | AD79: -0.8951262884 | AF79: Roll Angle (Deg) | AG79: =AG55 -> 0 | AH79: -1.229041064 | AI79: -1.127903092 | AJ79: -1.042277017 | AK79: -0.9712469408 | AL79: -0.9140533489 | AM79: -0.8700643575 | AN79: -0.8387758926 | AO79: -0.8197872425 | AP79: -0.8128065198 | AQ79: -0.8176329747 | AR79: -0.8341586983 | AS79: -0.8623672206 | AT79: -0.9023262813 | AU79: -3.005081613
Q80: 0.5 | R80: -1.269389445 | S80: -1.238319057 | T80: -1.216157101 | U80: -1.202438206 | V80: -1.196788793 | W80: -1.198909388 | X80: -1.208573482 | Y80: -1.225615117 | Z80: -1.249933294 | AA80: -1.281478153 | AB80: -1.320256155 | AC80: -1.366334251 | AD80: -1.419821969 | AG80: 0.5 | AH80: -1.684583969 | AI80: -1.58977294 | AJ80: -1.510198922 | AK80: -1.444990122 | AL80: -1.393426491 | AM80: -1.354911439 | AN80: -1.328974957 | AO80: -1.31525573 | AP80: -1.313487753 | AQ80: -1.323501576 | AR80: -1.345220033 | AS80: -1.378654646 | AT80: -1.423905707 | AU80: -3.362522508
Q81: 1 | R81: -1.755191058 | S81: -1.727853449 | T81: -1.709280906 | U81: -1.699036317 | V81: -1.69676818 | W81: -1.702201153 | X81: -1.715128155 | Y81: -1.735405187 | Z81: -1.762947729 | AA81: -1.797725585 | AB81: -1.839762667 | AC81: -1.889146167 | AD81: -1.946003369 | AG81: 1 | AH81: -2.142810769 | AI81: -2.054239343 | AJ81: -1.980630463 | AK81: -1.921175994 | AL81: -1.875185061 | AM81: -1.842101708 | AN81: -1.821491421 | AO81: -1.813019876 | AP81: -1.816455409 | AQ81: -1.831657401 | AR81: -1.858579513 | AS81: -1.897266144 | AT81: -1.94784746 | AU81: -3.721318388
Q82: 1.5 | R82: -2.242581162 | S82: -2.218927615 | T82: -2.203903573 | U82: -2.197099983 | V82: -2.198189056 | W82: -2.206917058 | X82: -2.223097121 | Y82: -2.246606011 | Z82: -2.277374291 | AA82: -2.315396384 | AB82: -2.360713009 | AC82: -2.413424471 | AD82: -2.473684302 | AG82: 1.5 | AH82: -2.603682742 | AI82: -2.521249118 | AJ82: -2.453543482 | AK82: -2.399777844 | AL82: -2.359310852 | AM82: -2.331623623 | AN82: -2.31631044 | AO82: -2.313071967 | AP82: -2.321705624 | AQ82: -2.342104105 | AR82: -2.374247754 | AS82: -2.41821269 | AT82: -2.474168006 | AU82: -4.08145398
Q83: 2 | R83: -2.731537771 | S83: -2.711520937 | T83: -2.70000905 | U83: -2.696617707 | V83: -2.701042293 | W83: -2.71305059 | X83: -2.732477112 | Y83: -2.759217297 | Z83: -2.793222069 | AA83: -2.834500312 | AB83: -2.883115241 | AC83: -2.939186825 | AD83: -3.002886886 | AG83: 2 | AH83: -3.067152346 | AI83: -2.990783039 | AJ83: -2.928905673 | AK83: -2.880775324 | AL83: -2.845787503 | AM83: -2.823461006 | AN83: -2.813423806 | AO83: -2.815406967 | AP83: -2.829240673 | AQ83: -2.854845669 | AR83: -2.892235979 | AS83: -2.941517166 | AT83: -3.002887634 | AU83: -4.442882606
Q84: 2.5 | R84: -3.222040683 | S84: -3.205618747 | T84: -3.197584611 | U84: -3.197579254 | V84: -3.205321189 | W84: -3.220599852 | X84: -3.243269002 | Y84: -3.273242664 | Z84: -3.310491001 | AA84: -3.355044409 | AB84: -3.406982896 | AC84: -3.466440812 | AD84: -3.533623355 | AG84: 2.5 | AH84: -3.533197769 | AI84: -3.462813109 | AJ84: -3.406692625 | AK84: -3.36414447 | AL84: -3.33459677 | AM84: -3.317602957 | AN84: -3.312824003 | AO84: -3.320022714 | AP84: -3.339060054 | AQ84: -3.369888534 | AR84: -3.412551187 | AS84: -3.467188204 | AT84: -3.534030836 | AU84: -4.805578441
Q85: 3 | R85: -3.714071092 | S85: -3.701204484 | T85: -3.696617709 | U85: -3.699975823 | V85: -3.711020034 | W85: -3.729560559 | X85: -3.755471073 | Y85: -3.788683808 | Z85: -3.829190646 | AA85: -3.877039022 | AB85: -3.932323669 | AC85: -3.99520999 | AD85: -4.06591541 | AG85: 3 | AH85: -4.001772313 | AI85: -3.937295481 | AJ85: -3.886883376 | AK85: -3.849868336 | AL85: -3.82572537 | AM85: -3.814039805 | AN85: -3.814506314 | AO85: -3.826918964 | AP85: -3.851169312 | AQ85: -3.887242091 | AR85: -3.935210789 | AS85: -3.995249652 | AT85: -4.067628707 | AU85: -5.169532007
Q86: 3.5 | R86: -4.20761312 | S86: -4.198265984 | T86: -4.197098433 | U86: -4.203800245 | V86: -4.218134656 | W86: -4.239931941 | X86: -4.269085706 | Y86: -4.305548265 | Z86: -4.349328728 | AA86: -4.400492118 | AB86: -4.459159717 | AC86: -4.525510622 | AD86: -4.599784588 | AG86: 3.5 | AH86: -4.472853702 | AI86: -4.414219507 | AJ86: -4.369450164 | AK86: -4.337928261 | AL86: -4.319159408 | AM86: -4.312763628 | AN86: -4.318467804 | AO86: -4.336097851 | AP86: -4.365576491 | AQ86: -4.406918868 | AR86: -4.460235393 | AS86: -4.525724622 | AT86: -4.603702717 | AU86: -5.534695363
Q87: 4 | R87: -4.702650793 | S87: -4.696790137 | T87: -4.699018251 | U87: -4.709047164 | V87: -4.726662294 | W87: -4.751714167 | X87: -4.784116013 | Y87: -4.823837107 | Z87: -4.870911092 | AA87: -4.925416121 | AB87: -4.987499804 | AC87: -5.057358789 | AD87: -5.135252598 | AG87: 4 | AH87: -4.946408247 | AI87: -4.893550636 | AJ87: -4.854380568 | AK87: -4.828312269 | AL87: -4.814891225 | AM87: -4.813769977 | AN87: -4.824708156 | AO87: -4.8475644 | AP87: -4.882290271 | AQ87: -4.92893335 | AR87: -4.987639609 | AS87: -5.058642034 | AT87: -5.142291291 | AU87: -5.901067488
Q88: 4.5 | R88: -5.199170409 | S88: -5.196767297 | T88: -5.202369574 | U88: -5.215712064 | V88: -5.236601104 | W88: -5.264907352 | X88: -5.300565766 | Y88: -5.343563258 | Z88: -5.393951706 | AA88: -5.451829941 | AB88: -5.517366899 | AC88: -5.590775957 | AD88: -5.672348072 | AG88: 4.5 | AH88: -5.422411179 | AI88: -5.375274329 | AJ88: -5.341654454 | AK88: -5.321007852 | AL88: -5.312912619 | AM88: -5.317056237 | AN88: -5.333229805 | AO88: -5.361323565 | AP88: -5.401322412 | AQ88: -5.453306057 | AR88: -5.517448493 | AS88: -5.594030524 | AT88: -5.683428038 | AU88: -6.268606085
Q89: 5 | R89: -5.697159761 | S89: -5.698188325 | T89: -5.707146264 | U89: -5.723791517 | V89: -5.747951348 | W89: -5.779516176 | X89: -5.818442356 | Y89: -5.864733412 | Z89: -5.918461577 | AA89: -5.979743931 | AB89: -6.048774858 | AC89: -6.125786142 | AD89: -6.211094435 | AG89: 5 | AH89: -5.900838335 | AI89: -5.85936687 | AJ89: -5.83125799 | AK89: -5.816005005 | AL89: -5.81321849 | AM89: -5.822621274 | AN89: -5.844035145 | AO89: -5.877386183 | AP89: -5.922687097 | AQ89: -5.980052087 | AR89: -6.049691479 | AS89: -6.131915691 | AT89: -6.227151798 | AU89: -6.637282331
Q90: 5.5 | R90: -6.196608117 | S90: -6.20104537 | T90: -6.213343856 | U90: -6.233285338 | V90: -6.260715207 | W90: -6.295546907 | X90: -6.337751377 | Y90: -6.387358988 | Z90: -6.444451405 | AA90: -6.509179419 | AB90: -6.581744581 | AC90: -6.66241626 | AD90: -6.751526526 | AG90: 5.5 | AH90: -6.381669687 | AI90: -6.345814639 | AJ90: -6.323180221 | AK90: -6.31329496 | AL90: -6.315805897 | AM90: -6.330467243 | AN90: -6.357133494 | AO90: -6.395760917 | AP90: -6.446398271 | AQ90: -6.509191931 | AR90: -6.584389956 | AS90: -6.672336078 | AT90: -6.773502779 | AU90: -7.007090682
Q91: 6 | R91: -6.697506464 | S91: -6.705332777 | T91: -6.720960287 | U91: -6.744191366 | V91: -6.774894697 | W91: -6.813002445 | X91: -6.858504242 | Y91: -6.911447218 | Z91: -6.971945029 | AA91: -7.040154563 | AB91: -7.11630473 | AC91: -7.200688895 | AD91: -7.293669751 | AG91: 6 | AH91: -6.8648797 | AI91: -6.834600445 | AJ91: -6.817409295 | AK91: -6.812873553 | AL91: -6.820673847 | AM91: -6.84059775 | AN91: -6.872533083 | AO91: -6.91646792 | AP91: -6.972482111 | AQ91: -7.040759012 | AR91: -7.121578041 | AS91: -7.215335325 | AT91: -7.322528253 | AU91: -7.378005361
Q92: 6.5 | R92: -7.199846393 | S92: -7.211044613 | T92: -7.229991769 | U92: -7.256511427 | V92: -7.290492987 | W92: -7.331888739 | X92: -7.38070635 | Y92: -7.437017463 | Z92: -7.500949419 | AA92: -7.572682133 | AB92: -7.652475619 | AC92: -7.740638761 | AD92: -7.837557958 | AG92: 6.5 | AH92: -7.350457583 | AI92: -7.325712561 | AJ92: -7.313938182 | AK92: -7.314736707 | AL92: -7.327823261 | AM92: -7.353016687 | AN92: -7.390242975 | AO92: -7.439514971 | AP92: -7.500954387 | AQ92: -7.574772143 | AR92: -7.661292526 | AS92: -7.760944945 | AT92: -7.874277398 | AU92: -7.749984575
Q93: 7 | R93: -7.703622512 | S93: -7.718178962 | T93: -7.740439204 | U93: -7.770248769 | V93: -7.807517877 | W93: -7.852216318 | X93: -7.904374087 | Y93: -7.964080185 | Z93: -8.031484595 | AA93: -8.106797619 | AB93: -8.190283292 | AC93: -8.282286122 | AD93: -8.383227775 | AG93: 7 | AH93: -7.838383419 | AI93: -7.819139318 | AJ93: -7.812759925 | AK93: -7.818883186 | AL93: -7.83725757 | AM93: -7.867737433 | AN93: -7.910276459 | AO93: -7.964926884 | AP93: -8.031839662 | AQ93: -8.111267177 | AR93: -8.203565841 | AS93: -8.309213869 | AT93: -8.42880777 | AU93: -8.123019504
Q94: 7.5 | R94: -8.208828421 | S94: -8.226732038 | T94: -8.252302826 | U94: -8.28540698 | V94: -8.325973554 | W94: -8.37399212 | X94: -8.429516887 | Y94: -8.492656788 | Z94: -8.56357887 | AA94: -8.642513134 | AB94: -8.729755697 | AC94: -8.825674269 | AD94: -8.930716921 | AG94: 7.5 | AH94: -8.328645686 | AI94: -8.314872583 | AJ94: -8.31387084 | AK94: -8.325312982 | AL94: -8.348982225 | AM94: -8.384765441 | AN94: -8.432651829 | AO94: -8.492722673 | AP94: -8.565165863 | AQ94: -8.650275694 | AR94: -8.748443761 | AS94: -8.860194016 | AT94: -8.986175528 | AU94: -8.497084557
Q95: 8 | R95: -8.715459987 | S95: -8.736703439 | T95: -8.765583977 | U95: -8.801989251 | V95: -8.845868189 | W95: -8.897231556 | X95: -8.956152029 | Y95: -9.022759936 | Z95: -9.097243182 | AA95: -9.179852796 | AB95: -9.270920962 | AC95: -9.370835348 | AD95: -9.480068573 | AG95: 8 | AH95: -8.821231609 | AI95: -8.812905712 | AJ95: -8.817269367 | AK95: -8.834030223 | AL95: -8.863006594 | AM95: -8.904117348 | AN95: -8.957383625 | AO95: -9.022922417 | AP95: -9.10096506 | AQ95: -9.191832218 | AR95: -9.295967261 | AS95: -9.413934278 | AT95: -9.546436136 | AU95: -8.872154504
Q96: =Q72 -> 8.5 | R96: -9.223515794 | S96: -9.248094236 | T96: -9.280288016 | U96: -9.320003677 | V96: -9.367212509 | W96: -9.42194336 | X96: -9.484293836 | Y96: -9.554409488 | Z96: -9.632504724 | AA96: -9.718857355 | AB96: -9.813816416 | AC96: -9.917800707 | AD96: -10.03132296 | AG96: 8.5 | AH96: -9.316133401 | AI96: -9.313234053 | AJ96: -9.322955006 | AK96: -9.345039781 | AL96: -9.379336691 | AM96: -9.425805228 | AN96: -9.484493737 | AO96: -9.555559804 | AP96: -9.639267895 | AQ96: -9.735980216 | AR96: -9.84618359 | AS96: -9.970492626 | AT96: -10.10965301 | AU96: -9.248209796
Q97: 9 | R97: -9.73299393 | S97: -9.760904793 | T97: -9.796416913 | U97: -9.839455496 | V97: -9.890015707 | W97: -9.948146116 | X97: -10.01395812 | Y97: -10.08762911 | Z97: -10.16938836 | AA97: -10.25954678 | AB97: -10.35846942 | AC97: -10.46661554 | AD97: -10.58452562 | AG97: 9 | AH97: -9.813342877 | AI97: -9.815855242 | AJ97: -9.830930141 | AK97: -9.858347768 | AL97: -9.897989952 | AM97: -9.949847439 | AN97: -10.01400502 | AO97: -10.09066181 | AP97: -10.18011126 | AQ97: -10.28275811 | AR97: -10.3991411 | AS97: -10.52992303 | AT97: -10.67591145 | AU97: -9.625228557
Q98: 9.5 | R98: -10.24389378 | S98: -10.27514025 | T98: -10.3139785 | U98: -10.36035839 | V98: -10.41429048 | W98: -10.47585061 | X98: -10.54516846 | Y98: -10.62243857 | Z98: -10.70792327 | AA98: -10.80194926 | AB98: -10.90491917 | AC98: -11.01731993 | AD98: -11.13971955 | AG98: =AG74 -> 9.5 | AH98: -10.31285503 | AI98: -10.32076815 | AJ98: -10.34120033 | AK98: -10.37396266 | AL98: -10.41897685 | AM98: -10.47626176 | AN98: -10.54594655 | AO98: -10.62825475 | AP98: -10.72352975 | AQ98: -10.83221905 | AR98: -10.95489991 | AS98: -11.09229599 | AT98: -11.2452677 | AU98: -10.00320563
Q99: 10 | R99: -10.75621821 | S99: -10.79080089 | T99: -10.83297935 | U99: -10.88271634 | V99: -10.94005181 | W99: -11.00507239 | X99: -11.0779395 | Y99: -11.15886343 | Z99: -11.24813381 | AA99: -11.34610582 | AB99: -11.45320676 | AC99: -11.56995674 | AG99: 10 | AH99: -10.81466669 | AI99: -10.82797473 | AJ99: -10.85377003 | AK99: -10.89189846 | AL99: -10.94231422 | AM99: -11.00507284 | AN99: -11.08034049 | AO99: -11.16837642 | AP99: -11.26956491 | AQ99: -11.38440114 | AR99: -11.51351592 | AS99: -11.65767635 | AU99: -10.38209272
AH100: -2.213586241 | AI100: -2.298494008 | AJ100: -2.392909111 | AK100: -2.496666553 | AL100: -2.60969921 | AM100: -2.732028013 | AN100: -2.863767289 | AO100: -3.005081613 | AP100: -3.156238028 | AQ100: -3.3175908 | AR100: -3.489572088 | AS100: -3.672716442 | AT100: -3.867646365 | AU100: -3.005081613

Sheet Lookup Tables (hidden)
B2: Item | C2: Options
B3: Lower Gearbox Housings | C3: Std
B4: Antisquat Spacers | C4: 0 | D4: 1 | E4: 2 | F4: 3 | G4: 4 | H4: 5
B5: Rear Toe Block | C5: 3 | D5: 4
B6: Rear Hubs | C6: -1 deg | D6: Std | E6: +1 deg
B7: Rear Hub Hole Pos. | C7: Inner | D7: Centre | E7: Outer
B8: Rear Track | C8: Std | D8: Wide
B9: Upper Link | C9: 34 | D9: 39 | E9: 44 | F9: 49
B10: Upper Link Spacers | C10: 0 | D10: 1 | E10: 2 | F10: 3 | G10: 4 | H10: 5 | I10: 6 | J10: 7 | K10: 8 | L10: 9 | M10: 10
B11: Upper Ball Stud Spacers | C11: 0 | D11: 1 | E11: 2 | F11: 3 | G11: 4 | H11: 5 | I11: 6 | J11: 7 | K11: 8 | L11: 9 | M11: 10
B12: Lower Wishbones | C12: Std
B13: Upper Wishbones | C13: 58 | D13: 58.25 | E13: 58.5 | F13: 58.75 | G13: 59 | H13: 59.25 | I13: 59.5 | J13: 59.75 | K13: 60 | L13: 60.25 | M13: 60.5 | N13: 60.75 | O13: 61 | P13: 61.25 | Q13: 61.5 | R13: 61.75 | S13: 62 | T13: 62.25 | U13: 62.5 | V13: 62.75 | W13: 63 | X13: 63.25 | Y13: 63.5 | Z13: 63.75 | AA13: 64 | AB13: 64.25 | AC13: 64.5 | AD13: 64.75 | AE13: 65 | AF13: 65.25 | AG13: 65.5 | AH13: 65.75 | AI13: 66 | AJ13: 66.25 | AK13: 66.5 | AL13: 66.75 | AM13: 67 | AN13: 67.25 | AO13: 67.5 | AP13: 67.75 | AQ13: 68 | AR13: 68.25 | AS13: 68.5 | AT13: 68.75 | AU13: 69 | AV13: 69.25 | AW13: 69.5 | AX13: 69.75 | AY13: 70 | AZ13: 70.25 | BA13: 70.5 | BB13: 70.75 | BC13: 71 | BD13: 71.25 | BE13: 71.5 | BF13: 71.75 | BG13: 72 | BH13: 72.25 | BI13: 72.5 | BJ13: 72.75 | BK13: 73 | BL13: 73.25 | BM13: 73.5 | BN13: 73.75 | BO13: 74 | BP13: 74.25 | BQ13: 74.5 | BR13: 74.75 | BS13: 75
B14: Tyres | C14: Minispike
B16: =B3 -> Lower Gearbox Housings | C16: L.Pivot height above ref. plane | D16: Distance between L.Pivots
B17: =C3 -> Std | C17: 7 | D17: 32
B19: =B5 -> Rear Toe Block | C19: Width
B20: =C5 -> 3 | C20: 36
B21: =D5 -> 4 | C21: 37.5
B23: =B6 -> Rear Hubs | C23: Height | D23: Width offset | E23: Height offset
B24: =C6 -> -1 deg | C24: 28 | D24: 14 | E24: 6
B25: =D6 -> Std | C25: 28 | D25: 14 | E25: 6
B26: =E6 -> +1 deg | C26: 28 | D26: 14 | E26: 6
B28: =B7 -> Rear Hub Hole Pos. | C28: Width
B29: =C7 -> Inner | C29: 8
B30: =D7 -> Centre | C30: 4
B31: =E7 -> Outer | C31: 0
B33: Rear Track | C33: Rear hub offset
B34: =C8 -> Std | C34: 3.5
B35: =D8 -> Wide | C35: 2.5
B37: =B12 -> Lower Wishbones | C37: Length
B38: =C12 -> Std | C38: 74
B40: =B14 -> Tyres | C40: Centre diameter | D40: Edge diameter
B41: =C14 -> Minispike | C41: 84 | D41: 74

Sheet Stored data (hidden)
A1: Reference | B1: Std03StdCentreWide3420Std69.25Minispike | C1: Std03StdCentreWide3420Std70.25Minispike | D1: Std03StdCentreWide3920Std67.25Minispike | E1: Std03StdCentreWide4420Std65.5Minispike | F1: Std03StdCentreWide4920Std63Minispike | G1: Std03StdCentreWide4440Std65Minispike | H1: Std03StdCentreWide4940Std62.5Minispike | I1: Std03StdCentreWide3440Std69.75Minispike | J1: Std03StdCentreWide3940Std67.5Minispike | K1: Std03StdCentreWide3400Std70.75Minispike | L1: Std03StdCentreWide3900Std68.25Minispike | M1: Std03StdCentreWide4400Std66Minispike | N1: Std03StdCentreWide4900Std63.5Minispike | O1: Std03StdInnerWide4420Std61Minispike | P1: Std03StdInnerWide4920Std58.75Minispike | Q1: Std03StdInnerWide3420Std66.25Minispike | R1: Std03StdInnerWide3920Std64Minispike | S1: Std03StdOuterWide3420Std74.25Minispike | T1: Std03StdOuterWide3920Std71.75Minispike | U1: Std03StdOuterWide4420Std69.25Minispike | V1: Std03StdOuterWide4920Std67Minispike | W1: Std03StdCentreWide3920Std67.75Minispike | X1: Std03StdCentreWide3960Std67Minispike | Y1: Std03StdCentreWide3460Std69.5Minispike
A2: ='Cougar SV Rear Geometry'!B6 -> Lower Gearbox Housings | B2: Std | C2: Std | D2: Std | E2: Std | F2: Std | G2: Std | H2: Std | I2: Std | J2: Std | K2: Std | L2: Std | M2: Std | N2: Std | O2: Std | P2: Std | Q2: Std | R2: Std | S2: Std | T2: Std | U2: Std | V2: Std | W2: Std | X2: Std | Y2: Std
A3: ='Cougar SV Rear Geometry'!B7 -> Antisquat Spacers | B3: 0 | C3: 0 | D3: 0 | E3: 0 | F3: 0 | G3: 0 | H3: 0 | I3: 0 | J3: 0 | K3: 0 | L3: 0 | M3: 0 | N3: 0 | O3: 0 | P3: 0 | Q3: 0 | R3: 0 | S3: 0 | T3: 0 | U3: 0 | V3: 0 | W3: 0 | X3: 0 | Y3: 0
A4: ='Cougar SV Rear Geometry'!B8 -> Rear Toe Block | B4: 3 | C4: 3 | D4: 3 | E4: 3 | F4: 3 | G4: 3 | H4: 3 | I4: 3 | J4: 3 | K4: 3 | L4: 3 | M4: 3 | N4: 3 | O4: 3 | P4: 3 | Q4: 3 | R4: 3 | S4: 3 | T4: 3 | U4: 3 | V4: 3 | W4: 3 | X4: 3 | Y4: 3
A5: ='Cougar SV Rear Geometry'!B9 -> Rear Hubs | B5: Std | C5: Std | D5: Std | E5: Std | F5: Std | G5: Std | H5: Std | I5: Std | J5: Std | K5: Std | L5: Std | M5: Std | N5: Std | O5: Std | P5: Std | Q5: Std | R5: Std | S5: Std | T5: Std | U5: Std | V5: Std | W5: Std | X5: Std | Y5: Std
A6: ='Cougar SV Rear Geometry'!B10 -> Rear Hub Hole Pos. | B6: Centre | C6: Centre | D6: Centre | E6: Centre | F6: Centre | G6: Centre | H6: Centre | I6: Centre | J6: Centre | K6: Centre | L6: Centre | M6: Centre | N6: Centre | O6: Inner | P6: Inner | Q6: Inner | R6: Inner | S6: Outer | T6: Outer | U6: Outer | V6: Outer | W6: Centre | X6: Centre | Y6: Centre
A7: ='Cougar SV Rear Geometry'!B11 -> Rear Track | B7: Wide | C7: Wide | D7: Wide | E7: Wide | F7: Wide | G7: Wide | H7: Wide | I7: Wide | J7: Wide | K7: Wide | L7: Wide | M7: Wide | N7: Wide | O7: Wide | P7: Wide | Q7: Wide | R7: Wide | S7: Wide | T7: Wide | U7: Wide | V7: Wide | W7: Wide | X7: Wide | Y7: Wide
A8: ='Cougar SV Rear Geometry'!I6 -> Upper Link | B8: 34 | C8: 34 | D8: 39 | E8: 44 | F8: 49 | G8: 44 | H8: 49 | I8: 34 | J8: 39 | K8: 34 | L8: 39 | M8: 44 | N8: 49 | O8: 44 | P8: 49 | Q8: 34 | R8: 39 | S8: 34 | T8: 39 | U8: 44 | V8: 49 | W8: 39 | X8: 39 | Y8: 34
A9: ='Cougar SV Rear Geometry'!I7 -> Upper Link Spacers | B9: 2 | C9: 2 | D9: 2 | E9: 2 | F9: 2 | G9: 4 | H9: 4 | I9: 4 | J9: 4 | K9: 0 | L9: 0 | M9: 0 | N9: 0 | O9: 2 | P9: 2 | Q9: 2 | R9: 2 | S9: 2 | T9: 2 | U9: 2 | V9: 2 | W9: 2 | X9: 6 | Y9: 6
A10: ='Cougar SV Rear Geometry'!I8 -> Upper Ball Stud Spacers | B10: 0 | C10: 0 | D10: 0 | E10: 0 | F10: 0 | G10: 0 | H10: 0 | I10: 0 | J10: 0 | K10: 0 | L10: 0 | M10: 0 | N10: 0 | O10: 0 | P10: 0 | Q10: 0 | R10: 0 | S10: 0 | T10: 0 | U10: 0 | V10: 0 | W10: 0 | X10: 0 | Y10: 0
A11: ='Cougar SV Rear Geometry'!I9 -> Lower Wishbones | B11: Std | C11: Std | D11: Std | E11: Std | F11: Std | G11: Std | H11: Std | I11: Std | J11: Std | K11: Std | L11: Std | M11: Std | N11: Std | O11: Std | P11: Std | Q11: Std | R11: Std | S11: Std | T11: Std | U11: Std | V11: Std | W11: Std | X11: Std | Y11: Std
A12: ='Cougar SV Rear Geometry'!I10 -> Upper Wishbones | B12: 69.25 | C12: 70.25 | D12: 67.25 | E12: 65.5 | F12: 63 | G12: 65 | H12: 62.5 | I12: 69.75 | J12: 67.5 | K12: 70.75 | L12: 68.25 | M12: 66 | N12: 63.5 | O12: 61 | P12: 58.75 | Q12: 66.25 | R12: 64 | S12: 74.25 | T12: 71.75 | U12: 69.25 | V12: 67 | W12: 67.75 | X12: 67 | Y12: 69.5
A13: ='Cougar SV Rear Geometry'!I11 -> Tyres | B13: Minispike | C13: Minispike | D13: Minispike | E13: Minispike | F13: Minispike | G13: Minispike | H13: Minispike | I13: Minispike | J13: Minispike | K13: Minispike | L13: Minispike | M13: Minispike | N13: Minispike | O13: Minispike | P13: Minispike | Q13: Minispike | R13: Minispike | S13: Minispike | T13: Minispike | U13: Minispike | V13: Minispike | W13: Minispike | X13: Minispike | Y13: Minispike
B14: -30.37610359 | C14: -31.24285572 | D14: -28.20438053 | E14: -26.05184743 | F14: -23.13095537 | G14: -30.12347159 | H14: -27.25512948 | I14: -35.17713797 | J14: -32.84768918 | K14: -27.43338667 | L14: -24.76003136 | M14: -22.13100723 | N14: -19.17138325 | O14: -22.75148668 | P14: -19.98770921 | Q14: -28.18807216 | R14: -25.71939056 | S14: -34.57742146 | T14: -31.90696154 | U14: -29.10650979 | V14: -26.44338816 | W14: -28.61463501 | X14: -36.99518808 | Y14: -39.51731281
B15: -27.98607827 | C15: -28.80239445 | D15: -26.011909 | E15: -24.06118786 | F15: -21.37941016 | G15: -28.07464917 | H15: -25.45966814 | I15: -32.65737923 | J15: -30.55179054 | K15: -25.05894341 | L15: -22.60029615 | M15: -20.18364381 | N15: -17.44860547 | O15: -20.95558964 | P15: -18.39986752 | Q15: -25.97074812 | R15: -23.69941893 | S15: -31.85121454 | T15: -29.43321273 | U15: -26.89071965 | V15: -24.48055407 | W15: -26.4007742 | X15: -34.61382916 | Y15: -36.88392183
B16: -25.58766657 | C16: -26.35542085 | D16: -23.79969538 | E16: -22.0391274 | F16: -19.58568753 | G16: -25.99710875 | H16: -23.62272791 | I16: -30.1373706 | J16: -28.24148954 | K16: -22.67364799 | L16: -20.41852254 | M16: -18.2043262 | N16: -15.68490077 | O16: -19.12834599 | P16: -16.77327953 | Q16: -23.73882406 | R16: -21.65584769 | S16: -29.13536933 | T16: -26.95168631 | U16: -24.65026232 | V16: -22.47738474 | W16: -24.16755444 | X16: -32.22539042 | Y16: -34.26077567
B17: -23.18125852 | C17: -23.90199411 | D17: -21.56928857 | E17: -19.98849217 | F17: -17.75317184 | G17: -23.89402423 | H17: -21.7481942 | I17: -27.61734826 | J17: -25.91821386 | K17: -20.27795311 | L17: -18.21653441 | M17: -16.19543161 | N17: -13.88314256 | O17: -17.27248002 | P17: -15.11115046 | Q17: -21.4934155 | R17: -19.59055181 | S17: -26.42841856 | T17: -24.46291898 | U17: -22.38740731 | V17: -20.43769698 | W17: -21.91658786 | X17: -29.83126627 | Y17: -31.64704951
B18: -20.76747473 | C18: -21.44264166 | D18: -19.32205796 | E18: -17.91170523 | F18: -15.88515147 | G18: -21.76814174 | H18: -19.83998471 | I18: -25.09700145 | J18: -23.58360001 | K18: -17.87228818 | L18: -15.99539525 | M18: -14.15890028 | N18: -12.04582363 | O18: -15.39023261 | P18: -13.41633181 | Q18: -19.23555 | R18: -17.50533179 | S18: -23.72865267 | T18: -21.96739413 | U18: -20.10413505 | V18: -18.36476653 | W18: -19.64913404 | X18: -27.43274816 | Y18: -29.04187308
B19: -18.34621797 | C19: -18.97720573 | D19: -17.05949552 | E19: -15.8107673 | F19: -13.98439086 | G19: -19.62144281 | H19: -17.90141864 | I19: -22.57638351 | J19: -21.23842926 | K19: -15.4568055 | L19: -13.75637239 | M19: -12.09665799 | N19: -10.17543291 | O19: -13.48394012 | P19: -11.69150842 | Q19: -16.96602347 | R19: -15.40157643 | S19: -21.03501787 | T19: -19.46537085 | U19: -17.8022618 | V19: -16.26142312 | W19: -17.3665152 | X19: -25.03065756 | Y19: -26.44494675
B20: -15.9179642 | C20: -16.50587017 | D20: -14.78219708 | E20: -13.68741494 | F20: -12.0534769 | G20: -17.45623859 | H20: -15.93531879 | I20: -20.05516918 | J20: -18.88368397 | K20: -13.03191558 | L20: -11.50027921 | M20: -10.01006204 | N20: -8.27390791 | O20: -11.55546044 | P20: -9.93916971 | Q20: -14.6853752 | R20: -13.28085863 | S20: -18.34616603 | T20: -16.9569617 | U20: -15.48297215 | V20: -14.13014566 | W20: -15.06955843 | X20: -22.62598816 | Y20: -23.85503012
B21: -13.48266186 | C21: -14.02847544 | D21: -12.49134726 | E21: -11.54329448 | F21: -10.09458732 | G21: -15.27422647 | H21: -13.94442018 | I21: -17.53299602 | J21: -16.52023757 | K21: -10.59736482 | L21: -9.227767478 | M21: -7.900659229 | N21: -6.343136139 | O21: -9.606731942 | P21: -8.161789621 | Q21: -12.39431548 | R21: -11.14408656 | S21: -15.66090674 | T21: -14.44220211 | U21: -13.14749015 | V21: -11.97295478 | W21: -12.75913405 | X21: -20.21909782 | Y21: -21.2720701
B22: -11.04027953 | C22: -11.54488607 | D22: -10.18742759 | E22: -9.379705252 | F22: -8.109735469 | G22: -13.07686658 | H22: -11.93129983 | I22: -15.00954487 | J22: -14.14863521 | K22: -8.15321881 | L22: -6.939478946 | M22: -5.769486584 | N22: -4.384920039 | O22: -7.639541475 | P22: -6.361484016 | Q22: -10.09321754 | R22: -8.992599956 | S22: -12.97797837 | T22: -11.92086316 | U22: -10.7965157 | V22: -9.79180534 | W22: -10.43572452 | X22: -17.81082791 | Y22: -18.69514637
B23: -8.590706469 | C23: -9.054928875 | D23: -7.87098224 | E23: -7.197835772 | F23: -6.100909858 | G23: -10.86547617 | H23: -9.898192462 | I23: -12.48462954 | J23: -11.76946071 | K23: -5.69933806 | L23: -4.635891303 | M23: -3.617526613 | N23: -2.400618694 | O23: -5.655389555 | P23: -4.54047446 | Q23: -7.782390765 | R23: -6.827238991 | S23: -10.29624717 | T23: -9.392819392 | U23: -8.430972979 | V23: -7.588020008 | W23: -8.100101955 | X23: -15.40191464 | Y23: -16.1237645
B24: -6.133758562 | C24: -6.557932516 | D24: -5.542575984 | E24: -4.998393008 | F24: -4.069689751 | G24: -8.641586191 | H24: -7.847044937 | I24: -9.957737773 | J24: -9.383120025 | K24: -3.235334318 | L24: -2.317331571 | M24: -1.445346516 | N24: -0.3912783321 | O24: -3.656046831 | P24: -2.700868803 | Q24: -5.462246955 | R24: -4.648820933 | S24: -7.614538074 | T24: -6.857884938 | U24: -6.051263413 | V24: -5.362734409 | W24: -5.752275158 | X24: -12.99255201 | Y24: -13.55739119
B25: -3.669238732 | C25: -4.0538013 | D25: -3.202389685 | E25: -2.782898382 | F25: -2.017005844 | G25: -6.406066761 | H25: -5.779987706 | I25: -7.42828513 | J25: -6.989585577 | K25: -0.7607267306 | L25: 0.01633253962 | M25: 0.7456773682 | N25: 1.641348841 | O25: -1.642685316 | P25: -0.844798824 | Q25: -3.132890766 | R25: -2.457709894 | S25: -4.931455306 | T25: -4.315198648 | U25: -3.657818838 | V25: -3.117728856 | W25: -3.392740123 | X25: -10.58323888 | Y25: -10.9953753
B26: -1.196658143 | C26: -1.541633708 | D26: -0.8506919774 | E26: -0.5517453109 | F26: 0.05447451563 | G26: -4.160170431 | H26: -3.698908756 | I26: -4.896017363 | J26: -4.589485786 | K26: 1.724334097 | L26: 2.364379894 | M26: 2.955332778 | N26: 3.696429487 | O26: 0.3829061718 | P26: 1.0257145 | Q26: -0.7945409136 | R26: -0.2554179767 | S26: -2.245446559 | T26: -1.764248597 | U26: -1.250783473 | V26: -0.8534650795 | W26: -1.021617798 | X26: -8.174782682 | Y26: -8.437566806
B27: -30.17445933 | C27: -30.99345357 | D27: -28.16084454 | E27: -26.1697606 | F27: -23.44344505 | G27: -30.20950634 | H27: -27.54894498 | I27: -34.87579598 | J27: -32.72994162 | K27: -27.2250394 | L27: -24.72647849 | M27: -22.26883168 | N27: -19.49032565 | O27: -23.02341166 | P27: -20.42584448 | Q27: -28.11905149 | R27: -25.80941504 | S27: -34.09211554 | T27: -31.6317953 | U27: -29.04463318 | V27: -26.58883733 | W27: -28.55125845 | X27: -36.82137576 | Y27: -39.13286319
B28: -27.76084324 | C28: -28.52971855 | D28: -25.93717209 | E28: -24.13993249 | F28: -21.64661896 | G28: -28.12167889 | H28: -25.7067716 | I28: -32.33649141 | J28: -30.40443261 | K28: -24.82548938 | L28: -22.53479923 | M28: -20.28370681 | N28: -17.72531471 | O28: -21.19166126 | P28: -18.79879446 | Q28: -25.87440217 | R28: -23.75679599 | S28: -31.35407996 | T28: -29.13343094 | U28: -26.79249313 | V28: -24.57915584 | W28: -26.30595 | X28: -34.41475165 | Y28: -36.48672123
B29: -25.34059076 | C29: -26.06109455 | D29: -23.69567057 | E29: -22.08141812 | F29: -19.81047863 | G29: -26.00858635 | H29: -23.82657823 | I29: -29.79860148 | J29: -28.06703734 | K29: -22.41651315 | L29: -20.32325194 | M29: -18.26868566 | N29: -15.92142757 | O29: -19.33090882 | P29: -17.13522563 | Q29: -23.6171051 | R29: -21.68265434 | S29: -28.62710644 | T29: -26.62878163 | U29: -24.51838773 | V29: -22.53238081 | W29: -24.04333819 | X29: -32.00388846 | Y29: -33.85219619
B30: -22.9134972 | C30: -23.58761197 | D30: -21.43817966 | E30: -19.99676982 | F30: -17.93819828 | G30: -23.87286926 | H30: -21.91224784 | I30: -27.26211299 | J30: -25.71889588 | K30: -19.99851717 | L30: -18.09296382 | M30: -16.22610194 | N30: -14.08148106 | O30: -17.44349342 | P30: -15.43833186 | Q30: -21.34799226 | R30: -19.58879309 | S30: -25.90934512 | T30: -24.11893701 | U30: -22.22439154 | V30: -20.45244009 | W30: -21.76497968 | X30: -29.58971231 | Y30: -31.22795048
B31: -20.48043074 | C31: -21.10918707 | D31: -19.16586223 | E31: -17.88820603 | F31: -16.03291282 | G31: -21.71678772 | H31: -19.96749188 | I31: -24.72662046 | J31: -23.36140178 | K31: -17.57183478 | L31: -15.84515775 | M31: -14.15768812 | N31: -12.20800642 | O31: -15.53203425 | P31: -13.71091103 | Q31: -19.06799248 | R31: -17.47692737 | S31: -23.19946996 | T31: -21.60353724 | U31: -19.9123048 | V31: -18.34193381 | W31: -19.47219012 | X31: -27.17339805 | Y31: -28.61401053
B32: -18.04137831 | C32: -18.62599 | D32: -16.87955072 | E32: -15.75751845 | F32: -14.09723789 | G32: -19.54256969 | H32: -17.99493318 | I32: -22.19198809 | J32: -20.99533711 | K32: -15.13663867 | L32: -13.58085486 | M32: -12.06511284 | N32: -10.30313895 | O32: -13.59830198 | P32: -11.95558197 | Q32: -16.77743408 | R32: -15.34813176 | S32: -20.49613808 | T32: -19.08312884 | U32: -17.58357141 | V32: -16.20376259 | W32: -17.16567614 | X32: -24.75548524 | Y32: -26.00885094
B33: -15.59620509 | C33: -16.13785241 | D33: -14.58020478 | E33: -13.60627157 | F33: -12.1334215 | G33: -17.35207034 | H33: -15.99794504 | I33: -19.6576827 | J33: -18.6214361 | K33: -12.69264206 | L33: -11.30082834 | M33: -9.949852933 | N33: -8.3687472 | O33: -11.64426941 | P33: -10.17485901 | Q33: -14.47749993 | R33: -13.20394873 | S33: -17.79785466 | T33: -16.55723339 | U33: -15.23937666 | V33: -14.04009392 | W33: -14.84614879 | X33: -22.33642346 | Y33: -23.41176604
B34: -13.1450693 | C34: -13.64477233 | D34: -12.2686291 | E34: -11.43610131 | F34: -10.1439176 | G34: -15.14680517 | H34: -13.97862286 | I34: -17.1235817 | J34: -16.24030685 | K34: -10.24014729 | L34: -9.005742698 | M34: -7.813197948 | N34: -6.406786126 | O34: -9.67202448 | P34: -8.371130872 | Q34: -12.16795253 | R34: -11.04544447 | S34: -15.10366277 | T34: -14.02638438 | U34: -12.88051656 | V34: -11.85236678 | W34: -12.514807 | X34: -19.91731302 | Y34: -20.82272037
B35: -10.68787314 | C35: -11.14629198 | D35: -9.945422204 | E35: -9.248079298 | F35: -8.130310899 | G35: -12.92822549 | H35: -11.93962845 | I35: -14.58913719 | J35: -13.8526462 | K35: -7.779271923 | L35: -6.696271566 | M35: -5.656238681 | N35: -4.418850881 | O35: -7.682904922 | P35: -6.546590741 | Q35: -9.849787236 | R35: -8.873461314 | S35: -12.4123444 | T35: -11.48975525 | U35: -10.50782664 | V35: -9.643045207 | W35: -10.17200041 | X35: -17.49855205 | Y35: -18.24034025
B36: -8.22475284 | C36: -8.642718988 | D36: -7.611277273 | E36: -7.043648987 | F36: -6.094811889 | G36: -10.69763459 | H36: -9.883005379 | I36: -12.05399648 | J36: -11.4588987 | K36: -5.3105385 | L36: -4.37318353 | M36: -3.480204052 | N36: -2.406354669 | O36: -5.678605686 | P36: -4.70349861 | Q36: -7.523298755 | R36: -6.689328072 | S36: -9.723011886 | T36: -8.94786749 | U36: -8.122317324 | V36: -7.412924536 | W36: -7.818087647 | X36: -15.08040748 | Y36: -15.6644372
B37: -5.755563456 | C37: -6.133747242 | D37: -5.26643948 | E37: -4.823524299 | F37: -4.038394636 | G37: -8.456636525 | H37: -7.810893519 | I37: -9.518009483 | J37: -9.059036136 | K37: -2.835864193 | L37: -2.039333278 | M37: -1.28773357 | N37: -0.3705816359 | O37: -3.660811385 | P37: -2.844262311 | Q37: -5.188875369 | R37: -4.493626942 | S37: -7.034799222 | T37: -6.400629123 | U37: -5.724346657 | V37: -5.16354451 | W37: -5.453921815 | X37: -12.66355482 | Y37: -13.09468214
B38: -3.282225108 | C38: -3.620778036 | D38: -2.912891385 | E38: -2.589516534 | F38: -1.963357213 | G38: -6.205952171 | H38: -5.725238933 | I38: -6.980868679 | J38: -6.653961378 | K38: -0.392128226 | L38: 1.63058351 | M38: 0.9424555388 | N38: 1.68869061 | O38: -1.631024763 | P38: -0.9728601327 | Q38: -2.848320019 | R38: -2.287883854 | S38: -4.348951643 | T38: -3.849226726 | U38: -3.315757555 | V38: -2.897030271 | W38: -3.08085318 | X38: -10.24856107 | Y38: -10.53005485
B39: -0.8210751749 | C39: -1.117429578 | D39: -0.5672436224 | E39: -0.3562218838 | F39: 0.1555680337 | G39: -3.946697037 | H39: -3.627846585 | I39: -4.443513381 | J39: -4.244595256 | K39: 2.198716238 | L39: 2.701172869 | M39: 3.166578358 | N39: 3.768385312 | O39: 0.4097157275 | P39: 0.9207655749 | Q39: -0.5185264939 | R39: -0.1013254729 | S39: -1.676997699 | T39: -1.305970922 | U39: -0.9092455274 | V39: -0.6234127439 | W39: -0.7134240362 | X39: -7.83623371 | Y39: -7.971068029
B40: -29.96869519 | C40: -30.7404193 | D40: -28.11096532 | E40: -26.2797854 | F40: -23.74859339 | G40: -30.28750925 | H40: -27.83469075 | I40: -34.57211997 | J40: -32.6065825 | K40: -27.0121307 | L40: -24.68626383 | M40: -22.39910367 | N40: -19.80314497 | O40: -23.28940204 | P40: -20.86049343 | Q40: -28.04449317 | R40: -25.89270257 | S40: -33.60838726 | T40: -31.35306868 | U40: -28.9754577 | V40: -26.7249581 | W40: -28.48150808 | X40: -36.64321815 | Y40: -38.74867586
B41: -27.53207172 | C41: -28.25414605 | D41: -25.85638085 | E41: -24.21127947 | F41: -21.90671031 | G41: -28.16168804 | H41: -25.94606479 | I41: -32.01402962 | J41: -30.25201756 | K41: -24.58819273 | L41: -22.46326112 | M41: -20.37646764 | N41: -17.9957329 | O41: -21.4221014 | P41: -19.19418955 | Q41: -25.77313563 | R41: -23.80789803 | S41: -30.85936217 | T41: -28.83048273 | U41: -26.68765683 | V41: -24.66878981 | W41: -26.20515604 | X41: -34.2124835 | Y41: -36.09036445
B42: -25.09038383 | C42: -25.76459537 | D42: -23.58655433 | E42: -22.11682729 | F42: -20.02829666 | G42: -26.01351557 | H42: -24.02324161 | I42: -29.45892665 | J42: -27.88831472 | K42: -22.15648119 | L42: -20.22235438 | M42: -18.32621158 | N42: -16.151797 | O42: -19.52798986 | P42: -17.49382109 | Q42: -23.49094524 | R42: -21.70362011 | S42: -28.12170624 | T42: -26.30381017 | U42: -24.3806225 | V42: -22.57920436 | W42: -23.91397617 | X42: -31.77956517 | Y42: -33.44482507
B43: -22.64371261 | C43: -23.27152601 | D43: -21.30249754 | E43: -19.9986307 | F43: -18.1165521 | G43: -23.84569482 | H43: -22.06946758 | I43: -26.90672334 | J43: -25.5164157 | K43: -19.71707535 | L43: -17.96440678 | M43: -16.25012355 | N43: -14.27377865 | O43: -17.60949316 | P43: -15.76232087 | Q43: -21.19867926 | R43: -19.58173863 | S43: -25.39435091 | T43: -23.77351848 | U43: -22.05648697 | V43: -20.45945961 | W43: -21.60887872 | X43: -29.34619572 | Y43: -30.811278
B44: -20.1921551 | C44: -20.77515563 | D44: -19.00545979 | E44: -17.85868308 | F44: -16.17422855 | G44: -21.66027275 | H44: -20.08833652 | I44: -24.3568687 | J44: -23.13670839 | K44: -17.27014624 | L44: -15.69072383 | M44: -14.1502184 | N44: -12.3641618 | O44: -15.66878772 | P44: -14.00247735 | Q44: -18.89690095 | R44: -17.44343235 | S44: -22.67509367 | T44: -21.23938046 | U44: -19.71626025 | V44: -18.31217391 | W44: -19.29118414 | X44: -26.91290525 | Y44: -28.18876588
B45: -17.73589494 | C45: -18.27508138 | D45: -16.6962932 | E45: -15.6987624 | F45: -14.2038666 | G45: -19.45918324 | H45: -18.08270446 | I45: -21.809058 | J45: -20.75048554 | K45: -14.81601545 | L45: -13.40193014 | M45: -12.02785045 | N45: -10.42484022 | O45: -13.70795753 | P45: -12.21699396 | Q45: -16.58635372 | R45: -15.2902509 | S45: -19.96304895 | T45: -18.70137223 | U45: -17.36158272 | V45: -16.13973946 | W45: -16.96151011 | X45: -24.47970235 | Y45: -25.57615703
B46: -15.27487494 | C46: -15.77141369 | D46: -14.3757282 | E46: -13.52035466 | F46: -12.20768964 | G46: -17.24395823 | H46: -16.05510847 | I46: -19.26269373 | J46: -18.35859889 | K46: -12.35451551 | L46: -11.09901019 | M46: -9.884472029 | N46: -8.457877189 | O46: -11.72879747 | P46: -10.40810532 | Q46: -14.26746637 | R46: -13.12315346 | S46: -17.25726638 | T46: -16.15982332 | U46: -14.99333838 | V46: -13.94410757 | W46: -14.62073819 | X46: -22.04770922 | Y46: -22.97298897
B47: -12.80919365 | C47: -13.26396462 | D47: -12.04445402 | E47: -11.32498246 | F47: -10.18769624 | G47: -15.01657022 | H47: -14.00797498 | I47: -16.71784963 | J47: -15.96069928 | K47: -9.885977178 | L47: -8.782516599 | M47: -7.721178749 | N47: -6.464953153 | O47: -9.733244215 | P47: -8.57851328 | Q47: -11.94077586 | R47: -10.94336519 | S47: -14.55590132 | T47: -13.61416963 | U47: -12.6123615 | V47: -11.72715663 | W47: -12.26945606 | X47: -19.61703815 | Y47: -20.37839822
B48: -10.33893236 | C48: -10.7527886 | D48: -9.703239706 | E48: -9.113472246 | F48: -8.146008612 | G48: -12.77754643 | H48: -11.94399107 | I48: -14.17368237 | J48: -13.5577408 | K48: -7.41140678 | L48: -6.453493511 | M48: -5.539540337 | N48: -4.447531292 | O48: -7.722690661 | P48: -6.730175921 | Q48: -9.606705943 | R48: -8.752045207 | S48: -11.85861826 | T48: -11.06473105 | U48: -10.21975007 | V48: -9.490272651 | W48: -9.908454653 | X48: -17.18839969 | Y48: -17.79179664
B49: -7.86447438 | C49: -8.238225077 | D49: -7.352840964 | E49: -6.887302046 | F49: -6.083822074 | G49: -10.52869731 | H49: -9.864361796 | I49: -11.63018906 | J49: -11.15048246 | K49: -4.932589085 | L49: -4.114532122 | M49: -3.340940622 | N49: -2.406782288 | O49: -5.69877593 | P49: -4.865791519 | Q49: -7.266292842 | R49: -6.549709384 | S49: -9.165398275 | T49: -8.511798732 | U49: -7.816013514 | V49: -7.23504053 | W49: -7.538354781 | X49: -14.76251735 | Y49: -15.21271428
B50: -5.387559095 | C50: -5.721822378 | D50: -4.994791677 | E50: -4.647870832 | F50: -4.003058557 | G50: -8.271180913 | H50: -7.771992231 | I50: -9.08778354 | J50: -8.739144545 | K50: -2.459823209 | L50: -1.775529045 | M50: -1.134455626 | N50: -0.34517637 | O50: -3.663021567 | P50: -2.98846862 | Q50: -4.920567776 | R50: -4.338281111 | S50: -6.477308286 | T50: -5.957303332 | U50: -5.403313094 | V50: -4.96348724 | W50: -5.160801456 | X50: -12.33956949 | Y50: -12.6410021
B51: -2.915109659 | C51: -3.210553329 | D51: -2.634906011 | E51: -2.399647508 | F51: -1.905902471 | G51: -6.006753126 | H51: -5.668173421 | I51: -6.547200008 | J51: -6.325352618 | K51: -0.1424124515 | L51: 4.73252378 | M51: 1.164602445 | N51: 1.740544584 | O51: -1.617319587 | P51: -1.108118983 | Q51: -2.575168801 | R51: -2.121496075 | S51: -3.802406454 | T51: -3.40809622 | U51: -2.987643868 | V51: -2.680010646 | W51: -2.781479859 | X51: -9.92020777 | Y51: -10.0761413
B52: -0.5146676557 | C52: -0.759457396 | D52: -0.3389235156 | E52: -0.2011393479 | F52: 0.3002022747 | G52: -3.737546574 | H52: -3.555539255 | I52: -4.01296787 | J52: -3.912463435 | K52: 2.731514985 | L52: 3.062372138 | M52: 3.388105201 | N52: 3.844835582 | O52: 0.4387927452 | P52: 0.8235181448 | Q52: -0.2995421892 | R52: -0.01640612189 | S52: -1.190381564 | T52: -0.9143431266 | U52: -0.619491504 | V52: -0.4264551841 | W52: -0.4582067047 | X52: -7.506105551 | Y52: -7.519576996
B53: -29.75908069 | C53: -30.48399758 | D53: -28.05494437 | E53: -26.38241279 | F53: -24.0466341 | G53: -30.35828683 | H53: -28.11271297 | I53: -34.26653252 | J53: -32.47771202 | K53: -26.79534515 | L53: -24.63975129 | M53: -22.52228462 | N53: -20.10983475 | O53: -23.54978149 | P53: -21.29194184 | Q53: -27.96460338 | R53: -25.9696437 | S53: -33.12634414 | T53: -31.07085461 | U53: -28.89915274 | V53: -26.85216148 | W53: -28.40576494 | X53: -36.461538 | Y53: -38.36443096
B54: -27.30008839 | C54: -27.97591722 | D54: -25.77016816 | E54: -24.27555779 | F54: -22.15985859 | G54: -28.19482658 | H54: -26.17817636 | I54: -31.69011554 | J54: -30.09528076 | K54: -24.34761661 | L54: -22.38603647 | M54: -20.46240624 | N54: -18.26025159 | O54: -21.64703384 | P54: -19.58649513 | Q54: -25.66719809 | R54: -23.85305427 | S54: -30.36652553 | T54: -28.52501875 | U54: -26.57640573 | V54: -24.75018442 | W54: -26.09901968 | X54: -34.00686378 | Y54: -35.69460697
B55: -24.83760431 | C55: -25.46604998 | D55: -23.47242058 | E55: -22.14552414 | F55: -20.23946489 | G55: -26.01239369 | H55: -24.21292322 | I55: -29.11870359 | J55: -27.70591212 | K55: -21.89358606 | L55: -20.11603786 | M55: -18.37704458 | N55: -16.37615109 | O55: -19.71981134 | P55: -17.84928729 | Q55: -23.360697 | R55: -21.71909779 | S55: -27.61928409 | T55: -25.97715305 | U55: -24.23745159 | V55: -22.61824359 | W55: -23.77971649 | X55: -31.55326478 | Y55: -33.03884199
B56: -22.37173424 | C56: -22.95436004 | D56: -21.16261317 | E56: -19.99428587 | F56: -18.28850656 | G56: -23.81306821 | H56: -22.22034508 | I56: -26.55124692 | J56: -25.31056953 | K56: -19.43358983 | L56: -17.8311903 | M56: -16.26798592 | N56: -14.4601975 | O56: -17.77057698 | P56: -16.08331447 | Q56: -21.04565014 | R56: -19.56945791 | S56: -24.88265933 | T56: -23.42716581 | U56: -21.88346435 | V56: -20.45935966 | W56: -21.448714 | X56: -29.10113344 | Y56: -30.39629348
B57: -19.90270456 | C57: -20.44066805 | D57: -18.84154096 | E57: -17.82362443 | F57: -16.30947847 | G57: -21.59895532 | H57: -20.2035162 | I57: -23.98817602 | J57: -22.90971965 | K57: -16.96738121 | L57: -15.53192973 | M57: -14.13690635 | N57: -12.51443272 | O57: -15.80115275 | P57: -14.2913166 | Q57: -18.72307192 | R57: -17.40558696 | S57: -22.15560662 | T57: -20.8751084 | U57: -19.51621026 | V57: -18.27576248 | W57: -19.10674035 | X57: -26.6511525 | Y57: -27.76603001
B58: -17.43008499 | C58: -17.92470889 | D58: -16.51020976 | E58: -15.63500649 | F58: -14.30471696 | G58: -19.37162533 | H58: -18.16500581 | I58: -21.42785233 | J58: -20.50422657 | K58: -14.49533717 | L58: -13.21954187 | M58: -11.98515083 | N58: -10.54106099 | O58: -13.81350663 | P58: -12.47580659 | Q58: -16.39296804 | R58: -15.22817099 | S58: -19.4363024 | T58: -18.32100142 | U58: -17.13665662 | V58: -16.06978957 | W58: -16.7547541 | X58: -24.20377373 | Y58: -25.14681831
B59: -14.95419913 | C59: -15.40675044 | D59: -14.1690078 | E59: -13.43016534 | F59: -12.2763306 | G59: -17.13253457 | H59: -16.10775974 | I59: -18.87054802 | J59: -18.09445167 | K59: -12.01778244 | L59: -10.89448326 | M59: -9.814077397 | N59: -8.541538146 | O59: -11.80955157 | P59: -10.63925637 | Q59: -14.05604764 | R59: -13.03887683 | S59: -16.72352921 | T59: -15.76446642 | U59: -14.74512086 | V59: -13.84319435 | W59: -14.39328589 | X59: -21.75924322 | Y59: -22.53813213
B60: -12.47527878 | C60: -12.88628009 | D60: -11.81906357 | E60: -11.20999614 | F60: -10.22660666 | G60: -14.88310131 | H60: -14.0332676 | I60: -16.3157192 | J60: -15.68076143 | K60: -9.535244848 | L60: -8.557969398 | M60: -7.625040704 | N60: -6.51759598 | O60: -9.790941659 | P60: -8.784209187 | Q60: -11.71316197 | R60: -10.83857728 | S60: -14.01700496 | T60: -13.20567024 | U60: -12.34343192 | V60: -11.59724935 | W60: -12.02331279 | X60: -19.31809568 | Y60: -19.93903817
B61: -9.993551939 | C61: -10.36427065 | D61: -9.460857502 | E61: -8.975557613 | F61: -8.156788512 | G61: -12.62464355 | H61: -11.94427312 | I61: -13.76303559 | J61: -13.2641579 | K61: -7.049316554 | L61: -6.211694059 | M61: -5.419214614 | N61: -4.47089257 | O61: -7.759190187 | P61: -6.912819572 | Q61: -9.364349468 | R61: -8.62809448 | S61: -11.31663265 | T61: -10.64513656 | U61: -9.931962695 | V61: -9.334125789 | W61: -9.645294294 | X61: -16.88075508 | Y61: -17.34935256
B62: -7.510213382 | C62: -7.841427383 | D62: -7.096044603 | E62: -6.728882405 | F62: -6.068769254 | G62: -10.35855998 | H62: -9.842655597 | I62: -11.21329786 | J62: -10.84457812 | K62: -4.565758149 | L62: -3.860084758 | M62: -3.200259442 | N62: -2.402362333 | O62: -5.715998567 | P62: -5.028079986 | Q62: -7.011312552 | R62: -6.408970868 | S62: -8.623306644 | T62: -8.084442215 | U62: -7.512533526 | V62: -7.055141635 | W62: -7.260776797 | X62: -14.44760766 | Y62: -14.76829059
B63: -5.02976224 | C63: -5.322553448 | D63: -4.727847541 | E63: -4.472109018 | F63: -3.96411936 | G63: -8.085958213 | H63: -7.730398345 | I63: -8.666682729 | J63: -8.423812068 | K63: -2.1080267 | L63: -1.526450101 | M63: -0.9864116877 | N63: -0.3155446802 | O63: -3.663186879 | P63: -3.133867699 | Q63: -4.65716486 | R63: -4.183274609 | S63: -5.942163265 | T63: -5.527871288 | U63: -5.088572354 | V63: -4.763351803 | W63: -4.873080625 | X63: -12.01978976 | Y63: -12.19611203
B64: -2.568003921 | C64: -2.823163802 | D64: -2.368509987 | E64: -2.213744623 | F64: -1.846029266 | G64: -5.809240305 | H64: -5.609595837 | I64: -6.126684644 | J64: -6.004073635 | K64: -0.01557495108 | L64: 7.767921016 | M64: 1.411652915 | N64: 1.797725782 | O64: -1.601904157 | P64: -1.251180665 | Q64: -2.314176912 | R64: -1.959225189 | S64: -3.291744084 | T64: -2.991817158 | U64: -2.673748133 | V64: -2.46753159 | W64: -2.495086623 | X64: -9.598035523 | Y64: -9.633461557
B65: -0.2778360817 | C65: -0.4689399635 | D65: -0.1672103955 | E65: -0.0874950732 | F65: 0.46805405 | G65: -3.53278672 | H65: -3.482747152 | I65: -3.604150998 | J65: -3.592807146 | K65: 3.323380256 | L65: 3.448747847 | M65: 3.619483661 | N65: 3.925536715 | O65: 0.469966454 | P65: 0.733405627 | Q65: -0.1389846559 | R65: -0.004810938871 | S65: -0.78633945 | T65: -0.5908823716 | U65: -0.3827135208 | V65: -0.2630421499 | W65: -0.2572805095 | X65: -7.184134617 | Y65: -7.082546281
B66: -29.5458268 | C66: -30.22463104 | D66: -27.99306118 | E66: -26.47768922 | F66: -24.3380713 | G66: -30.42219303 | H66: -28.38367207 | I66: -33.9588485 | J66: -32.34409826 | K66: -26.57461013 | L66: -24.58722066 | M66: -22.63837925 | N66: -20.41084998 | O66: -23.80493504 | P66: -21.72041899 | Q66: -27.8798706 | R66: -26.04061859 | S66: -32.64600894 | T66: -30.78550943 | U66: -28.81651703 | V66: -26.97106923 | W66: -28.32419858 | X66: -36.27582645 | Y66: -37.98053854
B67: -27.06496941 | C67: -27.69522129 | D67: -25.67879579 | E67: -24.33316579 | F67: -22.40670113 | G67: -28.22170808 | H67: -26.40352555 | I67: -31.36534649 | J67: -29.93439286 | K67: -24.10382687 | L67: -22.30307057 | M67: -20.54162533 | N67: -18.51894075 | O67: -21.86695883 | P67: -19.97584577 | Q67: -25.55685929 | R67: -23.89263039 | S67: -29.87660641 | T67: -28.21726699 | U67: -26.45936213 | V67: -24.82370618 | W67: -25.98768284 | X67: -33.79834719 | Y67: -35.29966165
B68: -24.58256123 | C68: -25.16604784 | D68: -23.35361213 | E68: -22.16813922 | F68: -20.4444517 | G68: -26.00545291 | H68: -24.39644901 | I68: -28.77800319 | J68: -27.52004877 | K68: -21.62828782 | L68: -20.00483305 | M68: -18.42159555 | N68: -16.5949106 | O68: -19.90693868 | P68: -18.20200715 | Q68: -23.22643552 | R68: -21.72938804 | S68: -27.12038037 | T68: -25.64881122 | U68: -24.08892358 | V68: -22.65008543 | W68: -23.64083801 | X68: -31.32461591 | Y68: -32.63434775
B69: -22.09818286 | C69: -22.6363194 | D69: -21.01846147 | E69: -19.98431351 | F69: -18.45441514 | G69: -23.77568291 | H69: -22.365462 | I69: -26.19636957 | J69: -25.10211448 | K69: -19.14829188 | L69: -17.69335308 | M69: -16.27984338 | N69: -14.64098925 | O69: -17.92694058 | P69: -16.40179577 | Q69: -20.88934009 | R69: -19.55262806 | S69: -24.37538845 | T69: -23.08035217 | U69: -21.70627312 | V69: -20.45249604 | W69: -21.28433136 | X69: -28.85471772 | Y69: -29.98366798
B70: -19.6121214 | C70: -20.10636703 | D70: -18.67404579 | E70: -17.78342819 | F70: -16.43890101 | G70: -21.5331947 | H70: -20.31320972 | I70: -23.62022274 | J70: -22.68068277 | K70: -16.66384317 | L70: -15.36948851 | M70: -14.11789535 | N70: -12.6593258 | O70: -15.9291527 | P70: -14.57791989 | Q70: -18.54618293 | R70: -17.36320107 | S70: -21.64076297 | T70: -20.511495 | U70: -19.312568 | V70: -18.23328327 | W70: -18.91904721 | X70: -26.38903893 | Y70: -27.346265
B71: -17.1242096 | C71: -17.57537159 | D71: -16.32111421 | E71: -15.56689719 | F71: -14.40011254 | G71: -19.28020575 | H71: -18.24264549 | I71: -21.04818427 | J71: -20.25636661 | K71: -14.17505013 | L71: -13.03403439 | M71: -11.9371138 | N71: -10.65185566 | O71: -13.91498405 | P71: -12.73267133 | Q71: -16.19737307 | R71: -15.16254611 | S71: -18.91507137 | T71: -17.94164584 | U71: -16.90884296 | V71: -15.99433056 | W71: -16.54537345 | X71: -23.92794638 | Y71: -24.72126672
B72: -14.63429921 | C72: -15.04378994 | D72: -13.96040863 | E72: -13.33566471 | F72: -12.34023147 | G72: -17.01776952 | H72: -16.15583862 | I72: -18.4805897 | J72: -17.82979807 | K72: -11.68254507 | L72: -10.68778118 | M72: -9.738983017 | N72: -8.620051338 | O72: -11.88651975 | P72: -10.86881322 | Q72: -13.84342537 | R72: -12.95140061 | S72: -16.19727906 | T72: -15.37144457 | U72: -14.49535987 | V72: -13.73724937 | W72: -14.16439294 | X72: -21.4717242 | Y72: -22.10777456
B73: -12.14324769 | C73: -12.51185053 | D73: -11.59251021 | E73: -11.09141179 | F73: -10.26065196 | G73: -14.74737267 | H73: -14.05457851 | I73: -15.91695709 | J73: -15.40134447 | K73: -9.187494775 | L73: -8.332386999 | M73: -7.524403984 | N73: -6.5654493 | O73: -9.845314854 | P73: -8.988748066 | Q73: -11.48481176 | R73: -10.73083819 | S73: -13.48748652 | T73: -12.8011882 | U73: -12.07367068 | V73: -11.46341839 | W73: -11.77640954 | X73: -19.02085751 | Y73: -19.50498971
B74: -9.651621572 | C74: -9.980362557 | D74: -9.218700825 | E74: -8.835162807 | F74: -8.163397601 | G74: -12.47014863 | H74: -11.94143875 | I74: -13.35761149 | J74: -12.97161284 | K74: -6.693418399 | L74: -5.970498005 | M74: -5.295822817 | N74: -4.489432879 | O74: -7.792927065 | P74: -7.094991428 | Q74: -9.122632878 | R74: -8.502152717 | S74: -10.78625661 | T74: -10.23170182 | U74: -9.64486493 | V74: -9.174626555 | W74: -9.382640234 | X74: -16.57538487 | Y74: -16.91291284
B75: -7.16214141 | C75: -7.452477615 | D75: -6.841396226 | E75: -6.568998643 | F75: -6.04982916 | G75: -10.18747505 | H75: -9.818234603 | I75: -10.80288838 | J75: -10.54160627 | K75: -4.210340922 | L75: -3.610075596 | M75: -3.058070319 | N75: -2.393411747 | O75: -5.731052166 | P75: -5.190594398 | Q75: -6.758852978 | R75: -6.267059374 | S75: -8.096864692 | T75: -7.666348165 | U75: -7.211745969 | V75: -6.873249716 | W75: -6.985650119 | X75: -14.13637957 | Y75: -14.33122943
B76: -4.682368091 | C76: -4.935674597 | D76: -4.465886286 | E76: -4.296924895 | F76: -3.92184839 | G76: -7.901304389 | H76: -7.687060931 | I76: -8.2551926 | J76: -8.113108975 | K76: -1.780262249 | L76: -1.292345568 | M76: -0.8443758305 | N76: -0.2823004559 | O76: -3.661026884 | P76: -3.281427532 | Q76: -4.399062428 | R76: -4.02892878 | S76: -5.429272568 | T76: -5.112918778 | U76: -4.780442198 | V76: -4.563544131 | W76: -4.591222625 | X76: -11.70473145 | Y76: -11.76042411
B77: -2.241000009 | C77: -2.459014117 | D77: -2.113899044 | E77: -2.032530418 | F77: -1.78374373 | G77: -5.614051763 | H77: -5.549830303 | I77: -5.719991397 | J77: -5.690461056 | K77: -0.017547354 | L77: 10.11896107 | M77: 1.681048079 | N77: 1.859188713 | O77: -1.584999162 | P77: -1.403785976 | Q77: -2.065119289 | R77: -1.801274476 | S77: -2.817391913 | T77: -2.601137598 | U77: -2.374517687 | V77: -2.26023953 | W77: -2.221762284 | X77: -9.281985702 | Y77: -9.201940018
B78: -0.1123095952 | C78: -0.2468285413 | D78: -0.05421291915 | E78: -0.01905908083 | F78: 0.6401028885 | G78: -3.33310436 | H78: -3.409900476 | I78: -3.216757043 | J78: -3.286335348 | K78: 3.972568801 | L78: 3.858673768 | M78: 3.861289416 | N78: 4.010679366 | O78: 0.502097182 | P78: 0.6499089107 | Q78: -0.03841215042 | R78: -0.0757676232 | S78: -0.4652193533 | T78: -0.3364473687 | U78: -0.200547877 | V78: -0.1358595505 | W78: -0.1123111063 | X78: -6.870953222 | Y78: -6.660096164
B79: -29.32929471 | C79: -29.9624203 | D79: -27.92593011 | E79: -26.56643001 | F79: -24.62333792 | G79: -30.47962066 | H79: -28.64795106 | I79: -33.65000018 | J79: -32.2062105 | K79: -26.35036118 | L79: -24.52891461 | M79: -22.74804362 | N79: -20.70639395 | O79: -24.05496794 | P79: -22.14629979 | Q79: -27.79037413 | R79: -26.10581274 | S79: -32.16740859 | T79: -30.497629 | U79: -28.72771051 | V79: -27.08222471 | W79: -28.23736811 | X79: -36.08733209 | Y79: -37.59727806
B80: -26.82721575 | C80: -27.41252017 | D80: -25.5825504 | E80: -24.38454731 | F80: -22.64739411 | G80: -28.24287021 | H80: -26.62275617 | I80: -31.03951008 | J80: -29.76970762 | K80: -23.85698997 | L80: -22.2148281 | M80: -20.61455655 | N80: -18.77235475 | O80: -22.08216061 | P80: -20.36270925 | Q80: -25.44211667 | R80: -23.92677187 | S80: -29.3886788 | T80: -27.90741756 | U80: -26.33703985 | V80: -24.88999884 | W80: -25.87168699 | X80: -33.58793588 | Y80: -34.90607724
B81: -24.32525759 | C81: -24.86425244 | D81: -23.23054426 | E81: -22.18490156 | F81: -20.64365623 | G81: -25.99359094 | H81: -24.57413941 | I81: -28.4369574 | J81: -27.33099516 | K81: -21.36066729 | L81: -19.88876366 | M81: -18.4599712 | N81: -16.80832308 | O81: -20.08954874 | P81: -18.55238363 | Q81: -23.08848426 | R81: -21.73476263 | S81: -26.62419284 | T81: -25.31941236 | U81: -23.93592197 | V81: -22.67503335 | W81: -23.49789624 | X81: -31.094331 | Y81: -32.23191019
B82: -21.8231929 | C82: -22.31753242 | D82: -20.87071035 | E82: -19.96898263 | F82: -18.61485004 | G82: -23.73327847 | H82: -22.50508937 | I82: -25.84168099 | J82: -24.89081642 | K82: -18.86142845 | L82: -17.55128317 | M82: -16.28598792 | N82: -14.81654317 | O82: -18.07938357 | P82: -16.71804549 | Q82: -20.72999279 | R82: -19.53108535 | S82: -23.87200809 | T82: -22.73294392 | U82: -21.52507932 | V82: -20.43933769 | W82: -21.11651721 | X82: -28.60727986 | Y82: -29.57319648
B83: -19.32089396 | C83: -19.77171622 | D83: -18.50358558 | E83: -17.73821456 | F83: -16.56313567 | G83: -21.46343244 | H83: -20.418305 | I83: -23.25301141 | J83: -22.44953658 | K83: -16.3594192 | L83: -15.20331043 | M83: -14.09359986 | N83: -12.79906411 | O83: -16.05320652 | P83: -14.86254407 | Q83: -18.36706431 | R83: -17.31676036 | S83: -21.1308328 | T83: -20.14779334 | U83: -19.10578383 | V83: -18.18507545 | W83: -18.72849573 | X83: -26.12658705 | Y83: -26.9293971
B84: -16.81814187 | C84: -17.22667629 | D84: -16.12968878 | E84: -15.493951 | F84: -14.49078461 | G84: -19.18529182 | H84: -18.31580883 | I84: -20.67046713 | J84: -20.00753509 | K84: -13.85485408 | L84: -12.84551893 | M84: -11.88427451 | N84: -10.75756588 | O84: -14.01310873 | P84: -12.98803042 | Q84: -16.00016561 | R84: -15.09310798 | S84: -18.40003316 | T84: -17.56362592 | U84: -16.67832796 | V84: -15.9136157 | W84: -16.33394213 | X84: -23.65252883 | Y84: -24.29909672
B85: -14.31546207 | C85: -14.68287358 | D85: -13.74994279 | E85: -13.23732181 | F85: -12.399246 | G85: -16.900242 | H85: -16.19986624 | I85: -18.09355057 | J85: -17.56487515 | K85: -11.34879605 | L85: -10.47916801 | M85: -9.659333595 | N85: -8.693676367 | O85: -11.96053477 | P85: -11.09719436 | Q85: -13.62955515 | R85: -12.86061485 | S85: -15.67847995 | T85: -14.98109234 | U85: -14.24385032 | V85: -13.62662448 | W85: -13.93386392 | X85: -21.1854052 | Y85: -21.68150217
B86: -11.81341356 | C86: -12.14070047 | D86: -11.36518 | E86: -10.96952336 | F86: -10.2903749 | G86: -14.6096343 | H86: -14.07256632 | I86: -15.5223457 | J86: -15.12258354 | K86: -8.843401705 | L86: -8.106014477 | M86: -7.420053848 | N86: -6.608515672 | O86: -9.897060301 | P86: -9.192569117 | Q86: -11.25624299 | R86: -10.62070662 | S86: -12.96722621 | T86: -12.40053347 | U86: -11.80339696 | V86: -11.32561384 | W86: -11.52899887 | X86: -18.72545991 | Y86: -19.07614534
B87: -9.313675413 | C87: -9.601971133 | D87: -8.97714289 | E87: -8.692292829 | F87: -8.165811977 | G87: -12.31434762 | H87: -11.93603778 | I87: -12.95724251 | J87: -12.68090775 | K87: -6.343832257 | L87: -5.730276577 | M87: -5.169345531 | N87: -4.503606396 | O87: -7.824606125 | P87: -7.277089078 | Q87: -8.881692947 | R87: -8.374560304 | S87: -10.26782176 | T87: -9.824393817 | U87: -9.358886675 | V87: -9.012355019 | W87: -9.120967023 | X87: -16.27303599 | Y87: -16.48294892
B88: -6.8204567 | C88: -7.07144565 | D88: -6.588747965 | E88: -6.407872296 | F88: -6.027202324 | G88: -10.01627635 | H88: -9.791759967 | I88: -10.39958542 | J88: -10.24156222 | K88: -3.866345529 | L88: -3.364714231 | M88: -2.914752986 | N88: -2.380012336 | O88: -5.744117984 | P88: -5.354268333 | Q88: -6.508957628 | R88: -6.12448796 | S88: -7.586382465 | T88: -7.257023328 | U88: -6.914163638 | V88: -6.689801519 | W88: -6.713260185 | X88: -13.82913377 | Y88: -13.90170302
B89: -4.345589319 | C89: -4.561766712 | D89: -4.208866561 | E89: -4.121857829 | F89: -3.87668417 | G89: -7.717168653 | H89: -7.642178335 | I89: -7.853015233 | J89: -7.807221248 | K89: -1.477566363 | L89: -1.074078889 | M89: -0.7086029306 | N89: -0.2456159036 | O89: -3.657594809 | P89: -3.431651594 | Q89: -4.146607874 | R89: -3.875447644 | S89: -4.938717457 | T89: -4.712018942 | U89: -4.478985388 | V89: -4.364219475 | W89: -4.315306033 | X89: -11.39502416 | Y89: -11.33377943
B90: -1.934509426 | C90: -2.118392764 | D90: -1.871461763 | E90: -1.856144784 | F90: -1.719705629 | G90: -5.421263186 | H90: -5.489568936 | I90: -5.326796934 | J90: -5.384476379 | K90: -0.1567309297 | L90: 11.86126528 | M90: 1.96968141 | N90: 1.92457824 | O90: -1.567206294 | P90: -1.567548233 | Q90: -1.828765722 | R90: -1.648262594 | S90: -2.379101045 | T90: -2.235747936 | U90: -2.090335931 | V90: -2.058386855 | W90: -1.961878129 | X90: -8.972723583 | Y90: -8.782101512
B91: -0.01991098051 | C91: -0.09449244506 | D91: -0.002828983767 | E91: -0.0006602244312 | F91: 0.8032964384 | G91: -3.138754434 | H91: -3.33743115 | I91: -2.851443451 | J91: -2.99318876 | K91: 4.67673845 | L91: 4.291493994 | M91: 4.112153552 | N91: 4.099517299 | O91: 0.5351046756 | P91: 0.5726285174 | Q91: -0.0002613933183 | R91: -0.2426421412 | S91: -0.2274424684 | T91: -0.1520049873 | U91: -0.07508270395 | V91: -0.0480921571 | W91: -0.02560970851 | X91: -6.566604926 | Y91: -6.252596998
B92: -29.10972108 | C92: -29.69769283 | D92: -27.85359644 | E92: -26.64887921 | F92: -24.90276893 | G92: -30.53122641 | H92: -28.90634206 | I92: -33.33977602 | J92: -32.0641456 | K92: -26.12270231 | L92: -24.46507319 | M92: -22.85111923 | N92: -20.99674542 | O92: -24.3004415 | P92: -22.56987865 | Q92: -27.6966603 | R92: -26.165725 | S92: -31.69096151 | T92: -30.2073898 | U92: -28.6333351 | V92: -27.18606259 | W92: -28.14535848 | X92: -35.89603901 | Y92: -37.21474842
B93: -26.5870557 | C93: -27.12796421 | D93: -25.48175991 | E93: -24.43001411 | F93: -22.88242067 | G93: -28.25883025 | H93: -26.83624181 | I93: -30.71303121 | J93: -29.6012323 | K93: -23.60745103 | L93: -22.12166568 | M93: -20.68134004 | N93: -19.02047318 | O93: -22.29293259 | P93: -20.74742573 | Q93: -25.32374903 | R93: -23.95600866 | S93: -28.90345557 | T93: -27.59606064 | U93: -26.20970036 | V93: -24.94950626 | W93: -25.75115827 | X93: -33.37503058 | Y93: -34.51368712
B94: -24.06619868 | C94: -24.56160115 | D94: -23.10346213 | E94: -22.19611181 | F94: -20.83750415 | G94: -25.97680621 | H94: -24.74667216 | I94: -28.09578118 | J94: -27.13908863 | K94: -21.09105552 | L94: -19.76819132 | M94: -18.49267693 | N94: -17.01664609 | O94: -20.26808192 | P94: -18.90075197 | Q94: -22.94731514 | R94: -21.73553496 | S94: -26.1312791 | T94: -24.98891458 | U94: -23.77838257 | V94: -22.69367799 | W94: -23.35092782 | X94: -30.86299293 | Y94: -31.83097007
B95: -21.54690443 | C95: -21.99809544 | D95: -20.71943667 | E95: -19.94859916 | F95: -18.77013628 | G95: -23.68686819 | H95: -22.64020748 | I95: -25.48740144 | J95: -24.67759984 | K95: -18.57317788 | L95: -17.40534078 | M95: -16.28647317 | N95: -14.98716805 | O95: -18.22786052 | P95: -17.03264696 | Q95: -20.56778565 | R95: -19.50547289 | S95: -23.37229369 | T95: -22.38517015 | U95: -21.34019788 | V95: -20.42057617 | W95: -20.94553441 | X95: -28.35927601 | Y95: -29.16537204
B96: -19.02907138 | C96: -19.43720727 | D96: -18.33002494 | E96: -17.68842452 | F96: -16.68253464 | G96: -21.38989124 | H96: -20.51890619 | I96: -22.88726027 | J96: -22.21707337 | K96: -16.05446483 | L96: -15.0337067 | M96: -14.06415187 | N96: -12.9340819 | O96: -16.17391208 | P96: -15.14563718 | Q96: -18.18569233 | R96: -17.26692311 | S96: -20.62581402 | T96: -19.78469747 | U96: -18.89567946 | V96: -18.13147023 | W96: -18.53509713 | X96: -25.86429845 | Y96: -26.51560221
B97: -16.51237595 | C97: -16.87920625 | D97: -15.93597416 | E97: -15.41702532 | F97: -14.57669787 | G97: -19.08751775 | H97: -18.38512113 | I97: -20.29478732 | J97: -19.75784467 | K97: -13.53513378 | L97: -12.65448161 | M97: -11.82676823 | N97: -10.85865879 | O97: -14.10793892 | P97: -13.24230478 | Q97: -15.80100549 | R97: -15.02037718 | S97: -17.89069451 | T97: -17.18730464 | U97: -16.44566412 | V97: -15.82813717 | W97: -16.12036656 | X97: -23.37799708 | Y97: -23.88069754
B98: -13.99785517 | C98: -14.32386812 | D98: -13.53813092 | E98: -13.1354662 | F98: -12.45398502 | G98: -16.78043242 | H98: -16.24086236 | I98: -17.70947768 | J98: -17.30014842 | K98: -11.01680275 | L98: -10.26868218 | M98: -9.575524843 | N98: -8.76278614 | O98: -12.03160423 | P98: -11.32498741 | Q98: -13.41467742 | R98: -12.76713578 | S98: -15.16704631 | T98: -14.59324535 | U98: -13.99099799 | V98: -13.51199558 | W98: -13.70187779 | X98: -20.90038781 | Y98: -21.25981864
B99: -11.48594371 | C99: -11.77285595 | D99: -11.13747258 | E99: -10.84499717 | F99: -10.31627979 | G99: -14.47004376 | H99: -14.08786629 | I99: -15.13173824 | J99: -14.84452926 | K99: -8.502593871 | L99: -7.879017716 | M99: -7.312160069 | N99: -6.647214916 | O99: -9.946511463 | P99: -9.396608018 | Q99: -11.02757666 | R99: -10.50839437 | S99: -12.45608635 | T99: -12.0042402 | U99: -11.53301641 | V99: -11.18444407 | W99: -11.28112537 | X99: -18.43231963 | Y99: -18.65269955
B100: -8.979520165 | C100: -9.228890779 | D100: -8.735960668 | E100: -8.547433374 | F100: -8.165046697 | G100: -12.15763215 | H100: -11.92817877 | I100: -12.56222433 | J100: -12.39215384 | K100: -6.000728802 | L100: -5.491451574 | M100: -5.040366988 | N100: -4.513395415 | O100: -7.853898228 | P100: -7.459979624 | Q100: -8.64176458 | R100: -8.245444133 | S100: -9.76128212 | T100: -9.423143596 | U100: -9.074059596 | V100: -8.847652115 | W100: -8.860307243 | X100: -15.97380804 | Y100: -16.059205
B101: -6.485100379 | C101: -6.698626956 | D101: -6.338228616 | E101: -6.245951483 | F101: -6.001616704 | G101: -9.844777922 | H101: -9.763725122 | I101: -10.00332596 | J101: -9.944820347 | K101: -3.534222917 | L101: -3.124543518 | M101: -2.770732367 | N101: -2.362701719 | O101: -5.755709443 | P101: -5.519558544 | Q101: -6.261983533 | R101: -5.981314767 | S101: -7.091664497 | T101: -6.857157307 | U101: -6.619814225 | V101: -6.505204719 | W101: -6.443880901 | X101: -13.52597174 | Y101: -13.47974272
B102: -4.019514807 | C102: -4.200663174 | D102: -3.956919209 | E102: -3.947867464 | F102: -3.828912804 | G102: -7.534193289 | H102: -7.596412483 | I102: -7.460500564 | J102: -7.506454577 | K102: -1.200070675 | L102: -0.8723893121 | M102: -0.5801803549 | N102: -0.2058791746 | O102: -3.65316573 | P102: -3.585658816 | Q102: -3.8998192 | R102: -3.722915563 | S102: -4.47075156 | T102: -4.325827871 | U102: -4.184549218 | V102: -4.165681621 | W102: -4.045473946 | X102: -11.09058591 | Y102: -10.91662671
B103: -1.648764743 | C103: -1.801367129 | D103: -1.641528935 | E103: -1.684899618 | F103: -1.653878645 | G103: -5.230910626 | H103: -5.429125159 | I103: -4.947462961 | J103: -5.086342516 | K103: -0.4450997928 | L103: 13.15027422 | M103: 2.275154623 | N103: 1.99354354 | O103: -1.548992901 | P103: -1.745174789 | Q103: -1.604976462 | R103: -1.500022787 | S103: -1.976998253 | T103: -1.896321273 | U103: -1.821276672 | V103: -1.862238454 | W103: -1.715984659 | X103: -8.670388932 | Y103: -8.373409673
B104: -0.003036461731 | C104: -0.01346444312 | D104: -0.01701623645 | E104: -0.03902117632 | F104: 0.9527209835 | G104: -2.949749106 | H104: -3.265768699 | I104: -2.50810966 | J104: -2.713396754 | K104: 5.434907078 | L104: 4.746212181 | M104: 4.371732006 | N104: 4.191665059 | O104: 0.5679159774 | P104: 0.5011693715 | Q104: -0.0275727285 | R104: -0.5261377173 | S104: -0.07355769685 | T104: -0.03923098782 | U104: -0.009358714164 | V104: -0.004091836038 | W104: -0.0003102573479 | X104: -6.271013532 | Y104: -5.859790115
B105: -28.88713508 | C105: -29.43073894 | D105: -27.77654586 | E105: -26.72527348 | F105: -25.17683111 | G105: -30.57768823 | H105: -29.15923124 | I105: -33.02839945 | J105: -31.91840783 | K105: -25.89194205 | L105: -24.39601396 | M105: -22.94834034 | N105: -21.28232114 | O105: -24.54158331 | P105: -22.99155218 | Q105: -27.59877818 | R105: -26.22049797 | S105: -31.21633076 | T105: -29.9147335 | U105: -28.53372725 | V105: -27.28316652 | W105: -28.04879511 | X105: -35.70276217 | Y105: -36.83334463
B106: -26.34450446 | C106: -26.8416515 | D106: -25.37670353 | E106: -24.46994445 | F106: -23.11240439 | G106: -28.26976449 | H106: -27.04486145 | I106: -30.3858614 | J106: -29.42997399 | K106: -23.35532564 | L106: -22.02365031 | M106: -20.74246356 | N106: -19.26394979 | O106: -22.49970076 | P106: -21.13035602 | Q106: -25.20176452 | R106: -23.98063953 | S106: -28.42076068 | T106: -27.28313389 | U106: -26.07761977 | V106: -25.00269553 | W106: -25.62640303 | X106: -33.16100204 | Y106: -34.12306629
B107: -23.80551678 | C107: -24.25760504 | D107: -22.97257368 | E107: -22.20231015 | F107: -21.02635535 | G107: -25.95564146 | H107: -24.91459477 | I107: -27.75466925 | J107: -26.94463646 | K107: -20.81936565 | L107: -19.64334225 | M107: -18.51993227 | N107: -17.22021074 | O107: -20.44283453 | P107: -19.24758002 | Q107: -22.80305381 | R107: -21.73216799 | S107: -25.64164795 | T107: -24.65746747 | U107: -23.61696543 | V107: -22.70644597 | W107: -23.2005359 | X107: -30.63032936 | Y107: -31.43245799
B108: -21.2695239 | C108: -21.6781886 | D108: -20.56492274 | E108: -19.92355942 | F108: -18.92075873 | G108: -23.6365346 | H108: -22.77091369 | I108: -25.13403805 | J108: -24.46243585 | K108: -18.28392383 | L108: -17.25551273 | M108: -16.28210205 | N108: -15.15314225 | O108: -18.37284504 | P108: -17.34592407 | Q108: -20.40318359 | R108: -19.47617154 | S108: -22.87680168 | T108: -22.03720408 | U108: -21.15199141 | V108: -20.39614427 | W108: -20.77132663 | X108: -28.11080665 | Y108: -28.76018936
B109: -18.73661759 | C109: -19.10323465 | D109: -18.1539751 | E109: -17.63443099 | F109: -16.79766684 | G109: -21.31336126 | H109: -20.61570168 | I109: -22.52309504 | J109: -21.98332653 | K109: -15.7491404 | L109: -14.86107971 | M109: -14.02997777 | N109: -13.06444065 | O109: -16.29144754 | P109: -15.42785075 | Q109: -18.00214385 | R109: -17.21330141 | S109: -20.12567505 | T109: -19.422301 | U109: -18.68314338 | V109: -18.07287387 | W109: -18.33919375 | X109: -25.60213386 | Y109: -26.10502746
B110: -16.20705462 | C110: -16.53266364 | D110: -15.7404752 | E110: -15.33643519 | F110: -14.6584933 | G110: -18.98707539 | H110: -18.45105835 | I110: -19.92113615 | J110: -19.50750557 | K110: -13.21605084 | L110: -12.46089914 | M110: -11.76463242 | N110: -10.9556195 | O110: -14.20006822 | P110: -13.49595784 | Q110: -15.60063152 | R110: -14.9446828 | S110: -17.38765017 | T110: -16.81242184 | U110: -16.21110476 | V110: -15.73836717 | W110: -15.90482484 | X110: -23.10421596 | Y110: -23.46617477
B111: -13.68123687 | C111: -13.96721246 | D111: -13.32496926 | E111: -13.03032034 | F111: -12.5049378 | G111: -16.65856291 | H111: -16.27900418 | I111: -17.32836196 | J111: -17.03552715 | K111: -10.68673165 | L111: -10.05659149 | M111: -9.487567579 | N111: -8.827581606 | O111: -12.10050069 | P111: -11.55286203 | Q111: -13.19918785 | R111: -12.67132615 | S111: -14.66317589 | T111: -14.20850175 | U111: -13.73688894 | V111: -13.39344329 | W111: -13.46902834 | X111: -20.61722989 | Y111: -20.84273404
B112: -11.16092208 | C112: -11.40876029 | D112: -10.9091879 | E112: -10.71773248 | F112: -10.3386128 | G112: -14.3292129 | H112: -14.10081328 | I112: -14.74508011 | J112: -14.56769131 | K112: -8.165707813 | L112: -7.651509618 | M112: -7.20082863 | N112: -6.681882423 | O112: -9.99381442 | P112: -9.601011821 | Q112: -10.79910589 | R112: -10.3940866 | S112: -11.95430845 | T112: -11.61237976 | U112: -11.2622908 | V112: -11.04016919 | W112: -11.0333606 | X112: -18.14159857 | Y112: -18.23451968
B113: -8.649971999 | C113: -8.861225604 | D113: -8.495427501 | E113: -8.400682732 | F113: -8.160910119 | G113: -12.00031696 | H113: -11.91871859 | I113: -12.17267878 | J113: -12.10554175 | K113: -5.66422231 | L113: -5.254157744 | M113: -4.90880017 | N113: -4.519472948 | O113: -7.881822027 | P113: -7.644048797 | Q113: -8.40325888 | R113: -8.115257383 | S113: -9.266651852 | T113: -9.028375723 | U113: -8.79065372 | V113: -8.68073709 | W113: -8.600743647 | X113: -15.67783508 | Y113: -15.64174603
B114: -6.156345725 | C114: -6.334005768 | D114: -6.090327182 | E114: -6.082939955 | F114: -5.973406578 | G114: -9.673668002 | H114: -9.734517353 | I114: -9.614491812 | J114: -9.651442458 | K114: -3.214056386 | L114: -2.889472397 | M114: -2.626217775 | N114: -2.341703224 | O114: -5.765973385 | P114: -5.687237954 | Q114: -6.017685085 | R114: -5.838059261 | S114: -6.612551687 | T114: -6.46670889 | U114: -6.329105762 | V114: -6.319683433 | W114: -6.177699045 | X114: -13.22714404 | Y114: -13.06550348
B115: -3.704225594 | C115: -3.852781585 | D115: -3.710616648 | E115: -3.774914817 | F115: -3.778892435 | G115: -7.352724518 | H115: -7.550267631 | I115: -7.077901796 | J115: -7.210809011 | K115: -0.9487819326 | L115: -0.6880776863 | M115: -0.4600571202 | N115: -0.1637873242 | O115: -3.648085657 | P115: -3.744605548 | Q115: -3.658998363 | R115: -3.571693994 | S115: -4.024989166 | T115: -3.954135073 | U115: -3.89739229 | V115: -3.968412442 | W115: -3.782152675 | X115: -10.7915408 | Y115: -10.50836066
B116: -1.384091039 | C116: -1.508365923 | D116: -1.424199614 | E116: -1.51935107 | F116: -1.587067775 | G116: -5.043835082 | H116: -5.368809357 | I116: -4.58184284 | J116: -4.796141236 | K116: -0.8977947681 | L116: 14.12386302 | M116: 2.593629358 | N116: 2.06582932 | O116: -1.530643979 | P116: -1.939487854 | Q116: -1.394179836 | R116: -1.357072118 | S116: -1.611477538 | T116: -1.583132508 | U116: -1.568021452 | V116: -1.672453416 | W116: -1.484317195 | X116: -8.374989992 | Y116: -7.976056719
B117: -0.06485512078 | C117: -0.005892539142 | D117: -0.1018362711 | E117: -0.1435805842 | F117: 1.088016981 | G117: -2.766487973 | H117: -3.195571792 | I117: -2.186589698 | J117: -2.447033556 | K117: 6.24334207 | L117: 5.221893207 | M117: 4.639626615 | N117: 4.286919942 | O117: 0.5997924459 | P117: 0.4351411383 | Q117: -0.1242376758 | R117: -0.9557108162 | S117: -0.004168164973 | T117: 3.323648243e-05 | U117: -0.007060104702 | V117: -0.009646712249 | W117: -0.04030039114 | X117: -5.984753583 | Y117: -5.481788231
B118: -28.66216808 | C118: -29.1617285 | D118: -27.69519841 | E118: -26.79626102 | F118: -25.44595792 | G118: -30.61901916 | H118: -29.40734936 | I118: -32.71631924 | J118: -31.76927217 | K118: -25.6582356 | L118: -24.32207143 | M118: -23.03986595 | N118: -21.56325189 | O118: -24.77879323 | P118: -23.41166468 | Q118: -27.49716737 | R118: -26.27062784 | S118: -30.74393945 | T118: -29.62043893 | U118: -28.42926933 | V118: -27.3739673 | W118: -27.9478533 | X118: -35.50758357 | Y118: -36.45318667
B119: -26.10001226 | C119: -26.55370322 | D119: -25.26767013 | E119: -24.50482396 | F119: -23.33768999 | G119: -28.27637366 | H119: -27.24890764 | I119: -30.05876364 | J119: -29.25609628 | K119: -23.10085461 | L119: -21.92124494 | M119: -20.79804797 | N119: -19.50282923 | O119: -22.70282558 | P119: -21.51192249 | Q119: -25.07626393 | R119: -24.00072319 | S119: -27.94101015 | T119: -26.96885688 | U119: -25.94155645 | V119: -25.05000526 | W119: -25.49796934 | X119: -32.94541191 | Y119: -33.73371643
B120: -23.5431319 | C120: -23.95264561 | D120: -22.8384836 | E120: -22.20388256 | F120: -21.21069433 | G120: -25.93073324 | H120: -25.0784287 | I120: -27.41405467 | J120: -26.74813726 | K120: -20.54596942 | L120: -19.51441653 | M120: -18.54194143 | N120: -17.41943776 | O120: -20.61432586 | P120: -19.59333099 | Q120: -22.6559984 | R120: -21.72482179 | S120: -25.15533121 | T120: -24.32557889 | U120: -23.45187638 | V120: -22.7137469 | W120: -23.04665316 | X120: -30.39733159 | Y120: -31.0357941
B121: -20.99125198 | C121: -21.35798677 | D121: -20.40753598 | E121: -19.8941107 | F121: -19.06719074 | G121: -23.58303507 | H121: -22.89789861 | I121: -24.78149784 | J121: -24.24568017 | K121: -17.99335376 | L121: -17.10233529 | M121: -16.27271421 | N121: -15.31490539 | O121: -18.51486208 | P121: -17.65834229 | Q121: -20.23599739 | R121: -19.44313545 | S121: -22.38556997 | T121: -21.68955142 | U121: -20.96045793 | V121: -20.36666767 | W121: -20.59420841 | X121: -27.86238064 | Y121: -28.35754206
B122: -18.44421251 | C122: -18.76956332 | D122: -17.97555289 | E122: -17.57663505 | F122: -16.90854868 | G122: -21.23379655 | H122: -20.70928449 | I122: -22.1603795 | J122: -21.74863934 | K122: -15.44356541 | L122: -14.68536634 | M122: -13.99109767 | N122: -13.19066427 | O122: -16.40621448 | P122: -15.70971825 | Q122: -17.81686385 | R122: -17.15672507 | S122: -19.63070909 | T122: -19.06078705 | U122: -18.467953 | V122: -18.00989364 | W122: -18.14120709 | X122: -25.34067075 | Y122: -25.69772652
B123: -15.90220167 | C123: -16.18756159 | D123: -15.54307673 | E123: -15.25234027 | F123: -14.73655009 | G123: -18.88420579 | H123: -18.51433654 | I123: -19.55004941 | J123: -19.25697319 | K123: -12.89776694 | L123: -12.26488419 | M123: -11.69837697 | N123: -11.04829703 | O123: -14.28985261 | P123: -13.74967674 | Q123: -15.39880503 | R123: -14.86641171 | S123: -16.89071594 | T123: -16.43944574 | U123: -15.97462789 | V123: -15.64440747 | W123: -15.68782491 | X123: -22.83190081 | Y123: -23.05555445
B124: -13.36649913 | C124: -13.61302972 | D124: -13.11079465 | E124: -12.9223785 | F124: -12.55260827 | G124: -16.53494021 | H124: -16.31466083 | I124: -16.95049866 | J124: -16.77120307 | K124: -10.35875368 | L124: -9.842844638 | M124: -9.396034396 | N124: -8.888604416 | O124: -12.16717017 | P124: -11.78108107 | Q124: -12.98302089 | R124: -12.57306043 | S124: -14.16681289 | T124: -13.82643455 | U124: -13.48196326 | V124: -13.27156364 | W124: -13.23537849 | X124: -20.33606455 | Y124: -20.43030458
B125: -10.83882894 | C125: -11.04842596 | D125: -10.68054086 | E125: -10.58822418 | F125: -10.35789203 | G125: -14.18728348 | H125: -14.11200752 | I125: -14.36262319 | J125: -14.29189387 | K125: -7.832736143 | L125: -7.423866677 | M125: -7.086394373 | N125: -6.712837404 | O125: -10.03959939 | P125: -9.806581711 | Q125: -10.57103549 | R125: -10.27826941 | S125: -11.46195815 | T125: -11.22489776 | U125: -10.99212983 | V125: -10.89312778 | W125: -10.78571837 | X125: -17.85351031 | Y125: -17.82212113
B126: -8.324163158 | C126: -8.499196767 | D126: -8.256037382 | E126: -8.252376362 | F126: -8.15407744 | G126: -11.84262955 | H126: -11.90792354 | I126: -11.78864036 | J126: -11.82099877 | K126: -5.33460324 | L126: -5.018495 | M126: -4.775185735 | N126: -4.521986213 | O126: -7.908607951 | P126: -7.830307057 | Q126: -8.166196081 | R126: -7.984058153 | S126: -8.783921526 | T126: -8.640135674 | U126: -8.509005705 | V126: -8.511867049 | W126: -8.342542259 | X126: -15.38536302 | Y126: -15.23094236
B127: -5.834175685 | C127: -5.977820569 | D127: -5.845098949 | E127: -5.919559652 | F127: -5.942784497 | G127: -9.503224656 | H127: -9.704569089 | I127: -9.232490563 | J127: -9.361754572 | K127: -2.906248986 | L127: -2.659780654 | M127: -2.48141069 | N127: -2.317393535 | O127: -5.775681099 | P127: -5.85833526 | Q127: -5.776780133 | R127: -5.694805797 | S127: -6.149415608 | T127: -6.085929776 | U127: -6.042161126 | V127: -6.133162912 | W127: -5.914565806 | X127: -12.93280431 | Y127: -12.65910964
B128: -3.40008489 | C128: -3.518064555 | D128: -3.470149398 | E128: -3.603115218 | F128: -3.727172928 | G128: -7.172627251 | H128: -7.503934125 | I128: -6.704627921 | J128: -6.920470803 | K128: -0.7243268291 | L128: -0.5220380414 | M128: -0.34936768 | N128: -0.1197154991 | O128: -3.642920062 | P128: -3.909114591 | Q128: -3.424132891 | R128: -3.422140179 | S128: -3.601949067 | T128: -3.597270283 | U128: -3.61755253 | V128: -3.772481766 | W128: -3.525358999 | X128: -10.49820149 | Y128: -10.10963327
B129: -1.140733507 | C129: -1.239759636 | D129: -1.220269699 | E129: -1.359295397 | F129: -1.519122318 | G129: -4.859472558 | H129: -5.309423619 | I129: -4.230227409 | J129: -4.514236336 | K129: -1.535215213 | L129: 14.9075018 | M129: 2.921769402 | N129: 2.140687313 | O129: -1.512594373 | P129: -2.154520421 | Q129: -1.196693088 | R129: -1.219717466 | S129: -1.282593006 | T129: -1.296463014 | U129: -1.33103218 | V129: -1.489181278 | W129: -1.266953 | X129: -8.086693635 | Y129: -7.590316156
B130: -0.2090469369 | C130: -0.0742096786 | D130: -0.263707951 | E130: -0.3269812584 | F130: 1.209971512 | G130: -2.58914204 | H130: -3.126941345 | I130: -1.887058571 | J130: -2.194312608 | K130: 7.099568914 | L130: 5.716431232 | M130: 4.914430169 | N130: 4.384562763 | O130: 0.6301139329 | P130: 0.3741406181 | Q130: -0.2950184615 | R130: -1.580989722 | S130: -0.01999648189 | T130: -0.03647034018 | U130: -0.07283557074 | V130: -0.07248952698 | W130: -0.1505508257 | X130: -5.707675836 | Y130: -5.118624309
B131: -28.43486669 | C131: -28.89094102 | D131: -27.60962768 | E131: -26.86216136 | F131: -25.71070142 | G131: -30.65605882 | H131: -29.65118372 | I131: -32.40379254 | J131: -31.61739609 | K131: -25.42192165 | L131: -24.24363907 | M131: -23.12581073 | N131: -21.84000121 | O131: -25.01244044 | P131: -23.83066729 | Q131: -27.39201778 | R131: -26.3163504 | S131: -30.27387701 | T131: -29.32455433 | U131: -28.32066904 | V131: -27.45914795 | W131: -27.84317085 | X131: -35.3110931 | Y131: -36.07447282
B132: -25.85353555 | C132: -26.2645971 | D132: -25.15499563 | E132: -24.53505469 | F132: -23.55865295 | G132: -28.27916128 | H132: -27.44900966 | I132: -29.73158428 | J132: -29.07951679 | K132: -22.84445379 | L132: -21.81459186 | M132: -20.84856519 | N132: -19.73761142 | O132: -22.90256799 | P132: -21.89259201 | Q132: -24.94811119 | R132: -24.01698667 | S132: -27.46403611 | T132: -26.6536437 | U132: -25.80145574 | V132: -25.09193661 | W132: -25.36596375 | X132: -32.72925075 | Y132: -33.34663975
B133: -23.27962588 | C133: -23.64707761 | D133: -22.70087881 | E133: -22.20099443 | F133: -21.39108743 | G133: -25.90240689 | H133: -25.23877674 | I133: -27.07393311 | J133: -26.54990331 | K133: -20.27116373 | L133: -19.38174972 | M133: -18.55915511 | N133: -17.61464935 | O133: -20.782657 | P133: -19.9383854 | Q133: -22.50614588 | R133: -21.71367103 | S133: -24.67265999 | T133: -23.99310047 | U133: -23.28330238 | V133: -22.71611505 | W133: -22.88978949 | X133: -30.16393499 | Y133: -30.64166517
B134: -20.71217923 | C134: -21.03780811 | D134: -20.24751272 | E134: -19.86073274 | F134: -19.20971815 | G134: -23.52643524 | H134: -23.02190386 | I134: -24.43025518 | J134: -24.02773448 | K134: -17.70207203 | L134: -16.94563956 | M134: -16.25876278 | N134: -15.47272549 | O134: -18.65420763 | P134: -17.97057557 | Q134: -20.0667628 | R134: -19.40691258 | S134: -21.89863886 | T134: -21.34210535 | U134: -20.76627182 | V134: -20.33279201 | W134: -20.41465209 | X134: -27.61425887 | Y134: -27.95783388
B135: -18.15177899 | C135: -18.43661348 | D135: -17.79496812 | E135: -17.51515454 | F135: -17.01604259 | G135: -21.15186018 | H135: -20.80019319 | I135: -21.7994336 | J135: -21.51327116 | K135: -15.13779736 | L135: -14.50697224 | M135: -13.94803786 | N135: -13.31329287 | O135: -16.51878381 | P135: -15.99155906 | Q135: -17.62989187 | R135: -17.09719207 | S135: -19.14086062 | T135: -18.7004959 | U135: -18.25056039 | V135: -17.94274077 | W135: -17.9410676 | X135: -25.0801347 | Y135: -25.2939346
B136: -15.59819342 | C136: -15.84400588 | D136: -15.34404675 | E136: -15.16522304 | F136: -14.81134046 | G136: -18.77975609 | H136: -18.57550045 | I136: -19.18123692 | J136: -19.00642249 | K136: -12.5802262 | L136: -12.06673756 | M136: -11.62828023 | N136: -11.13748118 | O136: -14.3777539 | P136: -14.00395883 | Q136: -15.19606204 | R136: -14.78564859 | S136: -16.39991183 | T136: -16.06841307 | U136: -15.7368939 | V136: -15.54692652 | W136: -15.46951911 | X136: -22.56085454 | Y136: -22.64913923
B137: -13.05309591 | C137: -13.26134717 | D137: -12.89554128 | E137: -12.81189128 | F137: -12.59712384 | G137: -16.41011593 | H137: -16.3486687 | I137: -16.57601757 | J137: -16.50750067 | K137: -10.03289931 | L137: -9.627985363 | M137: -9.300877293 | N137: -8.946165022 | O137: -12.23241662 | P137: -12.01044292 | Q137: -12.76655755 | R137: -12.47318076 | S137: -13.67775256 | T137: -13.44776458 | U137: -13.22655163 | V137: -13.14660645 | W137: -13.00123119 | X137: -20.0569108 | Y137: -20.02265229
B138: -10.519322 | C138: -10.69181054 | D138: -10.45203974 | E138: -10.45685317 | F138: -10.37450974 | G138: -14.04475934 | H138: -14.12186448 | I138: -13.98454455 | J138: -14.01775933 | K138: -7.503864145 | L138: -7.196130577 | M138: -6.968997599 | N138: -6.740468784 | O138: -10.08416401 | P138: -10.0141962 | Q138: -10.34347686 | R138: -10.16109013 | S138: -10.97891912 | T138: -10.8417843 | U138: -10.7221351 | V138: -10.74359649 | W138: -10.53840724 | X138: -17.56854223 | Y138: -17.41500009
B139: -8.002909532 | C139: -8.142764194 | D139: -8.017712002 | E139: -8.102736268 | F139: -8.14489393 | G139: -11.68513316 | H139: -11.89657854 | I139: -11.40997223 | J139: -11.5391121 | K139: -5.011929365 | L139: -4.784695385 | M139: -4.639349682 | N139: -4.521429359 | O139: -7.93469137 | P139: -8.019253518 | Q139: -7.930823106 | R139: -7.852166017 | S139: -8.313030203 | T139: -8.258373338 | U139: -8.228992816 | V139: -8.341304303 | W139: -8.086121646 | X139: -15.09660739 | Y139: -14.82662062
B140: -5.518851335 | C140: -5.630211988 | D140: -5.60273243 | E140: -5.755943826 | F140: -5.910329534 | G140: -9.333352004 | H140: -9.674586387 | I140: -8.857963223 | J140: -9.075545769 | K140: -2.610995945 | L140: -2.436143393 | M140: -2.33638331 | N140: -2.290014951 | O140: -5.785209337 | P140: -6.033682581 | Q140: -5.539212146 | R140: -5.551664898 | S140: -5.702187332 | T140: -5.714566301 | U140: -5.759273598 | V140: -5.946528394 | W140: -5.654911332 | X140: -12.64299884 | Y140: -12.26023749
B141: -3.107124421 | C141: -3.196888635 | D141: -3.235551417 | E141: -3.433000518 | F141: -3.673845179 | G141: -6.994582898 | H141: -7.458197306 | I141: -6.341559206 | J141: -6.63574931 | K141: -0.5276951948 | L141: -0.3756533297 | M141: -0.2496393304 | N141: -0.07485947084 | O141: -3.63782009 | P141: -4.080797391 | Q141: -3.195551397 | R141: -3.274437799 | S141: -3.201409762 | T141: -3.255495436 | U141: -3.345487104 | V141: -3.578116292 | W141: -3.275360056 | X141: -10.2109177 | Y141: -9.720007472
B142: -0.9193224531 | C142: -0.9958189995 | D142: -1.029968185 | E142: -1.205636653 | F142: -1.450679921 | G142: -4.678909829 | H142: -5.251243243 | I142: -3.892375862 | J142: -4.240666014 | K142: -2.383675822 | L142: 15.55112129 | M142: 3.255949474 | N142: 2.217950677 | O142: -1.495578438 | P142: -2.395293213 | Q142: -1.01281766 | R142: -1.08817203 | S142: -0.9904196153 | T142: -1.036844987 | U142: -1.110856868 | V142: -1.312993437 | W142: -1.064777256 | X142: -7.805744506 | Y142: -7.216178165
B143: -0.4401113446 | C143: -0.2213543665 | D143: -0.5109329059 | E143: -0.6082163656 | F143: 1.320194717 | G143: -2.417794259 | H143: -3.060371372 | I143: -1.60971426 | J143: -1.955187725 | K143: 8.000660894 | L143: 6.2290343 | M143: 5.196155925 | N143: 4.484696716 | O143: 0.6582476424 | P143: 0.3179082195 | Q143: -0.5458546362 | R143: -2.474342632 | S143: -0.1218810183 | T143: -0.1513712074 | U143: -0.2123719856 | V143: -0.2031546267 | W143: -0.337048007 | X143: -5.439966915 | Y143: -4.770140643
B144: -28.20558072 | C144: -28.6185616 | D144: -27.52043903 | E144: -26.92344391 | F144: -25.97140288 | G144: -30.68924009 | H144: -29.89147499 | I144: -32.09094098 | J144: -31.46306192 | K144: -25.18326482 | L144: -24.16063772 | M144: -23.2067997 | N144: -22.11297492 | O144: -25.24292023 | P144: -24.2489668 | Q144: -27.28385381 | R144: -26.35798512 | S144: -29.80619293 | T144: -29.02723841 | U144: -28.20789882 | V144: -27.5392335 | W144: -27.73453279 | X144: -35.11364865 | Y144: -35.69733753
B145: -25.60575631 | C145: -25.97451439 | D145: -25.03916443 | E145: -24.56085515 | F145: -23.77583389 | G145: -28.27842413 | H145: -27.64597823 | I145: -29.4043513 | J145: -28.90118982 | K145: -22.58599216 | L145: -21.70396807 | M145: -20.89413467 | N145: -19.96867428 | O145: -23.09945584 | P145: -22.2729209 | Q145: -24.81680043 | R145: -24.02965013 | S145: -26.98999302 | T145: -26.33785054 | U145: -25.65784539 | V145: -25.12907629 | W145: -25.23055784 | X145: -32.51249476 | Y145: -32.96133643
B146: -23.01491906 | C146: -23.34102227 | D146: -22.56073133 | E146: -22.19407872 | F146: -21.56788656 | G146: -25.87106282 | H146: -25.39606567 | I146: -26.73450681 | J146: -26.35002643 | K146: -19.99486237 | L146: -19.2455932 | M146: -18.57176069 | N146: -17.80627149 | O146: -20.94851558 | P146: -20.28340609 | Q146: -22.35406263 | R146: -21.69924288 | S146: -24.19351859 | T146: -23.66070108 | U146: -23.11179998 | V146: -22.71404105 | W146: -22.73004403 | X146: -29.93050312 | Y146: -30.24992716
B147: -20.43290528 | C147: -20.71772694 | D147: -20.08503523 | E147: -19.82365776 | F147: -19.34891395 | G147: -23.46758532 | H147: -23.14325203 | I147: -24.08026132 | J147: -23.80885831 | K147: -17.40991842 | L147: -16.78594378 | M147: -16.24046871 | N147: -15.62702854 | O147: -18.79133099 | P147: -18.28304804 | Q147: -19.89555415 | R147: -19.36754025 | S147: -21.4157876 | T147: -20.99525037 | U147: -20.56968467 | V147: -20.29472411 | W147: -20.23283731 | X147: -27.36702036 | Y147: -27.56115769
B148: -17.85934467 | C148: -18.10463102 | D148: -17.61246867 | E148: -17.45053754 | F148: -17.12032304 | G148: -21.06810142 | H148: -20.8889778 | I148: -21.44037455 | J148: -21.27763636 | K148: -14.83229942 | L148: -14.32582836 | M148: -13.90100298 | N148: -13.43241357 | O148: -16.6294211 | P148: -16.27415923 | Q148: -17.44148619 | R148: -17.03510632 | S148: -18.65588771 | T148: -18.34137698 | U148: -18.0315546 | V148: -17.87191925 | W148: -17.73940325 | X148: -24.82058708 | Y148: -24.89366451
B149: -15.29489578 | C149: -15.50202781 | D149: -15.14362994 | E149: -15.07524331 | F149: -14.88338886 | G149: -18.67345135 | H149: -18.6346265 | I149: -18.81519752 | J149: -18.75597269 | K149: -12.26398656 | L149: -11.86680231 | M149: -11.5544128 | N149: -11.22326217 | O149: -14.4640901 | P149: -14.25946646 | Q149: -14.99261142 | R149: -14.70275307 | S149: -15.91528007 | T149: -15.69963215 | U149: -15.49797434 | V149: -15.44611403 | W149: -15.25018451 | X149: -22.29173837 | Y149: -22.24678065
B150: -12.74141068 | C150: -12.9121857 | D150: -12.67982478 | E150: -12.69893013 | F150: -12.63915091 | G150: -16.28445586 | H150: -16.38150663 | I150: -16.20480818 | J150: -16.244903 | K150: -9.709561912 | L150: -9.412035066 | M150: -9.202488419 | N150: -9.000530702 | O150: -12.29651091 | P150: -12.24169162 | Q150: -12.55001883 | R150: -12.3714135 | S150: -13.19648128 | T150: -13.07212324 | U150: -12.97067311 | V150: -13.01876961 | W150: -12.76664283 | X150: -19.78040002 | Y150: -19.61976865
B151: -10.2023816 | C151: -10.3392289 | D151: -10.22365443 | E151: -10.32353361 | F151: -10.38887927 | G151: -13.90179695 | H151: -14.1309395 | I151: -13.61092843 | J151: -13.74523026 | K151: -7.179181049 | L151: -6.968664794 | M151: -6.848780328 | N151: -6.765191981 | O151: -10.12814118 | P151: -10.22409323 | Q151: -10.11645073 | R151: -10.0428417 | S151: -10.50525678 | T151: -10.46348738 | U151: -10.4528107 | V151: -10.59191423 | W151: -10.29173253 | X151: -17.28654992 | Y151: -17.01348404
B152: -7.686077018 | C152: -7.792124601 | D152: -7.780773475 | E152: -7.952095948 | F152: -8.133978354 | G152: -11.52766132 | H152: -11.88476609 | I152: -11.03714194 | J152: -11.25977695 | K152: -4.696388568 | L152: -4.553078631 | M152: -4.501742349 | N152: -4.517870682 | O152: -7.960346473 | P152: -8.211916644 | Q152: -7.69731223 | R152: -7.719904564 | S152: -7.854160098 | T152: -7.883274132 | U152: -7.950989235 | V152: -8.16930688 | W152: -7.831227266 | X152: -14.81181205 | Y152: -14.42887428
B153: -5.210525059 | C153: -5.29115314 | D153: -5.363454037 | E153: -5.592309668 | F153: -5.876207528 | G153: -9.164829909 | H153: -9.64484499 | I153: -8.490857499 | J153: -8.793337323 | K153: -2.32861495 | L153: -2.218568669 | M153: -2.191630184 | N153: -2.260086447 | O153: -5.795004517 | P153: -6.214248311 | Q153: -5.305011784 | R153: -5.409100999 | S153: -5.270821928 | T153: -5.353117858 | U153: -5.480371948 | V153: -5.759442713 | W153: -5.399027065 | X153: -12.35818028 | Y153: -11.8692676
B154: -2.825653101 | C154: -2.889403012 | D154: -3.006930991 | E154: -3.264483795 | F154: -3.619439604 | G154: -6.818683175 | H154: -7.413512938 | I154: -5.988144647 | J154: -6.356568858 | K154: -0.3598500832 | L154: -0.2504033224 | M154: -0.1627431851 | N154: -0.03217750686 | O154: -3.633690587 | P154: -4.26128239 | Q154: -2.973496041 | R154: -3.128667718 | S154: -2.823630775 | T154: -2.929052359 | U154: -3.081366102 | V154: -3.385738541 | W154: -3.032410716 | X154: -9.929396168 | Y154: -9.339902737
B155: -0.7202860499 | C155: -0.7771575274 | D155: -0.8536893673 | E155: -1.05859345 | F155: -1.381801077 | G155: -4.501760642 | H155: -5.194492975 | I155: -3.568455683 | J155: -3.975382014 | K155: -3.476727196 | L155: 16.09564071 | M155: 3.594236215 | N155: 2.297169575 | O155: -1.479714135 | P155: -2.668078005 | Q155: -0.8429345719 | R155: -0.9627565356 | S155: -0.735434335 | T155: -0.8044587636 | U155: -0.9079574799 | V155: -1.144367552 | W155: -0.8779811758 | X155: -7.532405205 | Y155: -6.853449054
B156: -0.7636026714 | C156: -0.4506867532 | D156: -0.8533954353 | E156: -1.012499103 | F156: 1.42048788 | G156: -2.252893761 | H156: -2.996475224 | I156: -1.354565112 | J156: -1.729939736 | K156: 8.943548879 | L156: 6.757812671 | M156: 5.483255228 | N156: 4.586415523 | O156: 0.6832278103 | P156: 0.2662531653 | Q156: -0.884212925 | R156: -3.769735478 | S156: -0.3107426003 | T156: -0.3478180201 | U156: -0.4328133816 | V156: -0.4156796456 | W156: -0.6072318633 | X156: -5.181754516 | Y156: -4.436263066
B157: -27.97452982 | C157: -28.34486381 | D157: -27.42781047 | E157: -26.98041053 | F157: -26.2286319 | G157: -30.71906194 | H157: -30.12868189 | I157: -31.77817 | J157: -31.30640401 | K157: -24.94229997 | L157: -24.0735825 | M157: -23.28301788 | N157: -22.3825452 | O157: -25.47058115 | P157: -24.66714422 | Q157: -27.17258985 | R157: -26.39604587 | S157: -29.34102141 | T157: -28.72903554 | U157: -28.09152031 | V157: -27.61464854 | W157: -27.62248476 | X157: -34.9157234 | Y157: -35.32172885
B158: -25.35647663 | C158: -25.68354151 | D158: -24.9202652 | E158: -24.58258745 | F158: -23.9897316 | G158: -28.2749314 | H158: -27.84022145 | I158: -29.07779502 | J158: -28.72109874 | K158: -22.32569707 | L158: -21.58957622 | M158: -20.93527868 | N158: -20.19640744 | O158: -23.29384921 | P158: -22.65328297 | Q158: -24.68313502 | R158: -24.0388487 | S158: -26.51897834 | T158: -26.02137705 | U158: -25.51118361 | V158: -25.1618706 | W158: -25.09221239 | X158: -32.29575594 | Y158: -32.57829352
B159: -22.74961781 | C159: -23.03466766 | D159: -22.41781464 | E159: -22.18355485 | F159: -21.74153594 | G159: -25.8373544 | H159: -25.55116866 | I159: -26.3960183 | J159: -26.14892816 | K159: -19.7173697 | L159: -19.10607602 | M159: -18.58019104 | N159: -17.99459331 | O159: -21.11208011 | P159: -20.62881003 | Q159: -22.19986782 | R159: -21.68195472 | S159: -23.71805452 | T159: -23.32821966 | U159: -22.93763801 | V159: -22.70795721 | W159: -22.56776397 | X159: -29.69765398 | Y159: -29.86094374
B160: -20.15307431 | C160: -20.39808927 | D160: -19.92039656 | E160: -19.78339934 | F160: -19.48527078 | G160: -23.40639782 | H160: -23.26277053 | I160: -23.73148068 | J160: -23.5891262 | K160: -17.11729916 | L160: -16.62346289 | M160: -16.21826145 | N160: -15.77820312 | O160: -18.92653413 | P160: -18.59625237 | Q160: -19.7227373 | R160: -19.3256592 | S160: -20.93701599 | T160: -20.64905505 | U160: -20.37087241 | V160: -20.25297172 | W160: -20.04900302 | X160: -27.12011109 | Y160: -27.16743161
B161: -17.56719171 | C161: -17.77336173 | D161: -17.42840749 | E161: -17.38300895 | F161: -17.22208188 | G161: -20.9826808 | H161: -20.97623244 | I161: -21.08349555 | J161: -21.04167075 | K161: -14.52684876 | L161: -14.14237978 | M161: -13.85016125 | N161: -13.54851388 | O161: -16.73853707 | P161: -16.55804475 | Q161: -17.25209361 | R161: -16.97083993 | S161: -18.17629074 | T161: -17.98372627 | U161: -17.81068253 | V161: -17.79757011 | W161: -17.53611613 | X161: -24.56254743 | Y161: -24.49691038
B162: -14.99263932 | C162: -15.16184921 | D162: -14.94221033 | E162: -14.98287318 | F162: -14.95300821 | G162: -18.56624901 | H162: -18.6927729 | I162: -18.45176043 | J162: -18.50613804 | K162: -11.94858318 | L162: -11.66515121 | M162: -11.47714164 | N162: -11.30626671 | O162: -14.5491983 | P162: -14.5167661 | Q162: -14.78845945 | R162: -14.6180283 | S162: -15.43695411 | T162: -15.33309602 | U162: -15.25814908 | V162: -15.34246687 | W162: -15.02982429 | X162: -22.0245517 | Y162: -21.84841294
B163: -12.4316148 | C163: -12.5659018 | D163: -12.46374139 | E163: -12.58403342 | F163: -12.67916479 | G163: -16.15786132 | H163: -16.41356374 | I163: -15.83711475 | J163: -15.98320432 | K163: -9.388508613 | L163: -9.195308946 | M163: -9.101231691 | N163: -9.052370626 | O163: -12.35977135 | P163: -12.47536701 | Q163: -12.33355628 | R163: -12.26838936 | S163: -12.72266593 | T163: -12.70011311 | U163: -12.71461867 | V163: -12.88851115 | W163: -12.53183999 | X163: -19.50627717 | Y163: -19.22185445
B164: -9.888719608 | C164: -9.990700766 | D164: -9.995856989 | E164: -10.18870169 | F164: -10.40150601 | G164: -13.75902712 | H164: -14.13990723 | I164: -13.24170143 | J164: -13.47459162 | K164: -6.858729803 | L164: -6.741185122 | M164: -6.726214807 | N164: -6.787347284 | O164: -10.17171248 | P164: -10.43759615 | Q164: -9.890576349 | R164: -9.923678923 | S164: -10.04101092 | T164: -10.09004989 | U164: -10.18442481 | V164: -10.43848553 | W164: -10.0457181 | X164: -17.00806836 | Y164: -16.6176237
B165: -7.373883909 | C165: -7.447448852 | D165: -7.54528455 | E165: -7.800777081 | F165: -8.121419606 | G165: -11.37108348 | H165: -11.8734495 | I165: -10.67018277 | J165: -10.98336518 | K165: -4.388377488 | L165: -4.323609775 | M165: -4.36257841 | N165: -4.512114547 | O165: -7.986418837 | P165: -8.409176502 | Q165: -7.465908764 | R165: -7.587451118 | S165: -7.407589421 | T165: -7.515139267 | U165: -7.675332902 | V165: -7.996281566 | W165: -7.578393016 | X165: -14.53140164 | Y165: -14.03798838
B166: -4.90932466 | C166: -4.960768419 | D166: -5.127337795 | E166: -5.428911123 | F166: -5.840868032 | G166: -8.997687055 | H166: -9.616052276 | I166: -8.131207316 | J166: -8.515337604 | K166: -2.059623318 | L166: -2.007645882 | M166: -2.047381763 | N166: -2.227738413 | O166: -5.805567527 | P166: -6.401314629 | Q166: -5.074489952 | R166: -5.267325857 | S166: -4.855497169 | T166: -5.001664723 | U166: -5.205833923 | V166: -5.572583476 | W166: -5.146880964 | X166: -12.07868426 | Y166: -11.48609477
B167: -2.555853613 | C167: -2.595575431 | D167: -2.784705569 | E167: -3.097977361 | F167: -3.564398786 | G167: -6.645282273 | H167: -7.37038931 | I167: -5.644818636 | J167: -6.083347519 | K167: -0.2221593464 | L167: -0.1479889351 | M167: -0.09098086529 | N167: -0.001450165163 | O167: -3.630847289 | P167: -4.451911557 | Q167: -2.758050046 | R167: -2.985140388 | S167: -2.468838156 | T167: -2.617937435 | U167: -2.825568921 | V167: -3.195553784 | W167: -2.796561913 | X167: -9.654243029 | Y167: -8.969310235
B168: -0.5439787113 | C168: -0.5841392369 | D168: -0.6919538957 | E168: -0.9185901928 | F168: -1.312933526 | G168: -4.328657564 | H168: -5.140315261 | I168: -3.25870891 | J168: -3.718661612 | K168: -4.860522575 | L168: 16.57000011 | M168: 3.932705366 | N168: 2.377952872 | O168: -1.465793739 | P168: -2.981016538 | Q168: -0.687290649 | R168: -0.8436152064 | S168: -0.5176920881 | T168: -0.6002385499 | U168: -0.7230955099 | V168: -0.983877659 | W168: -0.7072148188 | X168: -7.266716059 | Y168: -6.502103134
B169: -1.185920167 | C169: -0.7661974146 | D169: -1.304317131 | E169: -1.578682263 | F169: 1.51208394 | G169: -2.09435838 | H169: -2.935592633 | I169: -1.121381058 | J169: -1.51847386 | K169: 9.923992214 | L169: 7.300839227 | M169: 5.775511106 | N169: 4.689663687 | O169: 0.7047195703 | P169: 0.2189178703 | Q169: -1.318598577 | R169: -5.687866922 | S169: -0.5875859417 | T169: -0.6292854521 | U169: -0.7428331632 | V169: -0.7298858133 | W169: -0.9705675001 | X169: -4.933223233 | Y169: -4.116876844
B170: -27.7416728 | C170: -28.07021612 | D170: -27.33201045 | E170: -27.03336167 | F170: -26.4829039 | G170: -30.74605186 | H170: -30.363559 | I170: -31.46529575 | J170: -31.14814698 | K170: -24.69927875 | L170: -23.98256752 | M170: -23.35465778 | N170: -22.64895254 | O170: -25.69580793 | P170: -25.08560219 | Q170: -27.05858404 | R170: -26.43053533 | S170: -28.87850822 | T170: -28.4300588 | U170: -27.97205549 | V170: -27.68590067 | W170: -27.50760763 | X170: -34.71736839 | Y170: -34.94820115
B171: -25.106174 | C171: -25.39184246 | D171: -24.79861354 | E171: -24.6008155 | F171: -24.20087729 | G171: -28.26895852 | H171: -28.03246352 | I171: -28.75191682 | J171: -28.53984545 | K171: -22.06393353 | L171: -21.47172763 | M171: -20.97212289 | N171: -20.421146 | O171: -23.48622344 | P171: -23.03427498 | Q171: -24.5469713 | R171: -24.04486598 | S171: -26.05114931 | T171: -25.70460673 | U171: -25.36178369 | V171: -25.1908892 | W171: -24.95132125 | X171: -32.07932239 | Y171: -32.19751737
B172: -22.48345074 | C172: -22.7283784 | D172: -22.2726445 | E172: -22.16978166 | F172: -21.91273794 | G172: -25.80140205 | H172: -25.70447765 | I172: -26.05862093 | J172: -25.94702152 | K172: -19.43892348 | L172: -18.96339441 | M172: -18.58453238 | N172: -18.18010056 | O172: -21.27397836 | P172: -20.97523497 | Q172: -22.04378292 | R172: -21.66169097 | S172: -23.24611228 | T172: -22.99608672 | U172: -22.76121263 | V172: -22.69826062 | W172: -22.40334851 | X172: -29.46542166 | Y172: -29.47441886
B173: -19.87327152 | C173: -20.07868827 | D173: -19.75400212 | E173: -19.74028365 | F173: -19.61924438 | G173: -23.34381008 | H173: -23.38093858 | I173: -23.38438873 | J173: -23.36911995 | K173: -16.82429074 | L173: -16.45809159 | M173: -16.19206165 | N173: -15.92676564 | O173: -19.06046375 | P173: -18.91092835 | Q173: -19.54842547 | R173: -19.28146872 | S173: -20.46298638 | T173: -20.30374207 | U173: -20.17015217 | V173: -20.20802628 | W173: -19.86334666 | X173: -26.87475625 | Y173: -26.77694518
B174: -17.2754609 | C174: -17.44330943 | D174: -17.24289582 | E174: -17.31294535 | F174: -17.32173515 | G174: -20.89583671 | H174: -21.0625219 | I174: -20.72863842 | J174: -20.80569029 | K174: -14.22182567 | L174: -13.95679536 | M174: -13.7957516 | N174: -13.6621115 | O174: -16.84663342 | P174: -16.84390719 | Q174: -17.0616214 | R174: -16.90458194 | S174: -17.70180252 | T174: -17.62762618 | U174: -17.58867869 | V174: -17.72043322 | W174: -17.33163046 | X174: -24.30622749 | Y174: -24.10383553
B175: -14.69157597 | C175: -14.82352982 | D175: -14.74006094 | E175: -14.88819001 | F175: -15.02076647 | G175: -18.45815131 | H175: -18.75044937 | I175: -18.09114448 | J175: -18.2566938 | K175: -11.63471544 | L175: -11.4618011 | M175: -11.3967266 | N175: -11.38680887 | O175: -14.63369946 | P175: -14.77677221 | Q175: -14.58399496 | R175: -14.53177245 | S175: -14.9649105 | T175: -14.96897959 | U175: -15.01747513 | V175: -15.23613467 | W175: -14.80877659 | X175: -21.75966938 | Y175: -21.45436848
B176: -12.1238928 | C176: -12.22247046 | D176: -12.24731926 | E176: -12.46739427 | F176: -12.71749882 | G176: -16.03124138 | H176: -16.4454944 | I176: -15.47312437 | J176: -15.72288723 | K176: -9.070148249 | L176: -8.977632864 | M176: -8.997076482 | N176: -9.101700746 | O176: -12.42304191 | P176: -12.7123977 | Q176: -12.11737748 | R176: -12.16419676 | S176: -12.25660398 | T176: -12.33124721 | U176: -12.45866504 | V176: -12.75614567 | W176: -12.29704196 | X176: -19.23500718 | Y176: -18.82872485
B177: -9.578173152 | C177: -9.646363488 | D177: -9.76853355 | E177: -10.05270141 | F177: -10.4127137 | G177: -13.61626112 | H177: -14.14923623 | I177: -12.87707475 | J177: -13.20614449 | K177: -6.542857883 | L177: -6.51433203 | M177: -6.601332401 | N177: -6.807423934 | O177: -10.21558067 | P177: -10.65535047 | Q177: -9.66554289 | R177: -9.804107804 | S177: -9.586373673 | T177: -9.721591303 | U177: -9.916961535 | V177: -10.28328094 | W177: -9.800519271 | X177: -16.73293886 | Y177: -16.22775864
B178: -7.066483913 | C178: -7.108760053 | D178: -7.311532697 | E178: -7.648717967 | F178: -8.107986524 | G178: -11.21540973 | H178: -11.8629106 | I178: -10.30894256 | J178: -10.70978848 | K178: -4.087806331 | L178: -4.096587725 | M178: -4.222050819 | N178: -4.50426366 | O178: -8.013224935 | P178: -8.611828407 | Q178: -7.236410134 | R178: -7.455070221 | S178: -6.972803078 | T178: -7.153826579 | U178: -7.402002552 | V178: -7.82238435 | W178: -7.327734465 | X178: -14.25500819 | Y178: -13.65341545
B179: -4.615509362 | C179: -4.639433937 | D179: -4.894690976 | E179: -5.265832179 | F179: -5.804919967 | G179: -8.83231625 | H179: -9.588629081 | I179: -7.77914071 | J179: -8.241333139 | K179: -1.804208334 | L179: -1.803472503 | M179: -1.903929541 | N179: -2.193490233 | O179: -5.817328636 | P179: -6.595826571 | Q179: -4.847818683 | R179: -5.12641176 | S179: -4.456345422 | T179: -4.660217627 | U179: -4.935809049 | V179: -5.385798541 | W179: -4.898853113 | X179: -11.80413125 | Y179: -11.11071355
B180: -2.297728088 | C180: -2.315908714 | D180: -2.56908825 | E180: -2.93395544 | F180: -3.508779237 | G180: -6.474449307 | H180: -7.329072748 | I180: -5.311622156 | J180: -5.815827452 | K180: -0.1160015945 | L180: -0.07040824139 | M180: -0.0373926068 | N180: -0.1005236181 | O180: -3.630011103 | P180: -4.654663147 | Q180: -2.549410014 | R180: -2.844043772 | S180: -2.136895095 | T180: -2.322444868 | U180: -2.577994265 | V180: -3.007719101 | W180: -2.568215556 | X180: -9.385513654 | Y180: -8.607976138
B181: -0.3911212314 | C181: -0.4174629844 | D181: -0.5454107906 | E181: -0.7859758106 | F181: -1.244257056 | G181: -4.15968418 | H181: -5.088599591 | I181: -2.963012321 | J181: -3.470664505 | K181: -6.591242445 | L181: 16.99418005 | M181: 4.269059937 | N181: 2.459790132 | O181: -1.454148133 | P181: -3.344951095 | Q181: -0.5463536074 | R181: -0.7311210985 | S181: -0.3375619513 | T181: -0.4244640155 | U181: -0.5568692464 | V181: -0.8321154685 | W181: -0.5530364039 | X181: -7.0087483 | Y181: -6.162321928
B182: -1.714291085 | C182: -1.172265828 | D182: -1.879564242 | E182: -2.365389017 | F182: 1.596317421 | G182: -1.942333068 | H182: -2.878014184 | I182: -0.9103756593 | J182: -1.321007883 | K182: 10.93862607 | L182: 7.857058084 | M182: 6.071982859 | N182: 4.793873214 | O182: 0.7223737378 | P182: 0.1758746079 | Q182: -1.859361831 | R182: -8.705939934 | S182: -0.9530720195 | T182: -1.000069268 | U182: -1.153104652 | V182: -1.173160186 | W182: -1.437863139 | X182: -4.69429007 | Y182: -3.81204559
B183: -27.50773738 | C183: -27.79451766 | D183: -27.2334522 | E183: -27.08289802 | F183: -26.73471801 | G183: -30.77072008 | H183: -30.59682743 | I183: -31.1529772 | J183: -30.98840699 | K183: -24.45440929 | L183: -23.88805078 | M183: -23.42222292 | N183: -22.9126259 | O183: -25.91911032 | P183: -25.50491082 | Q183: -26.94202184 | R183: -26.46205322 | S183: -28.4186091 | T183: -28.13055517 | U183: -27.84986403 | V183: -27.75352891 | W183: -27.38971055 | X183: -34.51957401 | Y183: -34.5769422
B184: -24.85481073 | C184: -25.09981978 | D184: -24.67455739 | E184: -24.61590754 | F184: -24.40975542 | G184: -28.26075711 | H184: -28.22317673 | I184: -28.42662261 | J184: -28.35722944 | K184: -21.80077179 | L184: -21.35069341 | M184: -21.00511323 | N184: -20.64337144 | O184: -23.67693549 | P184: -23.41647773 | Q184: -24.40887468 | R184: -24.04821042 | S184: -25.5863556 | T184: -25.38781895 | U184: -25.20974346 | V184: -25.21648415 | W184: -24.80808003 | X184: -31.86341793 | Y184: -31.81944981
B185: -22.21675834 | C185: -22.4218742 | D185: -22.12534246 | E185: -22.15312927 | F185: -22.08170376 | G185: -25.76395109 | H185: -25.8567986 | I185: -25.72239263 | J185: -25.7443917 | K185: -19.15952074 | L185: -18.817842 | M185: -18.58506196 | N185: -18.36310171 | O185: -21.43459275 | P185: -21.32326488 | Q185: -21.88591868 | R185: -21.63920881 | S185: -22.77798008 | T185: -22.66426286 | U185: -22.58270287 | V185: -22.68545917 | W185: -22.23701022 | X185: -29.2344041 | Y185: -29.09092662
B186: -19.5932609 | C186: -19.75989462 | D186: -19.58576133 | E186: -19.69452452 | F186: -19.75138028 | G186: -23.27988668 | H186: -23.49831029 | I186: -23.03901339 | J186: -23.14888355 | K186: -16.53100226 | L186: -16.29029709 | M186: -16.16256418 | N186: -16.07287592 | O186: -19.19331403 | P186: -19.22780998 | Q186: -19.37293558 | R186: -19.23523696 | S186: -19.99321062 | T186: -19.95937393 | U186: -19.96793463 | V186: -20.16014752 | W186: -19.67625774 | X186: -26.63080358 | Y186: -26.38975234
B187: -16.98435862 | C187: -17.11456884 | D187: -17.05601859 | E187: -17.24051923 | F187: -17.41962912 | G187: -20.80838468 | H187: -21.14841422 | I187: -20.37595486 | J187: -20.57016768 | K187: -13.9173071 | L187: -13.76937946 | M187: -13.73823912 | N187: -13.7733934 | O187: -16.95414727 | P187: -17.13242347 | Q187: -16.87036629 | R187: -16.83666482 | S187: -17.23266629 | T187: -17.27315997 | U187: -17.36549717 | V187: -17.64074877 | W187: -17.12599618 | X187: -24.05199494 | Y187: -23.71464333
B188: -14.39162801 | C188: -14.48723221 | D188: -14.53710514 | E188: -14.79169998 | F188: -15.08713634 | G188: -18.34987222 | H188: -18.80793065 | I188: -17.73346857 | J188: -18.00824991 | K188: -11.32240005 | L188: -11.25717914 | M188: -11.31327731 | N188: -11.46534713 | O188: -14.71808963 | P188: -15.03985962 | Q188: -14.37921138 | R188: -14.44429385 | S188: -14.49918551 | T188: -14.60734019 | U188: -14.77641883 | V188: -15.12763183 | W188: -14.58738115 | X188: -21.49750016 | Y188: -21.0648237
B189: -11.81823807 | C189: -11.88188177 | D189: -12.03086085 | E189: -12.34926992 | F189: -12.75465557 | G189: -15.904792 | H189: -16.47789177 | I189: -15.11279077 | J189: -15.46414948 | K189: -8.75447476 | L189: -8.759540367 | M189: -8.890154877 | N189: -9.149316783 | O189: -12.48632051 | P189: -12.95356909 | Q189: -11.90164528 | R189: -12.05934256 | S189: -11.79824931 | T189: -11.96629121 | U189: -12.20286606 | V189: -12.62199427 | W189: -12.0623923 | X189: -18.96698832 | Y189: -18.44078186
B190: -9.270963412 | C190: -9.306389832 | D190: -9.541970604 | E190: -9.915775735 | F190: -10.42307427 | G190: -13.47434195 | H190: -14.15941164 | I190: -12.51735989 | J190: -12.93966965 | K190: -6.231559245 | L190: -6.288105342 | M190: -6.474310453 | N190: -6.825636033 | O190: -10.26020928 | P190: -10.87821786 | Q190: -9.441911541 | R190: -9.68402462 | S190: -9.141114284 | T190: -9.358107387 | U190: -9.650721575 | V190: -10.12672446 | W190: -9.556377462 | X190: -16.4617871 | Y190: -15.84355791
B191: -6.763956104 | C191: -6.776305335 | D191: -7.079732204 | E191: -7.496497211 | F191: -8.093750201 | G191: -11.06105671 | H191: -11.85376005 | I191: -9.953510894 | J191: -10.43934464 | K191: -3.795136814 | L191: -3.872393658 | M191: -4.080188546 | N191: -4.494830194 | O191: -8.04114079 | P191: -8.821294297 | Q191: -7.00937348 | R191: -7.322970006 | S191: -6.550224306 | T191: -6.799685717 | U191: -7.13114002 | V191: -7.647880716 | W191: -7.079349248 | X191: -13.98333704 | Y191: -13.27590739
B192: -4.328874932 | C192: -4.327076248 | D192: -4.665466214 | E192: -5.103379209 | F192: -5.768611514 | G192: -8.66892536 | H192: -9.563257608 | I192: -7.434648685 | J192: -7.971697861 | K192: -1.562869971 | L192: -1.606753159 | M192: -1.76152507 | N192: -2.157912071 | O192: -5.83086419 | P192: -6.799414271 | Q192: -4.625075878 | R192: -4.986773401 | S192: -4.073228186 | T192: -4.329047255 | U192: -4.670442299 | V192: -5.199627793 | W192: -4.654806522 | X192: -11.53525752 | Y192: -10.74346381
B193: -2.051832937 | C193: -2.050583556 | D193: -2.360141268 | E193: -2.771904549 | F193: -3.453257969 | G193: -6.306785303 | H193: -7.290472095 | I193: -4.98833572 | J193: -5.554575856 | K193: -0.04294001206 | L193: -0.02009150532 | M193: -0.005970074128 | N193: 0.2892050762 | O193: -3.631284958 | P193: -4.871909941 | Q193: -2.347681225 | R193: -2.705539348 | S193: -1.828175571 | T193: -2.042977283 | U193: -2.339339744 | V193: -2.822671611 | W193: -2.347554096 | X193: -9.123334218 | Y193: -8.256058868
B194: -0.2622600317 | C194: -0.2776149781 | D194: -0.4146315184 | E194: -0.6613486077 | F194: -1.176131333 | G194: -3.994827035 | H194: -5.040338912 | I194: -2.681474212 | J194: -3.231164529 | K194: -8.75250508 | L194: 17.38011877 | M194: 4.601706507 | N194: 2.542454588 | O194: -1.445527783 | P194: -3.774359816 | Q194: -0.4204697399 | R194: -0.6255362414 | S194: -0.1953888312 | T194: -0.277957322 | U194: -0.410251635 | V194: -0.6897520734 | W194: -0.4160288101 | X194: -6.758744726 | Y194: -5.833886684
B195: -2.357760983 | C195: -1.674340201 | D195: -2.600205901 | E195: -3.468361159 | F195: 1.673387747 | G195: -1.797083523 | H195: -2.824532123 | I195: -0.7216294504 | J195: -1.137596872 | K195: 11.98352835 | L195: 8.424006815 | M195: 6.371354033 | N195: 4.898773349 | O195: 0.7353845983 | P195: 0.1369604497 | Q195: -2.520539942 | R195: -13.9299398 | S195: -1.408680007 | T195: -1.464294253 | U195: -1.676798919 | V195: -1.787436586 | W195: -2.023935764 | X195: -4.46515959 | Y195: -3.52166099
B196: -27.27252398 | C196: -27.51814501 | D196: -27.13238662 | E196: -27.12954978 | F196: -26.98462789 | G196: -30.79350169 | H196: -30.82902139 | I196: -30.84128515 | J196: -30.82767522 | K196: -24.20777902 | L196: -23.79028951 | M196: -23.48600074 | N196: -23.17417407 | O196: -26.14090755 | P196: -25.92563534 | Q196: -26.82345269 | R196: -26.49078824 | S196: -27.96161057 | T196: -27.83074012 | U196: -27.72509303 | V196: -27.81827939 | W196: -27.26952759 | X196: -34.32215867 | Y196: -34.20763039
B197: -24.60277351 | C197: -24.80758675 | D197: -24.54817038 | E197: -24.62822483 | F197: -24.61688664 | G197: -28.25119263 | H197: -28.413297 | I197: -28.10246455 | J197: -28.17410654 | K197: -21.53641161 | L197: -21.22637256 | M197: -21.03443186 | N197: -20.86340971 | O197: -23.86634022 | P197: -23.80048254 | Q197: -24.26902277 | R197: -24.04922691 | S197: -25.1247674 | T197: -25.07124141 | U197: -25.05580922 | V197: -25.23931201 | W197: -24.66272093 | X197: -31.64852066 | Y197: -31.44361466
B198: -21.94988463 | C198: -22.11566924 | D198: -21.97628364 | E198: -22.13395314 | F198: -22.24927431 | G198: -25.72525298 | H198: -26.008664 | I198: -25.38766833 | J198: -25.5416191 | K198: -18.87951869 | L198: -18.66974718 | M198: -18.58224999 | N198: -18.54415456 | O198: -21.59435877 | P198: -21.67358614 | Q198: -21.72676427 | R198: -21.6146242 | S198: -22.31371551 | T198: -22.33321042 | U198: -22.40253661 | V198: -22.67010872 | W198: -22.06894192 | X198: -29.00458105 | Y198: -28.71038065
B199: -19.3134486 | C199: -19.44197857 | D199: -19.41620459 | E199: -19.64661456 | F199: -19.88218111 | G199: -23.21522912 | H199: -23.61561926 | I199: -22.69557186 | J199: -22.92876996 | K199: -16.23775973 | L199: -16.12039945 | M199: -16.12987614 | N199: -16.21725526 | O199: -19.32573037 | P199: -19.54731667 | Q199: -19.19656511 | R199: -19.18725638 | S199: -19.52797046 | T199: -19.61625468 | U199: -19.76434868 | V199: -20.10995335 | W199: -19.48789771 | X199: -26.3886685 | Y199: -26.00598152
B200: -16.69387325 | C200: -16.78711195 | D200: -16.8684636 | E200: -17.16625564 | F200: -17.516531 | G200: -20.72066499 | H200: -21.23458708 | I200: -20.02586201 | J200: -20.33515547 | K200: -13.6134089 | L200: -13.57993128 | M200: -13.67771929 | N200: -13.88303147 | O200: -17.06149466 | P200: -17.42419375 | Q200: -16.678669 | R200: -16.76740805 | S200: -16.76877351 | T200: -16.92054874 | U200: -17.14143442 | V200: -17.55890746 | W200: -16.91958023 | X200: -23.80000164 | Y200: -23.32923976
... 904 more rows
